Publisher Label,Publisher URI,"Directorate code","Directorate","Service code","Service","Revenue or capital code","Revenue capital","Cost centre","Cost centre description","Bvsub Category","Bvsub description","Bvsum code","Bvsum description","Account code","Account description","Transaction No","Period","Transaction Date","Amount","Classification code","Classification description","Supplier ID","Supplier description","Company registration number","Company registration number Uri","VAT registration number"
"London Borough of Redbridge","http://opendatacommunities.org/doc/london-borough-council/redbridge","6BADULTSOCIA","Adult Social Care","6CADLEARNDIS","Adults Under 65 with Learning Disabilities","REV","Revenue","R4188","LD - Residential Care","05-THIRD","Third Party Payments","05F","Voluntary associations","6802","Residential Homes","90959630","201902",25/05/2018 00:00:00,114410.78,"64710","Residential Care Homes","REDACTED DATA","HEATHCOTES SOUTHERN LTD","10142627","http://opencorporates.com/companies/gb/10142627",""
"London Borough of Redbridge","http://opendatacommunities.org/doc/london-borough-council/redbridge","6BADULTSOCIA","Adult Social Care","6COLDINCMENT","Older People (65 or over) incl. Older Mentally Ill","REV","Revenue","R4385","OP Nursing","05-THIRD","Third Party Payments","05H","Private contractors","6909","Nursing Homes","90959629","201902",23/05/2018 00:00:00,6054.16,"64710","Residential Care Homes","REDACTED DATA","OPAL CARE HOMES LTD","7555989","http://opencorporates.com/companies/gb/7555989","151171250"
"London Borough of Redbridge","http://opendatacommunities.org/doc/london-borough-council/redbridge","6BADULTSOCIA","Adult Social Care","6COLDINCMENT","Older People (65 or over) incl. Older Mentally Ill","REV","Revenue","R4385","OP Nursing","09-INCOME","Income","09C","Customer and Client Receipts","8557","Nursing Home Charges","90959629","201902",23/05/2018 00:00:00,-2296.5,"64710","Residential Care Homes","REDACTED DATA","OPAL CARE HOMES LTD","7555989","http://opencorporates.com/companies/gb/7555989","151171250"
"London Borough of Redbridge","http://opendatacommunities.org/doc/london-borough-council/redbridge","6BADULTSOCIA","Adult Social Care","6COLDINCMENT","Older People (65 or over) incl. Older Mentally Ill","REV","Revenue","R4385","OP Nursing","05-THIRD","Third Party Payments","05H","Private contractors","6909","Nursing Homes","90959627","201902",18/05/2018 00:00:00,9988.47,"53350","Nursing Homes","REDACTED DATA","CARE UK COMMUNITY PARTNERSHIPS LTD","1668247","http://opencorporates.com/companies/gb/1668247",""
"London Borough of Redbridge","http://opendatacommunities.org/doc/london-borough-council/redbridge","6BADULTSOCIA","Adult Social Care","6COLDINCMENT","Older People (65 or over) incl. Older Mentally Ill","REV","Revenue","R4385","OP Nursing","05-THIRD","Third Party Payments","05H","Private contractors","6909","Nursing Homes","90959627","201902",18/05/2018 00:00:00,9988.47,"53350","Nursing Homes","REDACTED DATA","CARE UK COMMUNITY PARTNERSHIPS LTD","1668247","http://opencorporates.com/companies/gb/1668247",""
"London Borough of Redbridge","http://opendatacommunities.org/doc/london-borough-council/redbridge","6BADULTSOCIA","Adult Social Care","6COLDINCMENT","Older People (65 or over) incl. Older Mentally Ill","REV","Revenue","R4385","OP Nursing","05-THIRD","Third Party Payments","05H","Private contractors","6909","Nursing Homes","90959627","201902",18/05/2018 00:00:00,17153.24,"53350","Nursing Homes","REDACTED DATA","CARE UK COMMUNITY PARTNERSHIPS LTD","1668247","http://opencorporates.com/companies/gb/1668247",""
"London Borough of Redbridge","http://opendatacommunities.org/doc/london-borough-council/redbridge","6BADULTSOCIA","Adult Social Care","6COLDINCMENT","Older People (65 or over) incl. Older Mentally Ill","REV","Revenue","R4385","OP Nursing","09-INCOME","Income","09C","Customer and Client Receipts","8557","Nursing Home Charges","90959627","201902",18/05/2018 00:00:00,-9988.47,"53350","Nursing Homes","REDACTED DATA","CARE UK COMMUNITY PARTNERSHIPS LTD","1668247","http://opencorporates.com/companies/gb/1668247",""
"London Borough of Redbridge","http://opendatacommunities.org/doc/london-borough-council/redbridge","6BADULTSOCIA","Adult Social Care","6CADLEARNDIS","Adults Under 65 with Learning Disabilities","REV","Revenue","R4419","Shared Lives Scheme","06-TRANSFER","Transfer Payments","06B","Social Services Clients","7066","Supportive Lodgings (Transfer Payments)","90959626","201902",18/05/2018 00:00:00,1471.56,"90005","Home Care Services DP","REDACTED DATA","REDACTED DATA","",,""
"London Borough of Redbridge","http://opendatacommunities.org/doc/london-borough-council/redbridge","6BADULTSOCIA","Adult Social Care","6CADLEARNDIS","Adults Under 65 with Learning Disabilities","REV","Revenue","R4419","Shared Lives Scheme","06-TRANSFER","Transfer Payments","06B","Social Services Clients","7066","Supportive Lodgings (Transfer Payments)","90959625","201902",18/05/2018 00:00:00,1223.04,"90005","Home Care Services DP","REDACTED DATA","REDACTED DATA","",,""
"London Borough of Redbridge","http://opendatacommunities.org/doc/london-borough-council/redbridge","6BADULTSOCIA","Adult Social Care","6CADLEARNDIS","Adults Under 65 with Learning Disabilities","REV","Revenue","R4419","Shared Lives Scheme","06-TRANSFER","Transfer Payments","06B","Social Services Clients","7066","Supportive Lodgings (Transfer Payments)","90959624","201902",18/05/2018 00:00:00,1273,"1266","Accommodation Agencies - Residential","REDACTED DATA","SUSAN F EAGLAND","",,""
"London Borough of Redbridge","http://opendatacommunities.org/doc/london-borough-council/redbridge","6BADULTSOCIA","Adult Social Care","6CADLEARNDIS","Adults Under 65 with Learning Disabilities","REV","Revenue","R4419","Shared Lives Scheme","06-TRANSFER","Transfer Payments","06B","Social Services Clients","7066","Supportive Lodgings (Transfer Payments)","90959623","201902",18/05/2018 00:00:00,1223.04,"90005","Home Care Services DP","REDACTED DATA","REDACTED DATA","",,""
"London Borough of Redbridge","http://opendatacommunities.org/doc/london-borough-council/redbridge","6BADULTSOCIA","Adult Social Care","6CADLEARNDIS","Adults Under 65 with Learning Disabilities","REV","Revenue","R4419","Shared Lives Scheme","06-TRANSFER","Transfer Payments","06B","Social Services Clients","7066","Supportive Lodgings (Transfer Payments)","90959622","201902",18/05/2018 00:00:00,1223.04,"90005","Home Care Services DP","REDACTED DATA","REDACTED DATA","",,""
"London Borough of Redbridge","http://opendatacommunities.org/doc/london-borough-council/redbridge","6BADULTSOCIA","Adult Social Care","6CADLEARNDIS","Adults Under 65 with Learning Disabilities","REV","Revenue","R4419","Shared Lives Scheme","06-TRANSFER","Transfer Payments","06B","Social Services Clients","7066","Supportive Lodgings (Transfer Payments)","90959621","201902",18/05/2018 00:00:00,1223.04,"98758","Statutory Payments to Individuals","REDACTED DATA","REDACTED DATA","",,""
"London Borough of Redbridge","http://opendatacommunities.org/doc/london-borough-council/redbridge","6BADULTSOCIA","Adult Social Care","6CADLEARNDIS","Adults Under 65 with Learning Disabilities","REV","Revenue","R4419","Shared Lives Scheme","06-TRANSFER","Transfer Payments","06B","Social Services Clients","7066","Supportive Lodgings (Transfer Payments)","90959620","201902",18/05/2018 00:00:00,1223.04,"90005","Home Care Services DP","REDACTED DATA","REDACTED DATA","",,""
"London Borough of Redbridge","http://opendatacommunities.org/doc/london-borough-council/redbridge","6BADULTSOCIA","Adult Social Care","6CADLEARNDIS","Adults Under 65 with Learning Disabilities","REV","Revenue","R4419","Shared Lives Scheme","06-TRANSFER","Transfer Payments","06B","Social Services Clients","7066","Supportive Lodgings (Transfer Payments)","90959619","201902",18/05/2018 00:00:00,1720.12,"90005","Home Care Services DP","REDACTED DATA","REDACTED DATA","",,""
"London Borough of Redbridge","http://opendatacommunities.org/doc/london-borough-council/redbridge","6BADULTSOCIA","Adult Social Care","6CADLEARNDIS","Adults Under 65 with Learning Disabilities","REV","Revenue","R4419","Shared Lives Scheme","06-TRANSFER","Transfer Payments","06B","Social Services Clients","7066","Supportive Lodgings (Transfer Payments)","90959618","201902",18/05/2018 00:00:00,1223.04,"90005","Home Care Services DP","REDACTED DATA","REDACTED DATA","",,""
"London Borough of Redbridge","http://opendatacommunities.org/doc/london-borough-council/redbridge","6BADULTSOCIA","Adult Social Care","6CADLEARNDIS","Adults Under 65 with Learning Disabilities","REV","Revenue","R4419","Shared Lives Scheme","06-TRANSFER","Transfer Payments","06B","Social Services Clients","7066","Supportive Lodgings (Transfer Payments)","90959617","201902",18/05/2018 00:00:00,1223.04,"90005","Home Care Services DP","REDACTED DATA","REDACTED DATA","",,""
"London Borough of Redbridge","http://opendatacommunities.org/doc/london-borough-council/redbridge","6BADULTSOCIA","Adult Social Care","6CADLEARNDIS","Adults Under 65 with Learning Disabilities","REV","Revenue","R4419","Shared Lives Scheme","06-TRANSFER","Transfer Payments","06B","Social Services Clients","7066","Supportive Lodgings (Transfer Payments)","90959616","201902",18/05/2018 00:00:00,4914.63,"90005","Home Care Services DP","REDACTED DATA","REDACTED DATA","",,""
"London Borough of Redbridge","http://opendatacommunities.org/doc/london-borough-council/redbridge","6BADULTSOCIA","Adult Social Care","6CADLEARNDIS","Adults Under 65 with Learning Disabilities","REV","Revenue","R4419","Shared Lives Scheme","06-TRANSFER","Transfer Payments","06B","Social Services Clients","7066","Supportive Lodgings (Transfer Payments)","90959616","201902",18/05/2018 00:00:00,372.84,"90005","Home Care Services DP","REDACTED DATA","REDACTED DATA","",,""
"London Borough of Redbridge","http://opendatacommunities.org/doc/london-borough-council/redbridge","6BADULTSOCIA","Adult Social Care","6CADLEARNDIS","Adults Under 65 with Learning Disabilities","REV","Revenue","R4419","Shared Lives Scheme","06-TRANSFER","Transfer Payments","06B","Social Services Clients","7066","Supportive Lodgings (Transfer Payments)","90959616","201902",18/05/2018 00:00:00,1720.12,"90005","Home Care Services DP","REDACTED DATA","REDACTED DATA","",,""
"London Borough of Redbridge","http://opendatacommunities.org/doc/london-borough-council/redbridge","6BADULTSOCIA","Adult Social Care","6CADLEARNDIS","Adults Under 65 with Learning Disabilities","REV","Revenue","R4419","Shared Lives Scheme","06-TRANSFER","Transfer Payments","06B","Social Services Clients","7066","Supportive Lodgings (Transfer Payments)","90959616","201902",18/05/2018 00:00:00,71.02,"90005","Home Care Services DP","REDACTED DATA","REDACTED DATA","",,""
"London Borough of Redbridge","http://opendatacommunities.org/doc/london-borough-council/redbridge","6BADULTSOCIA","Adult Social Care","6CADLEARNDIS","Adults Under 65 with Learning Disabilities","REV","Revenue","R4419","Shared Lives Scheme","06-TRANSFER","Transfer Payments","06B","Social Services Clients","7066","Supportive Lodgings (Transfer Payments)","90959616","201902",18/05/2018 00:00:00,-4204.46,"90005","Home Care Services DP","REDACTED DATA","REDACTED DATA","",,""
"London Borough of Redbridge","http://opendatacommunities.org/doc/london-borough-council/redbridge","6BADULTSOCIA","Adult Social Care","6CADLEARNDIS","Adults Under 65 with Learning Disabilities","REV","Revenue","R4419","Shared Lives Scheme","06-TRANSFER","Transfer Payments","06B","Social Services Clients","7066","Supportive Lodgings (Transfer Payments)","90959615","201902",18/05/2018 00:00:00,1720.12,"90005","Home Care Services DP","REDACTED DATA","REDACTED DATA","",,""
"London Borough of Redbridge","http://opendatacommunities.org/doc/london-borough-council/redbridge","6BADULTSOCIA","Adult Social Care","6CADLEARNDIS","Adults Under 65 with Learning Disabilities","REV","Revenue","R4419","Shared Lives Scheme","06-TRANSFER","Transfer Payments","06B","Social Services Clients","7066","Supportive Lodgings (Transfer Payments)","90959613","201902",18/05/2018 00:00:00,1223.04,"90005","Home Care Services DP","REDACTED DATA","REDACTED DATA","",,""
"London Borough of Redbridge","http://opendatacommunities.org/doc/london-borough-council/redbridge","6BADULTSOCIA","Adult Social Care","6CADMENHLTH","Adults Under 65 with Mental Health Needs","REV","Revenue","R4190","MH - Residential Care","05-THIRD","Third Party Payments","05F","Voluntary associations","6802","Residential Homes","90959612","201902",18/05/2018 00:00:00,3817.08,"17020","Charities and Voluntary Organisations","REDACTED DATA","VIBRANCE","7094318","http://opencorporates.com/companies/gb/7094318",""
"London Borough of Redbridge","http://opendatacommunities.org/doc/london-borough-council/redbridge","6BADULTSOCIA","Adult Social Care","6CADLEARNDIS","Adults Under 65 with Learning Disabilities","REV","Revenue","R4188","LD - Residential Care","05-THIRD","Third Party Payments","05F","Voluntary associations","6802","Residential Homes","90959611","201902",18/05/2018 00:00:00,3704.16,"17020","Charities and Voluntary Organisations","REDACTED DATA","VIBRANCE","7094318","http://opencorporates.com/companies/gb/7094318",""
"London Borough of Redbridge","http://opendatacommunities.org/doc/london-borough-council/redbridge","6BADULTSOCIA","Adult Social Care","6CADMENHLTH","Adults Under 65 with Mental Health Needs","REV","Revenue","R4190","MH - Residential Care","05-THIRD","Third Party Payments","05F","Voluntary associations","6802","Residential Homes","90959610","201902",18/05/2018 00:00:00,3655.68,"17020","Charities and Voluntary Organisations","REDACTED DATA","VIBRANCE","7094318","http://opencorporates.com/companies/gb/7094318",""
"London Borough of Redbridge","http://opendatacommunities.org/doc/london-borough-council/redbridge","6BADULTSOCIA","Adult Social Care","6CADMENHLTH","Adults Under 65 with Mental Health Needs","REV","Revenue","R4190","MH - Residential Care","05-THIRD","Third Party Payments","05F","Voluntary associations","6802","Residential Homes","90959609","201902",18/05/2018 00:00:00,3817.88,"17020","Charities and Voluntary Organisations","REDACTED DATA","VIBRANCE","7094318","http://opencorporates.com/companies/gb/7094318",""
"London Borough of Redbridge","http://opendatacommunities.org/doc/london-borough-council/redbridge","6BADULTSOCIA","Adult Social Care","6CADMENHLTH","Adults Under 65 with Mental Health Needs","REV","Revenue","R4190","MH - Residential Care","09-INCOME","Income","09C","Customer and Client Receipts","8555","Accommodation Charges","90959609","201902",18/05/2018 00:00:00,-974.96,"17020","Charities and Voluntary Organisations","REDACTED DATA","VIBRANCE","7094318","http://opencorporates.com/companies/gb/7094318",""
"London Borough of Redbridge","http://opendatacommunities.org/doc/london-borough-council/redbridge","6BADULTSOCIA","Adult Social Care","6COLDINCMENT","Older People (65 or over) incl. Older Mentally Ill","REV","Revenue","R4378","OP Residential","05-THIRD","Third Party Payments","05F","Voluntary associations","6802","Residential Homes","90959608","201902",18/05/2018 00:00:00,3855.24,"17020","Charities and Voluntary Organisations","REDACTED DATA","VIBRANCE","7094318","http://opencorporates.com/companies/gb/7094318",""
"London Borough of Redbridge","http://opendatacommunities.org/doc/london-borough-council/redbridge","6BADULTSOCIA","Adult Social Care","6CADMENHLTH","Adults Under 65 with Mental Health Needs","REV","Revenue","R4190","MH - Residential Care","05-THIRD","Third Party Payments","05F","Voluntary associations","6802","Residential Homes","90959607","201902",18/05/2018 00:00:00,3817.08,"17020","Charities and Voluntary Organisations","REDACTED DATA","VIBRANCE","7094318","http://opencorporates.com/companies/gb/7094318",""
"London Borough of Redbridge","http://opendatacommunities.org/doc/london-borough-council/redbridge","6BADULTSOCIA","Adult Social Care","6CADMENHLTH","Adults Under 65 with Mental Health Needs","REV","Revenue","R4190","MH - Residential Care","05-THIRD","Third Party Payments","05F","Voluntary associations","6802","Residential Homes","90959606","201902",18/05/2018 00:00:00,3855.24,"17020","Charities and Voluntary Organisations","REDACTED DATA","VIBRANCE","7094318","http://opencorporates.com/companies/gb/7094318",""
"London Borough of Redbridge","http://opendatacommunities.org/doc/london-borough-council/redbridge","6BADULTSOCIA","Adult Social Care","6CADMENHLTH","Adults Under 65 with Mental Health Needs","REV","Revenue","R4190","MH - Residential Care","09-INCOME","Income","09C","Customer and Client Receipts","8555","Accommodation Charges","90959606","201902",18/05/2018 00:00:00,-402.6,"17020","Charities and Voluntary Organisations","REDACTED DATA","VIBRANCE","7094318","http://opencorporates.com/companies/gb/7094318",""
"London Borough of Redbridge","http://opendatacommunities.org/doc/london-borough-council/redbridge","6BADULTSOCIA","Adult Social Care","6CADMENHLTH","Adults Under 65 with Mental Health Needs","REV","Revenue","R4190","MH - Residential Care","05-THIRD","Third Party Payments","05F","Voluntary associations","6802","Residential Homes","90959605","201902",18/05/2018 00:00:00,3817.88,"17020","Charities and Voluntary Organisations","REDACTED DATA","VIBRANCE","7094318","http://opencorporates.com/companies/gb/7094318",""
"London Borough of Redbridge","http://opendatacommunities.org/doc/london-borough-council/redbridge","6BADULTSOCIA","Adult Social Care","6CADMENHLTH","Adults Under 65 with Mental Health Needs","REV","Revenue","R4190","MH - Residential Care","05-THIRD","Third Party Payments","05F","Voluntary associations","6802","Residential Homes","90959604","201902",18/05/2018 00:00:00,3550.32,"17020","Charities and Voluntary Organisations","REDACTED DATA","VIBRANCE","7094318","http://opencorporates.com/companies/gb/7094318",""
"London Borough of Redbridge","http://opendatacommunities.org/doc/london-borough-council/redbridge","6BADULTSOCIA","Adult Social Care","6CADMENHLTH","Adults Under 65 with Mental Health Needs","REV","Revenue","R4190","MH - Residential Care","09-INCOME","Income","09C","Customer and Client Receipts","8555","Accommodation Charges","90959604","201902",18/05/2018 00:00:00,-409,"17020","Charities and Voluntary Organisations","REDACTED DATA","VIBRANCE","7094318","http://opencorporates.com/companies/gb/7094318",""
"London Borough of Redbridge","http://opendatacommunities.org/doc/london-borough-council/redbridge","6BADULTSOCIA","Adult Social Care","6CADMENHLTH","Adults Under 65 with Mental Health Needs","REV","Revenue","R4190","MH - Residential Care","09-INCOME","Income","09C","Customer and Client Receipts","8555","Accommodation Charges","90959604","201902",18/05/2018 00:00:00,-9.6,"17020","Charities and Voluntary Organisations","REDACTED DATA","VIBRANCE","7094318","http://opencorporates.com/companies/gb/7094318",""
"London Borough of Redbridge","http://opendatacommunities.org/doc/london-borough-council/redbridge","6BADULTSOCIA","Adult Social Care","6CADLEARNDIS","Adults Under 65 with Learning Disabilities","REV","Revenue","R4188","LD - Residential Care","05-THIRD","Third Party Payments","05F","Voluntary associations","6802","Residential Homes","90959603","201902",16/05/2018 00:00:00,8423.08,"44166","Housing Associations, Societies, Trusts and Co-operatives","REDACTED DATA","SUNCARE RECOVERY LTD T/AS TWO RIVERS","6312031","http://opencorporates.com/companies/gb/6312031",""
"London Borough of Redbridge","http://opendatacommunities.org/doc/london-borough-council/redbridge","6BADULTSOCIA","Adult Social Care","6CADLEARNDIS","Adults Under 65 with Learning Disabilities","REV","Revenue","R4188","LD - Residential Care","09-INCOME","Income","09C","Customer and Client Receipts","8555","Accommodation Charges","90959603","201902",16/05/2018 00:00:00,-409,"44166","Housing Associations, Societies, Trusts and Co-operatives","REDACTED DATA","SUNCARE RECOVERY LTD T/AS TWO RIVERS","6312031","http://opencorporates.com/companies/gb/6312031",""
"London Borough of Redbridge","http://opendatacommunities.org/doc/london-borough-council/redbridge","6BADULTSOCIA","Adult Social Care","6CADPHYSDIS","Adults Under 65 with Phys Disab or Sensory Impair","REV","Revenue","R4186","PD Residential","05-THIRD","Third Party Payments","05F","Voluntary associations","6802","Residential Homes","90959601","201902",18/05/2018 00:00:00,3158.64,"64710","Residential Care Homes","REDACTED DATA","TEALK SERVICES LTD (THE BEECHES- ILFORD)","4203171","http://opencorporates.com/companies/gb/4203171",""
"London Borough of Redbridge","http://opendatacommunities.org/doc/london-borough-council/redbridge","6BADULTSOCIA","Adult Social Care","6CADPHYSDIS","Adults Under 65 with Phys Disab or Sensory Impair","REV","Revenue","R4186","PD Residential","09-INCOME","Income","09C","Customer and Client Receipts","8555","Accommodation Charges","90959601","201902",18/05/2018 00:00:00,-327,"64710","Residential Care Homes","REDACTED DATA","TEALK SERVICES LTD (THE BEECHES- ILFORD)","4203171","http://opencorporates.com/companies/gb/4203171",""
"London Borough of Redbridge","http://opendatacommunities.org/doc/london-borough-council/redbridge","6BADULTSOCIA","Adult Social Care","6COLDINCMENT","Older People (65 or over) incl. Older Mentally Ill","REV","Revenue","R4378","OP Residential","05-THIRD","Third Party Payments","05F","Voluntary associations","6802","Residential Homes","90959600","201902",18/05/2018 00:00:00,3053.36,"64710","Residential Care Homes","REDACTED DATA","TEALK SERVICES LTD (THE BEECHES- ILFORD)","4203171","http://opencorporates.com/companies/gb/4203171",""
"London Borough of Redbridge","http://opendatacommunities.org/doc/london-borough-council/redbridge","6BADULTSOCIA","Adult Social Care","6COLDINCMENT","Older People (65 or over) incl. Older Mentally Ill","REV","Revenue","R4378","OP Residential","09-INCOME","Income","09C","Customer and Client Receipts","8555","Accommodation Charges","90959600","201902",18/05/2018 00:00:00,-552.4,"64710","Residential Care Homes","REDACTED DATA","TEALK SERVICES LTD (THE BEECHES- ILFORD)","4203171","http://opencorporates.com/companies/gb/4203171",""
"London Borough of Redbridge","http://opendatacommunities.org/doc/london-borough-council/redbridge","6BADULTSOCIA","Adult Social Care","6COLDINCMENT","Older People (65 or over) incl. Older Mentally Ill","REV","Revenue","R4378","OP Residential","05-THIRD","Third Party Payments","05F","Voluntary associations","6802","Residential Homes","90959599","201902",18/05/2018 00:00:00,3060,"64710","Residential Care Homes","REDACTED DATA","TEALK SERVICES LTD (THE BEECHES- ILFORD)","4203171","http://opencorporates.com/companies/gb/4203171",""
"London Borough of Redbridge","http://opendatacommunities.org/doc/london-borough-council/redbridge","6BADULTSOCIA","Adult Social Care","6COLDINCMENT","Older People (65 or over) incl. Older Mentally Ill","REV","Revenue","R4378","OP Residential","09-INCOME","Income","09C","Customer and Client Receipts","8555","Accommodation Charges","90959599","201902",18/05/2018 00:00:00,-639.04,"64710","Residential Care Homes","REDACTED DATA","TEALK SERVICES LTD (THE BEECHES- ILFORD)","4203171","http://opencorporates.com/companies/gb/4203171",""
"London Borough of Redbridge","http://opendatacommunities.org/doc/london-borough-council/redbridge","6BADULTSOCIA","Adult Social Care","6COLDINCMENT","Older People (65 or over) incl. Older Mentally Ill","REV","Revenue","R4378","OP Residential","05-THIRD","Third Party Payments","05F","Voluntary associations","6802","Residential Homes","90959598","201902",18/05/2018 00:00:00,2737.48,"64710","Residential Care Homes","REDACTED DATA","TEALK SERVICES LTD (THE BEECHES- ILFORD)","4203171","http://opencorporates.com/companies/gb/4203171",""
"London Borough of Redbridge","http://opendatacommunities.org/doc/london-borough-council/redbridge","6BADULTSOCIA","Adult Social Care","6COLDINCMENT","Older People (65 or over) incl. Older Mentally Ill","REV","Revenue","R4378","OP Residential","05-THIRD","Third Party Payments","05F","Voluntary associations","6802","Residential Homes","90959597","201902",18/05/2018 00:00:00,3454.12,"64710","Residential Care Homes","REDACTED DATA","TEALK SERVICES LTD (THE BEECHES- ILFORD)","4203171","http://opencorporates.com/companies/gb/4203171",""
"London Borough of Redbridge","http://opendatacommunities.org/doc/london-borough-council/redbridge","6BADULTSOCIA","Adult Social Care","6CADMENHLTH","Adults Under 65 with Mental Health Needs","REV","Revenue","R4190","MH - Residential Care","05-THIRD","Third Party Payments","05F","Voluntary associations","6802","Residential Homes","90959596","201902",18/05/2018 00:00:00,4061.2,"64710","Residential Care Homes","REDACTED DATA","TEALK SERVICES LTD (THE BEECHES- ILFORD)","4203171","http://opencorporates.com/companies/gb/4203171",""
"London Borough of Redbridge","http://opendatacommunities.org/doc/london-borough-council/redbridge","6BADULTSOCIA","Adult Social Care","6COLDINCMENT","Older People (65 or over) incl. Older Mentally Ill","REV","Revenue","R4378","OP Residential","05-THIRD","Third Party Payments","05F","Voluntary associations","6802","Residential Homes","90959595","201902",18/05/2018 00:00:00,2737.52,"64710","Residential Care Homes","REDACTED DATA","TEALK SERVICES LTD (THE BEECHES- ILFORD)","4203171","http://opencorporates.com/companies/gb/4203171",""
"London Borough of Redbridge","http://opendatacommunities.org/doc/london-borough-council/redbridge","6BADULTSOCIA","Adult Social Care","6COLDINCMENT","Older People (65 or over) incl. Older Mentally Ill","REV","Revenue","R4378","OP Residential","09-INCOME","Income","09C","Customer and Client Receipts","8555","Accommodation Charges","90959595","201902",18/05/2018 00:00:00,-538.4,"64710","Residential Care Homes","REDACTED DATA","TEALK SERVICES LTD (THE BEECHES- ILFORD)","4203171","http://opencorporates.com/companies/gb/4203171",""
"London Borough of Redbridge","http://opendatacommunities.org/doc/london-borough-council/redbridge","6BADULTSOCIA","Adult Social Care","6CADMENHLTH","Adults Under 65 with Mental Health Needs","REV","Revenue","R4190","MH - Residential Care","05-THIRD","Third Party Payments","05F","Voluntary associations","6802","Residential Homes","90959594","201902",18/05/2018 00:00:00,1566.08,"64710","Residential Care Homes","REDACTED DATA","TEALK SERVICES LTD (THE BEECHES- ILFORD)","4203171","http://opencorporates.com/companies/gb/4203171",""
"London Borough of Redbridge","http://opendatacommunities.org/doc/london-borough-council/redbridge","6BADULTSOCIA","Adult Social Care","6CADMENHLTH","Adults Under 65 with Mental Health Needs","REV","Revenue","R4190","MH - Residential Care","09-INCOME","Income","09C","Customer and Client Receipts","8555","Accommodation Charges","90959594","201902",18/05/2018 00:00:00,-458.4,"64710","Residential Care Homes","REDACTED DATA","TEALK SERVICES LTD (THE BEECHES- ILFORD)","4203171","http://opencorporates.com/companies/gb/4203171",""
"London Borough of Redbridge","http://opendatacommunities.org/doc/london-borough-council/redbridge","6BADULTSOCIA","Adult Social Care","6COLDINCMENT","Older People (65 or over) incl. Older Mentally Ill","REV","Revenue","R4378","OP Residential","05-THIRD","Third Party Payments","05F","Voluntary associations","6802","Residential Homes","90959593","201902",18/05/2018 00:00:00,2737.52,"64710","Residential Care Homes","REDACTED DATA","TEALK SERVICES LTD (THE BEECHES- ILFORD)","4203171","http://opencorporates.com/companies/gb/4203171",""
"London Borough of Redbridge","http://opendatacommunities.org/doc/london-borough-council/redbridge","6BADULTSOCIA","Adult Social Care","6COLDINCMENT","Older People (65 or over) incl. Older Mentally Ill","REV","Revenue","R4378","OP Residential","05-THIRD","Third Party Payments","05F","Voluntary associations","6802","Residential Homes","90959592","201902",18/05/2018 00:00:00,2737.52,"64710","Residential Care Homes","REDACTED DATA","TEALK SERVICES LTD (THE BEECHES- ILFORD)","4203171","http://opencorporates.com/companies/gb/4203171",""
"London Borough of Redbridge","http://opendatacommunities.org/doc/london-borough-council/redbridge","6BADULTSOCIA","Adult Social Care","6COLDINCMENT","Older People (65 or over) incl. Older Mentally Ill","REV","Revenue","R4378","OP Residential","05-THIRD","Third Party Payments","05F","Voluntary associations","6802","Residential Homes","90959591","201902",18/05/2018 00:00:00,2526.92,"64710","Residential Care Homes","REDACTED DATA","TEALK SERVICES LTD (THE BEECHES- ILFORD)","4203171","http://opencorporates.com/companies/gb/4203171",""
"London Borough of Redbridge","http://opendatacommunities.org/doc/london-borough-council/redbridge","6BADULTSOCIA","Adult Social Care","6COLDINCMENT","Older People (65 or over) incl. Older Mentally Ill","REV","Revenue","R4378","OP Residential","09-INCOME","Income","09C","Customer and Client Receipts","8555","Accommodation Charges","90959591","201902",18/05/2018 00:00:00,-736.2,"64710","Residential Care Homes","REDACTED DATA","TEALK SERVICES LTD (THE BEECHES- ILFORD)","4203171","http://opencorporates.com/companies/gb/4203171",""
"London Borough of Redbridge","http://opendatacommunities.org/doc/london-borough-council/redbridge","6BADULTSOCIA","Adult Social Care","6COTHADSERV","Other Adult Services","REV","Revenue","R4201","LD - Care Packages","05-THIRD","Third Party Payments","05H","Private contractors","6910","Care Packages","90959591","201902",18/05/2018 00:00:00,2400,"64710","Residential Care Homes","REDACTED DATA","TEALK SERVICES LTD (THE BEECHES- ILFORD)","4203171","http://opencorporates.com/companies/gb/4203171",""
"London Borough of Redbridge","http://opendatacommunities.org/doc/london-borough-council/redbridge","6BADULTSOCIA","Adult Social Care","6CADMENHLTH","Adults Under 65 with Mental Health Needs","REV","Revenue","R4190","MH - Residential Care","05-THIRD","Third Party Payments","05F","Voluntary associations","6802","Residential Homes","90959590","201902",18/05/2018 00:00:00,3110.8,"64710","Residential Care Homes","REDACTED DATA","TEALK SERVICES LTD (THE BEECHES- ILFORD)","4203171","http://opencorporates.com/companies/gb/4203171",""
"London Borough of Redbridge","http://opendatacommunities.org/doc/london-borough-council/redbridge","6BADULTSOCIA","Adult Social Care","6CADMENHLTH","Adults Under 65 with Mental Health Needs","REV","Revenue","R4190","MH - Residential Care","05-THIRD","Third Party Payments","05F","Voluntary associations","6802","Residential Homes","90959589","201902",18/05/2018 00:00:00,3158.64,"64710","Residential Care Homes","REDACTED DATA","TEALK SERVICES LTD (THE BEECHES- ILFORD)","4203171","http://opencorporates.com/companies/gb/4203171",""
"London Borough of Redbridge","http://opendatacommunities.org/doc/london-borough-council/redbridge","6BADULTSOCIA","Adult Social Care","6CADMENHLTH","Adults Under 65 with Mental Health Needs","REV","Revenue","R4190","MH - Residential Care","05-THIRD","Third Party Payments","05F","Voluntary associations","6802","Residential Homes","90959588","201902",18/05/2018 00:00:00,3051.64,"64710","Residential Care Homes","REDACTED DATA","TEALK SERVICES LTD (THE BEECHES- ILFORD)","4203171","http://opencorporates.com/companies/gb/4203171",""
"London Borough of Redbridge","http://opendatacommunities.org/doc/london-borough-council/redbridge","6BADULTSOCIA","Adult Social Care","6CADMENHLTH","Adults Under 65 with Mental Health Needs","REV","Revenue","R4190","MH - Residential Care","09-INCOME","Income","09C","Customer and Client Receipts","8555","Accommodation Charges","90959588","201902",18/05/2018 00:00:00,-402.6,"64710","Residential Care Homes","REDACTED DATA","TEALK SERVICES LTD (THE BEECHES- ILFORD)","4203171","http://opencorporates.com/companies/gb/4203171",""
"London Borough of Redbridge","http://opendatacommunities.org/doc/london-borough-council/redbridge","6BADULTSOCIA","Adult Social Care","6CADMENHLTH","Adults Under 65 with Mental Health Needs","REV","Revenue","R4190","MH - Residential Care","05-THIRD","Third Party Payments","05F","Voluntary associations","6802","Residential Homes","90959587","201902",18/05/2018 00:00:00,2834.6,"64710","Residential Care Homes","REDACTED DATA","TEALK SERVICES LTD (THE BEECHES- ILFORD)","4203171","http://opencorporates.com/companies/gb/4203171",""
"London Borough of Redbridge","http://opendatacommunities.org/doc/london-borough-council/redbridge","6BADULTSOCIA","Adult Social Care","6CADMENHLTH","Adults Under 65 with Mental Health Needs","REV","Revenue","R4190","MH - Residential Care","05-THIRD","Third Party Payments","05F","Voluntary associations","6802","Residential Homes","90959586","201902",18/05/2018 00:00:00,3379.68,"64710","Residential Care Homes","REDACTED DATA","TEALK SERVICES LTD (THE BEECHES- ILFORD)","4203171","http://opencorporates.com/companies/gb/4203171",""
"London Borough of Redbridge","http://opendatacommunities.org/doc/london-borough-council/redbridge","6BADULTSOCIA","Adult Social Care","6CADMENHLTH","Adults Under 65 with Mental Health Needs","REV","Revenue","R4190","MH - Residential Care","05-THIRD","Third Party Payments","05F","Voluntary associations","6802","Residential Homes","90959585","201902",18/05/2018 00:00:00,2948.08,"64710","Residential Care Homes","REDACTED DATA","TEALK SERVICES LTD (THE BEECHES- ILFORD)","4203171","http://opencorporates.com/companies/gb/4203171",""
"London Borough of Redbridge","http://opendatacommunities.org/doc/london-borough-council/redbridge","6BADULTSOCIA","Adult Social Care","6CADLEARNDIS","Adults Under 65 with Learning Disabilities","REV","Revenue","R4188","LD - Residential Care","05-THIRD","Third Party Payments","05F","Voluntary associations","6802","Residential Homes","90959584","201902",18/05/2018 00:00:00,4049.24,"64710","Residential Care Homes","REDACTED DATA","TEALK SERVICES LTD (THE BEECHES- ILFORD)","4203171","http://opencorporates.com/companies/gb/4203171",""
"London Borough of Redbridge","http://opendatacommunities.org/doc/london-borough-council/redbridge","6BADULTSOCIA","Adult Social Care","6CADLEARNDIS","Adults Under 65 with Learning Disabilities","REV","Revenue","R4188","LD - Residential Care","09-INCOME","Income","09C","Customer and Client Receipts","8555","Accommodation Charges","90959584","201902",18/05/2018 00:00:00,-327,"64710","Residential Care Homes","REDACTED DATA","TEALK SERVICES LTD (THE BEECHES- ILFORD)","4203171","http://opencorporates.com/companies/gb/4203171",""
"London Borough of Redbridge","http://opendatacommunities.org/doc/london-borough-council/redbridge","6BADULTSOCIA","Adult Social Care","6CADLEARNDIS","Adults Under 65 with Learning Disabilities","REV","Revenue","R4188","LD - Residential Care","05-THIRD","Third Party Payments","05F","Voluntary associations","6802","Residential Homes","90959583","201902",18/05/2018 00:00:00,4061.2,"64710","Residential Care Homes","REDACTED DATA","TEALK SERVICES LTD (THE BEECHES- ILFORD)","4203171","http://opencorporates.com/companies/gb/4203171",""
"London Borough of Redbridge","http://opendatacommunities.org/doc/london-borough-council/redbridge","6BADULTSOCIA","Adult Social Care","6CADLEARNDIS","Adults Under 65 with Learning Disabilities","REV","Revenue","R4188","LD - Residential Care","09-INCOME","Income","09C","Customer and Client Receipts","8555","Accommodation Charges","90959583","201902",18/05/2018 00:00:00,-192.8,"64710","Residential Care Homes","REDACTED DATA","TEALK SERVICES LTD (THE BEECHES- ILFORD)","4203171","http://opencorporates.com/companies/gb/4203171",""
"London Borough of Redbridge","http://opendatacommunities.org/doc/london-borough-council/redbridge","6BADULTSOCIA","Adult Social Care","6CADLEARNDIS","Adults Under 65 with Learning Disabilities","REV","Revenue","R4188","LD - Residential Care","05-THIRD","Third Party Payments","05F","Voluntary associations","6802","Residential Homes","90959582","201902",18/05/2018 00:00:00,3847.16,"64710","Residential Care Homes","REDACTED DATA","TEALK SERVICES LTD (THE BEECHES- ILFORD)","4203171","http://opencorporates.com/companies/gb/4203171",""
"London Borough of Redbridge","http://opendatacommunities.org/doc/london-borough-council/redbridge","6BADULTSOCIA","Adult Social Care","6CADLEARNDIS","Adults Under 65 with Learning Disabilities","REV","Revenue","R4188","LD - Residential Care","09-INCOME","Income","09C","Customer and Client Receipts","8555","Accommodation Charges","90959582","201902",18/05/2018 00:00:00,-552.4,"64710","Residential Care Homes","REDACTED DATA","TEALK SERVICES LTD (THE BEECHES- ILFORD)","4203171","http://opencorporates.com/companies/gb/4203171",""
"London Borough of Redbridge","http://opendatacommunities.org/doc/london-borough-council/redbridge","6BADULTSOCIA","Adult Social Care","6CADLEARNDIS","Adults Under 65 with Learning Disabilities","REV","Revenue","R4188","LD - Residential Care","05-THIRD","Third Party Payments","05F","Voluntary associations","6802","Residential Homes","90959581","201902",18/05/2018 00:00:00,3702.44,"64710","Residential Care Homes","REDACTED DATA","TEALK SERVICES LTD (THE BEECHES- ILFORD)","4203171","http://opencorporates.com/companies/gb/4203171",""
"London Borough of Redbridge","http://opendatacommunities.org/doc/london-borough-council/redbridge","6BADULTSOCIA","Adult Social Care","6CADLEARNDIS","Adults Under 65 with Learning Disabilities","REV","Revenue","R4188","LD - Residential Care","09-INCOME","Income","09C","Customer and Client Receipts","8555","Accommodation Charges","90959581","201902",18/05/2018 00:00:00,-391,"64710","Residential Care Homes","REDACTED DATA","TEALK SERVICES LTD (THE BEECHES- ILFORD)","4203171","http://opencorporates.com/companies/gb/4203171",""
"London Borough of Redbridge","http://opendatacommunities.org/doc/london-borough-council/redbridge","6BADULTSOCIA","Adult Social Care","6CADLEARNDIS","Adults Under 65 with Learning Disabilities","REV","Revenue","R4188","LD - Residential Care","05-THIRD","Third Party Payments","05F","Voluntary associations","6802","Residential Homes","90959580","201902",18/05/2018 00:00:00,4925.28,"64710","Residential Care Homes","REDACTED DATA","TEALK SERVICES LTD (THE BEECHES- ILFORD)","4203171","http://opencorporates.com/companies/gb/4203171",""
"London Borough of Redbridge","http://opendatacommunities.org/doc/london-borough-council/redbridge","6BADULTSOCIA","Adult Social Care","6CADLEARNDIS","Adults Under 65 with Learning Disabilities","REV","Revenue","R4188","LD - Residential Care","09-INCOME","Income","09C","Customer and Client Receipts","8555","Accommodation Charges","90959580","201902",18/05/2018 00:00:00,-402.6,"64710","Residential Care Homes","REDACTED DATA","TEALK SERVICES LTD (THE BEECHES- ILFORD)","4203171","http://opencorporates.com/companies/gb/4203171",""
"London Borough of Redbridge","http://opendatacommunities.org/doc/london-borough-council/redbridge","6BADULTSOCIA","Adult Social Care","6CADLEARNDIS","Adults Under 65 with Learning Disabilities","REV","Revenue","R4188","LD - Residential Care","05-THIRD","Third Party Payments","05F","Voluntary associations","6802","Residential Homes","90959579","201902",18/05/2018 00:00:00,3390.8,"64710","Residential Care Homes","REDACTED DATA","TEALK SERVICES LTD (THE BEECHES- ILFORD)","4203171","http://opencorporates.com/companies/gb/4203171",""
"London Borough of Redbridge","http://opendatacommunities.org/doc/london-borough-council/redbridge","6BADULTSOCIA","Adult Social Care","6CADLEARNDIS","Adults Under 65 with Learning Disabilities","REV","Revenue","R4188","LD - Residential Care","09-INCOME","Income","09C","Customer and Client Receipts","8555","Accommodation Charges","90959579","201902",18/05/2018 00:00:00,-552.4,"64710","Residential Care Homes","REDACTED DATA","TEALK SERVICES LTD (THE BEECHES- ILFORD)","4203171","http://opencorporates.com/companies/gb/4203171",""
"London Borough of Redbridge","http://opendatacommunities.org/doc/london-borough-council/redbridge","6BADULTSOCIA","Adult Social Care","6COLDINCMENT","Older People (65 or over) incl. Older Mentally Ill","REV","Revenue","R4378","OP Residential","05-THIRD","Third Party Payments","05F","Voluntary associations","6802","Residential Homes","90959578","201902",18/05/2018 00:00:00,2254.4,"64760","Rest and Retirement Homes","REDACTED DATA","ST JOSEPH'S REST HOME","",,""
"London Borough of Redbridge","http://opendatacommunities.org/doc/london-borough-council/redbridge","6BADULTSOCIA","Adult Social Care","6COLDINCMENT","Older People (65 or over) incl. Older Mentally Ill","REV","Revenue","R4378","OP Residential","09-INCOME","Income","09C","Customer and Client Receipts","8555","Accommodation Charges","90959578","201902",18/05/2018 00:00:00,-552.4,"64760","Rest and Retirement Homes","REDACTED DATA","ST JOSEPH'S REST HOME","",,""
"London Borough of Redbridge","http://opendatacommunities.org/doc/london-borough-council/redbridge","6BADULTSOCIA","Adult Social Care","6COLDINCMENT","Older People (65 or over) incl. Older Mentally Ill","REV","Revenue","R4378","OP Residential","05-THIRD","Third Party Payments","05F","Voluntary associations","6802","Residential Homes","90959577","201902",18/05/2018 00:00:00,2254.4,"64760","Rest and Retirement Homes","REDACTED DATA","ST JOSEPH'S REST HOME","",,""
"London Borough of Redbridge","http://opendatacommunities.org/doc/london-borough-council/redbridge","6BADULTSOCIA","Adult Social Care","6COLDINCMENT","Older People (65 or over) incl. Older Mentally Ill","REV","Revenue","R4378","OP Residential","05-THIRD","Third Party Payments","05F","Voluntary associations","6802","Residential Homes","90959576","201902",18/05/2018 00:00:00,2049.6,"64760","Rest and Retirement Homes","REDACTED DATA","ST JOSEPH'S REST HOME","",,""
"London Borough of Redbridge","http://opendatacommunities.org/doc/london-borough-council/redbridge","6BADULTSOCIA","Adult Social Care","6COLDINCMENT","Older People (65 or over) incl. Older Mentally Ill","REV","Revenue","R4378","OP Residential","09-INCOME","Income","09C","Customer and Client Receipts","8555","Accommodation Charges","90959576","201902",18/05/2018 00:00:00,-552.4,"64760","Rest and Retirement Homes","REDACTED DATA","ST JOSEPH'S REST HOME","",,""
"London Borough of Redbridge","http://opendatacommunities.org/doc/london-borough-council/redbridge","6BADULTSOCIA","Adult Social Care","6COLDINCMENT","Older People (65 or over) incl. Older Mentally Ill","REV","Revenue","R4378","OP Residential","05-THIRD","Third Party Payments","05F","Voluntary associations","6802","Residential Homes","90959575","201902",18/05/2018 00:00:00,2254.4,"64760","Rest and Retirement Homes","REDACTED DATA","ST JOSEPH'S REST HOME","",,""
"London Borough of Redbridge","http://opendatacommunities.org/doc/london-borough-council/redbridge","6BADULTSOCIA","Adult Social Care","6COLDINCMENT","Older People (65 or over) incl. Older Mentally Ill","REV","Revenue","R4378","OP Residential","09-INCOME","Income","09C","Customer and Client Receipts","8555","Accommodation Charges","90959575","201902",18/05/2018 00:00:00,-567.8,"64760","Rest and Retirement Homes","REDACTED DATA","ST JOSEPH'S REST HOME","",,""
"London Borough of Redbridge","http://opendatacommunities.org/doc/london-borough-council/redbridge","6BADULTSOCIA","Adult Social Care","6COLDINCMENT","Older People (65 or over) incl. Older Mentally Ill","REV","Revenue","R4378","OP Residential","05-THIRD","Third Party Payments","05F","Voluntary associations","6802","Residential Homes","90959574","201902",18/05/2018 00:00:00,2254.4,"64760","Rest and Retirement Homes","REDACTED DATA","ST JOSEPH'S REST HOME","",,""
"London Borough of Redbridge","http://opendatacommunities.org/doc/london-borough-council/redbridge","6BADULTSOCIA","Adult Social Care","6COLDINCMENT","Older People (65 or over) incl. Older Mentally Ill","REV","Revenue","R4378","OP Residential","05-THIRD","Third Party Payments","05F","Voluntary associations","6802","Residential Homes","90959574","201902",18/05/2018 00:00:00,69.8,"64760","Rest and Retirement Homes","REDACTED DATA","ST JOSEPH'S REST HOME","",,""
"London Borough of Redbridge","http://opendatacommunities.org/doc/london-borough-council/redbridge","6BADULTSOCIA","Adult Social Care","6COLDINCMENT","Older People (65 or over) incl. Older Mentally Ill","REV","Revenue","R4378","OP Residential","09-INCOME","Income","09C","Customer and Client Receipts","8555","Accommodation Charges","90959574","201902",18/05/2018 00:00:00,-694.48,"64760","Rest and Retirement Homes","REDACTED DATA","ST JOSEPH'S REST HOME","",,""
"London Borough of Redbridge","http://opendatacommunities.org/doc/london-borough-council/redbridge","6BADULTSOCIA","Adult Social Care","6COLDINCMENT","Older People (65 or over) incl. Older Mentally Ill","REV","Revenue","R4378","OP Residential","09-INCOME","Income","09C","Customer and Client Receipts","8555","Accommodation Charges","90959574","201902",18/05/2018 00:00:00,-69.8,"64760","Rest and Retirement Homes","REDACTED DATA","ST JOSEPH'S REST HOME","",,""
"London Borough of Redbridge","http://opendatacommunities.org/doc/london-borough-council/redbridge","6BADULTSOCIA","Adult Social Care","6CADPHYSDIS","Adults Under 65 with Phys Disab or Sensory Impair","REV","Revenue","R4186","PD Residential","05-THIRD","Third Party Payments","05F","Voluntary associations","6802","Residential Homes","90959573","201902",18/05/2018 00:00:00,2254.4,"64760","Rest and Retirement Homes","REDACTED DATA","ST JOSEPH'S REST HOME","",,""
"London Borough of Redbridge","http://opendatacommunities.org/doc/london-borough-council/redbridge","6BADULTSOCIA","Adult Social Care","6CADPHYSDIS","Adults Under 65 with Phys Disab or Sensory Impair","REV","Revenue","R4186","PD Residential","09-INCOME","Income","09C","Customer and Client Receipts","8555","Accommodation Charges","90959573","201902",18/05/2018 00:00:00,-537.8,"64760","Rest and Retirement Homes","REDACTED DATA","ST JOSEPH'S REST HOME","",,""
"London Borough of Redbridge","http://opendatacommunities.org/doc/london-borough-council/redbridge","6BADULTSOCIA","Adult Social Care","6CADLEARNDIS","Adults Under 65 with Learning Disabilities","REV","Revenue","R4188","LD - Residential Care","05-THIRD","Third Party Payments","05F","Voluntary associations","6802","Residential Homes","90959571","201902",18/05/2018 00:00:00,3722.88,"64710","Residential Care Homes","REDACTED DATA","ST ELIZABETH'S CENTRE","3492921","http://opencorporates.com/companies/gb/3492921","216707373"
"London Borough of Redbridge","http://opendatacommunities.org/doc/london-borough-council/redbridge","6BADULTSOCIA","Adult Social Care","6CADLEARNDIS","Adults Under 65 with Learning Disabilities","REV","Revenue","R4188","LD - Residential Care","09-INCOME","Income","09C","Customer and Client Receipts","8555","Accommodation Charges","90959571","201902",18/05/2018 00:00:00,-378.6,"64710","Residential Care Homes","REDACTED DATA","ST ELIZABETH'S CENTRE","3492921","http://opencorporates.com/companies/gb/3492921","216707373"
"London Borough of Redbridge","http://opendatacommunities.org/doc/london-borough-council/redbridge","6BADULTSOCIA","Adult Social Care","6COLDINCMENT","Older People (65 or over) incl. Older Mentally Ill","REV","Revenue","R4385","OP Nursing","05-THIRD","Third Party Payments","05H","Private contractors","6909","Nursing Homes","90959567","201902",18/05/2018 00:00:00,2067.4,"64710","Residential Care Homes","REDACTED DATA","SPRINGFIELD (BONDCARE LONDON LIMITED)","10649160","http://opencorporates.com/companies/gb/10649160",""
"London Borough of Redbridge","http://opendatacommunities.org/doc/london-borough-council/redbridge","6BADULTSOCIA","Adult Social Care","6COLDINCMENT","Older People (65 or over) incl. Older Mentally Ill","REV","Revenue","R4385","OP Nursing","09-INCOME","Income","09C","Customer and Client Receipts","8557","Nursing Home Charges","90959567","201902",18/05/2018 00:00:00,-533.8,"64710","Residential Care Homes","REDACTED DATA","SPRINGFIELD (BONDCARE LONDON LIMITED)","10649160","http://opencorporates.com/companies/gb/10649160",""
"London Borough of Redbridge","http://opendatacommunities.org/doc/london-borough-council/redbridge","6BADULTSOCIA","Adult Social Care","6COLDINCMENT","Older People (65 or over) incl. Older Mentally Ill","REV","Revenue","R4385","OP Nursing","05-THIRD","Third Party Payments","05H","Private contractors","6909","Nursing Homes","90959566","201902",18/05/2018 00:00:00,2108.72,"64710","Residential Care Homes","REDACTED DATA","SPRINGFIELD (BONDCARE LONDON LIMITED)","10649160","http://opencorporates.com/companies/gb/10649160",""
"London Borough of Redbridge","http://opendatacommunities.org/doc/london-borough-council/redbridge","6BADULTSOCIA","Adult Social Care","6COLDINCMENT","Older People (65 or over) incl. Older Mentally Ill","REV","Revenue","R4385","OP Nursing","09-INCOME","Income","09C","Customer and Client Receipts","8557","Nursing Home Charges","90959566","201902",18/05/2018 00:00:00,-662.88,"64710","Residential Care Homes","REDACTED DATA","SPRINGFIELD (BONDCARE LONDON LIMITED)","10649160","http://opencorporates.com/companies/gb/10649160",""
"London Borough of Redbridge","http://opendatacommunities.org/doc/london-borough-council/redbridge","6BADULTSOCIA","Adult Social Care","6COLDINCMENT","Older People (65 or over) incl. Older Mentally Ill","REV","Revenue","R4385","OP Nursing","05-THIRD","Third Party Payments","05H","Private contractors","6909","Nursing Homes","90959565","201902",18/05/2018 00:00:00,2088.24,"64710","Residential Care Homes","REDACTED DATA","SPRINGFIELD (BONDCARE LONDON LIMITED)","10649160","http://opencorporates.com/companies/gb/10649160",""
"London Borough of Redbridge","http://opendatacommunities.org/doc/london-borough-council/redbridge","6BADULTSOCIA","Adult Social Care","6COLDINCMENT","Older People (65 or over) incl. Older Mentally Ill","REV","Revenue","R4385","OP Nursing","09-INCOME","Income","09C","Customer and Client Receipts","8557","Nursing Home Charges","90959565","201902",18/05/2018 00:00:00,-552.4,"64710","Residential Care Homes","REDACTED DATA","SPRINGFIELD (BONDCARE LONDON LIMITED)","10649160","http://opencorporates.com/companies/gb/10649160",""
"London Borough of Redbridge","http://opendatacommunities.org/doc/london-borough-council/redbridge","6BADULTSOCIA","Adult Social Care","6COLDINCMENT","Older People (65 or over) incl. Older Mentally Ill","REV","Revenue","R4385","OP Nursing","05-THIRD","Third Party Payments","05H","Private contractors","6909","Nursing Homes","90959564","201902",18/05/2018 00:00:00,2067.36,"64710","Residential Care Homes","REDACTED DATA","SPRINGFIELD (BONDCARE LONDON LIMITED)","10649160","http://opencorporates.com/companies/gb/10649160",""
"London Borough of Redbridge","http://opendatacommunities.org/doc/london-borough-council/redbridge","6BADULTSOCIA","Adult Social Care","6COLDINCMENT","Older People (65 or over) incl. Older Mentally Ill","REV","Revenue","R4385","OP Nursing","09-INCOME","Income","09C","Customer and Client Receipts","8557","Nursing Home Charges","90959564","201902",18/05/2018 00:00:00,-552.4,"64710","Residential Care Homes","REDACTED DATA","SPRINGFIELD (BONDCARE LONDON LIMITED)","10649160","http://opencorporates.com/companies/gb/10649160",""
"London Borough of Redbridge","http://opendatacommunities.org/doc/london-borough-council/redbridge","6BADULTSOCIA","Adult Social Care","6COLDINCMENT","Older People (65 or over) incl. Older Mentally Ill","REV","Revenue","R4385","OP Nursing","05-THIRD","Third Party Payments","05H","Private contractors","6909","Nursing Homes","90959563","201902",18/05/2018 00:00:00,2067.4,"64710","Residential Care Homes","REDACTED DATA","SPRINGFIELD (BONDCARE LONDON LIMITED)","10649160","http://opencorporates.com/companies/gb/10649160",""
"London Borough of Redbridge","http://opendatacommunities.org/doc/london-borough-council/redbridge","6BADULTSOCIA","Adult Social Care","6COLDINCMENT","Older People (65 or over) incl. Older Mentally Ill","REV","Revenue","R4385","OP Nursing","09-INCOME","Income","09C","Customer and Client Receipts","8557","Nursing Home Charges","90959563","201902",18/05/2018 00:00:00,-561.8,"64710","Residential Care Homes","REDACTED DATA","SPRINGFIELD (BONDCARE LONDON LIMITED)","10649160","http://opencorporates.com/companies/gb/10649160",""
"London Borough of Redbridge","http://opendatacommunities.org/doc/london-borough-council/redbridge","6BADULTSOCIA","Adult Social Care","6CADPHYSDIS","Adults Under 65 with Phys Disab or Sensory Impair","REV","Revenue","R4387","PD Nursing","05-THIRD","Third Party Payments","05H","Private contractors","6909","Nursing Homes","90959562","201902",18/05/2018 00:00:00,2835.4,"64710","Residential Care Homes","REDACTED DATA","SPRINGFIELD (BONDCARE LONDON LIMITED)","10649160","http://opencorporates.com/companies/gb/10649160",""
"London Borough of Redbridge","http://opendatacommunities.org/doc/london-borough-council/redbridge","6BADULTSOCIA","Adult Social Care","6CADPHYSDIS","Adults Under 65 with Phys Disab or Sensory Impair","REV","Revenue","R4387","PD Nursing","09-INCOME","Income","09C","Customer and Client Receipts","8557","Nursing Home Charges","90959562","201902",18/05/2018 00:00:00,-327,"64710","Residential Care Homes","REDACTED DATA","SPRINGFIELD (BONDCARE LONDON LIMITED)","10649160","http://opencorporates.com/companies/gb/10649160",""
"London Borough of Redbridge","http://opendatacommunities.org/doc/london-borough-council/redbridge","6BADULTSOCIA","Adult Social Care","6COLDINCMENT","Older People (65 or over) incl. Older Mentally Ill","REV","Revenue","R4385","OP Nursing","05-THIRD","Third Party Payments","05H","Private contractors","6909","Nursing Homes","90959561","201902",18/05/2018 00:00:00,2067.4,"64710","Residential Care Homes","REDACTED DATA","SPRINGFIELD (BONDCARE LONDON LIMITED)","10649160","http://opencorporates.com/companies/gb/10649160",""
"London Borough of Redbridge","http://opendatacommunities.org/doc/london-borough-council/redbridge","6BADULTSOCIA","Adult Social Care","6COLDINCMENT","Older People (65 or over) incl. Older Mentally Ill","REV","Revenue","R4385","OP Nursing","09-INCOME","Income","09C","Customer and Client Receipts","8557","Nursing Home Charges","90959561","201902",18/05/2018 00:00:00,-567.08,"64710","Residential Care Homes","REDACTED DATA","SPRINGFIELD (BONDCARE LONDON LIMITED)","10649160","http://opencorporates.com/companies/gb/10649160",""
"London Borough of Redbridge","http://opendatacommunities.org/doc/london-borough-council/redbridge","6BADULTSOCIA","Adult Social Care","6COLDINCMENT","Older People (65 or over) incl. Older Mentally Ill","REV","Revenue","R4385","OP Nursing","05-THIRD","Third Party Payments","05H","Private contractors","6909","Nursing Homes","90959559","201902",18/05/2018 00:00:00,2067.4,"64710","Residential Care Homes","REDACTED DATA","SPRINGFIELD (BONDCARE LONDON LIMITED)","10649160","http://opencorporates.com/companies/gb/10649160",""
"London Borough of Redbridge","http://opendatacommunities.org/doc/london-borough-council/redbridge","6BADULTSOCIA","Adult Social Care","6COLDINCMENT","Older People (65 or over) incl. Older Mentally Ill","REV","Revenue","R4385","OP Nursing","09-INCOME","Income","09C","Customer and Client Receipts","8557","Nursing Home Charges","90959559","201902",18/05/2018 00:00:00,-709.8,"64710","Residential Care Homes","REDACTED DATA","SPRINGFIELD (BONDCARE LONDON LIMITED)","10649160","http://opencorporates.com/companies/gb/10649160",""
"London Borough of Redbridge","http://opendatacommunities.org/doc/london-borough-council/redbridge","6BADULTSOCIA","Adult Social Care","6COLDINCMENT","Older People (65 or over) incl. Older Mentally Ill","REV","Revenue","R4385","OP Nursing","05-THIRD","Third Party Payments","05H","Private contractors","6909","Nursing Homes","90959558","201902",18/05/2018 00:00:00,2067.4,"64710","Residential Care Homes","REDACTED DATA","SPRINGFIELD (BONDCARE LONDON LIMITED)","10649160","http://opencorporates.com/companies/gb/10649160",""
"London Borough of Redbridge","http://opendatacommunities.org/doc/london-borough-council/redbridge","6BADULTSOCIA","Adult Social Care","6COLDINCMENT","Older People (65 or over) incl. Older Mentally Ill","REV","Revenue","R4385","OP Nursing","09-INCOME","Income","09C","Customer and Client Receipts","8557","Nursing Home Charges","90959558","201902",18/05/2018 00:00:00,-1115.48,"64710","Residential Care Homes","REDACTED DATA","SPRINGFIELD (BONDCARE LONDON LIMITED)","10649160","http://opencorporates.com/companies/gb/10649160",""
"London Borough of Redbridge","http://opendatacommunities.org/doc/london-borough-council/redbridge","6BADULTSOCIA","Adult Social Care","6COLDINCMENT","Older People (65 or over) incl. Older Mentally Ill","REV","Revenue","R4385","OP Nursing","05-THIRD","Third Party Payments","05H","Private contractors","6909","Nursing Homes","90959556","201902",18/05/2018 00:00:00,2067.36,"64710","Residential Care Homes","REDACTED DATA","SPRINGFIELD (BONDCARE LONDON LIMITED)","10649160","http://opencorporates.com/companies/gb/10649160",""
"London Borough of Redbridge","http://opendatacommunities.org/doc/london-borough-council/redbridge","6BADULTSOCIA","Adult Social Care","6COLDINCMENT","Older People (65 or over) incl. Older Mentally Ill","REV","Revenue","R4385","OP Nursing","09-INCOME","Income","09C","Customer and Client Receipts","8557","Nursing Home Charges","90959556","201902",18/05/2018 00:00:00,-552.4,"64710","Residential Care Homes","REDACTED DATA","SPRINGFIELD (BONDCARE LONDON LIMITED)","10649160","http://opencorporates.com/companies/gb/10649160",""
"London Borough of Redbridge","http://opendatacommunities.org/doc/london-borough-council/redbridge","6BADULTSOCIA","Adult Social Care","6COLDINCMENT","Older People (65 or over) incl. Older Mentally Ill","REV","Revenue","R4385","OP Nursing","05-THIRD","Third Party Payments","05H","Private contractors","6909","Nursing Homes","90959555","201902",18/05/2018 00:00:00,2067.36,"64710","Residential Care Homes","REDACTED DATA","SPRINGFIELD (BONDCARE LONDON LIMITED)","10649160","http://opencorporates.com/companies/gb/10649160",""
"London Borough of Redbridge","http://opendatacommunities.org/doc/london-borough-council/redbridge","6BADULTSOCIA","Adult Social Care","6COLDINCMENT","Older People (65 or over) incl. Older Mentally Ill","REV","Revenue","R4385","OP Nursing","09-INCOME","Income","09C","Customer and Client Receipts","8557","Nursing Home Charges","90959555","201902",18/05/2018 00:00:00,-1058.88,"64710","Residential Care Homes","REDACTED DATA","SPRINGFIELD (BONDCARE LONDON LIMITED)","10649160","http://opencorporates.com/companies/gb/10649160",""
"London Borough of Redbridge","http://opendatacommunities.org/doc/london-borough-council/redbridge","6BADULTSOCIA","Adult Social Care","6COLDINCMENT","Older People (65 or over) incl. Older Mentally Ill","REV","Revenue","R4385","OP Nursing","05-THIRD","Third Party Payments","05H","Private contractors","6909","Nursing Homes","90959554","201902",18/05/2018 00:00:00,2067.36,"64710","Residential Care Homes","REDACTED DATA","SPRINGFIELD (BONDCARE LONDON LIMITED)","10649160","http://opencorporates.com/companies/gb/10649160",""
"London Borough of Redbridge","http://opendatacommunities.org/doc/london-borough-council/redbridge","6BADULTSOCIA","Adult Social Care","6COLDINCMENT","Older People (65 or over) incl. Older Mentally Ill","REV","Revenue","R4385","OP Nursing","09-INCOME","Income","09C","Customer and Client Receipts","8557","Nursing Home Charges","90959554","201902",18/05/2018 00:00:00,-552.4,"64710","Residential Care Homes","REDACTED DATA","SPRINGFIELD (BONDCARE LONDON LIMITED)","10649160","http://opencorporates.com/companies/gb/10649160",""
"London Borough of Redbridge","http://opendatacommunities.org/doc/london-borough-council/redbridge","6BADULTSOCIA","Adult Social Care","6COLDINCMENT","Older People (65 or over) incl. Older Mentally Ill","REV","Revenue","R4385","OP Nursing","05-THIRD","Third Party Payments","05H","Private contractors","6909","Nursing Homes","90959553","201902",18/05/2018 00:00:00,2067.4,"64710","Residential Care Homes","REDACTED DATA","SPRINGFIELD (BONDCARE LONDON LIMITED)","10649160","http://opencorporates.com/companies/gb/10649160",""
"London Borough of Redbridge","http://opendatacommunities.org/doc/london-borough-council/redbridge","6BADULTSOCIA","Adult Social Care","6COLDINCMENT","Older People (65 or over) incl. Older Mentally Ill","REV","Revenue","R4385","OP Nursing","05-THIRD","Third Party Payments","05H","Private contractors","6909","Nursing Homes","90959551","201902",18/05/2018 00:00:00,2067.4,"64710","Residential Care Homes","REDACTED DATA","SPRINGFIELD (BONDCARE LONDON LIMITED)","10649160","http://opencorporates.com/companies/gb/10649160",""
"London Borough of Redbridge","http://opendatacommunities.org/doc/london-borough-council/redbridge","6BADULTSOCIA","Adult Social Care","6COLDINCMENT","Older People (65 or over) incl. Older Mentally Ill","REV","Revenue","R4385","OP Nursing","09-INCOME","Income","09C","Customer and Client Receipts","8557","Nursing Home Charges","90959551","201902",18/05/2018 00:00:00,-575.2,"64710","Residential Care Homes","REDACTED DATA","SPRINGFIELD (BONDCARE LONDON LIMITED)","10649160","http://opencorporates.com/companies/gb/10649160",""
"London Borough of Redbridge","http://opendatacommunities.org/doc/london-borough-council/redbridge","6BADULTSOCIA","Adult Social Care","6CADMENHLTH","Adults Under 65 with Mental Health Needs","REV","Revenue","R4386","MH Nursing","05-THIRD","Third Party Payments","05H","Private contractors","6909","Nursing Homes","90959550","201902",18/05/2018 00:00:00,2751.56,"64710","Residential Care Homes","REDACTED DATA","SPRINGFIELD (BONDCARE LONDON LIMITED)","10649160","http://opencorporates.com/companies/gb/10649160",""
"London Borough of Redbridge","http://opendatacommunities.org/doc/london-borough-council/redbridge","6BADULTSOCIA","Adult Social Care","6COLDINCMENT","Older People (65 or over) incl. Older Mentally Ill","REV","Revenue","R4385","OP Nursing","05-THIRD","Third Party Payments","05H","Private contractors","6909","Nursing Homes","90959549","201902",18/05/2018 00:00:00,-72.38,"64710","Residential Care Homes","REDACTED DATA","SPRINGFIELD (BONDCARE LONDON LIMITED)","10649160","http://opencorporates.com/companies/gb/10649160",""
"London Borough of Redbridge","http://opendatacommunities.org/doc/london-borough-council/redbridge","6BADULTSOCIA","Adult Social Care","6COLDINCMENT","Older People (65 or over) incl. Older Mentally Ill","REV","Revenue","R4385","OP Nursing","05-THIRD","Third Party Payments","05H","Private contractors","6909","Nursing Homes","90959549","201902",18/05/2018 00:00:00,2067.36,"64710","Residential Care Homes","REDACTED DATA","SPRINGFIELD (BONDCARE LONDON LIMITED)","10649160","http://opencorporates.com/companies/gb/10649160",""
"London Borough of Redbridge","http://opendatacommunities.org/doc/london-borough-council/redbridge","6BADULTSOCIA","Adult Social Care","6COLDINCMENT","Older People (65 or over) incl. Older Mentally Ill","REV","Revenue","R4385","OP Nursing","09-INCOME","Income","09C","Customer and Client Receipts","8557","Nursing Home Charges","90959549","201902",18/05/2018 00:00:00,-2154.24,"64710","Residential Care Homes","REDACTED DATA","SPRINGFIELD (BONDCARE LONDON LIMITED)","10649160","http://opencorporates.com/companies/gb/10649160",""
"London Borough of Redbridge","http://opendatacommunities.org/doc/london-borough-council/redbridge","6BADULTSOCIA","Adult Social Care","6COLDINCMENT","Older People (65 or over) incl. Older Mentally Ill","REV","Revenue","R4385","OP Nursing","09-INCOME","Income","09C","Customer and Client Receipts","8557","Nursing Home Charges","90959549","201902",18/05/2018 00:00:00,-2067.36,"64710","Residential Care Homes","REDACTED DATA","SPRINGFIELD (BONDCARE LONDON LIMITED)","10649160","http://opencorporates.com/companies/gb/10649160",""
"London Borough of Redbridge","http://opendatacommunities.org/doc/london-borough-council/redbridge","6BADULTSOCIA","Adult Social Care","6COLDINCMENT","Older People (65 or over) incl. Older Mentally Ill","REV","Revenue","R4385","OP Nursing","09-INCOME","Income","09C","Customer and Client Receipts","8557","Nursing Home Charges","90959549","201902",18/05/2018 00:00:00,-398.75,"64710","Residential Care Homes","REDACTED DATA","SPRINGFIELD (BONDCARE LONDON LIMITED)","10649160","http://opencorporates.com/companies/gb/10649160",""
"London Borough of Redbridge","http://opendatacommunities.org/doc/london-borough-council/redbridge","6BADULTSOCIA","Adult Social Care","6COLDINCMENT","Older People (65 or over) incl. Older Mentally Ill","REV","Revenue","R4385","OP Nursing","09-INCOME","Income","09C","Customer and Client Receipts","8557","Nursing Home Charges","90959549","201902",18/05/2018 00:00:00,21.47,"64710","Residential Care Homes","REDACTED DATA","SPRINGFIELD (BONDCARE LONDON LIMITED)","10649160","http://opencorporates.com/companies/gb/10649160",""
"London Borough of Redbridge","http://opendatacommunities.org/doc/london-borough-council/redbridge","6BADULTSOCIA","Adult Social Care","6CADPHYSDIS","Adults Under 65 with Phys Disab or Sensory Impair","REV","Revenue","R4387","PD Nursing","05-THIRD","Third Party Payments","05H","Private contractors","6909","Nursing Homes","90959548","201902",18/05/2018 00:00:00,2067.4,"64710","Residential Care Homes","REDACTED DATA","SPRINGFIELD (BONDCARE LONDON LIMITED)","10649160","http://opencorporates.com/companies/gb/10649160",""
"London Borough of Redbridge","http://opendatacommunities.org/doc/london-borough-council/redbridge","6BADULTSOCIA","Adult Social Care","6CADPHYSDIS","Adults Under 65 with Phys Disab or Sensory Impair","REV","Revenue","R4387","PD Nursing","09-INCOME","Income","09C","Customer and Client Receipts","8557","Nursing Home Charges","90959548","201902",18/05/2018 00:00:00,-339.08,"64710","Residential Care Homes","REDACTED DATA","SPRINGFIELD (BONDCARE LONDON LIMITED)","10649160","http://opencorporates.com/companies/gb/10649160",""
"London Borough of Redbridge","http://opendatacommunities.org/doc/london-borough-council/redbridge","6BADULTSOCIA","Adult Social Care","6COLDINCMENT","Older People (65 or over) incl. Older Mentally Ill","REV","Revenue","R4385","OP Nursing","05-THIRD","Third Party Payments","05H","Private contractors","6909","Nursing Homes","90959547","201902",18/05/2018 00:00:00,2067.36,"64710","Residential Care Homes","REDACTED DATA","SPRINGFIELD (BONDCARE LONDON LIMITED)","10649160","http://opencorporates.com/companies/gb/10649160",""
"London Borough of Redbridge","http://opendatacommunities.org/doc/london-borough-council/redbridge","6BADULTSOCIA","Adult Social Care","6COLDINCMENT","Older People (65 or over) incl. Older Mentally Ill","REV","Revenue","R4385","OP Nursing","09-INCOME","Income","09C","Customer and Client Receipts","8557","Nursing Home Charges","90959547","201902",18/05/2018 00:00:00,-945.52,"64710","Residential Care Homes","REDACTED DATA","SPRINGFIELD (BONDCARE LONDON LIMITED)","10649160","http://opencorporates.com/companies/gb/10649160",""
"London Borough of Redbridge","http://opendatacommunities.org/doc/london-borough-council/redbridge","6BADULTSOCIA","Adult Social Care","6COLDINCMENT","Older People (65 or over) incl. Older Mentally Ill","REV","Revenue","R4385","OP Nursing","05-THIRD","Third Party Payments","05H","Private contractors","6909","Nursing Homes","90959546","201902",18/05/2018 00:00:00,2067.36,"64710","Residential Care Homes","REDACTED DATA","SPRINGFIELD (BONDCARE LONDON LIMITED)","10649160","http://opencorporates.com/companies/gb/10649160",""
"London Borough of Redbridge","http://opendatacommunities.org/doc/london-borough-council/redbridge","6BADULTSOCIA","Adult Social Care","6COLDINCMENT","Older People (65 or over) incl. Older Mentally Ill","REV","Revenue","R4385","OP Nursing","09-INCOME","Income","09C","Customer and Client Receipts","8557","Nursing Home Charges","90959546","201902",18/05/2018 00:00:00,-609.56,"64710","Residential Care Homes","REDACTED DATA","SPRINGFIELD (BONDCARE LONDON LIMITED)","10649160","http://opencorporates.com/companies/gb/10649160",""
"London Borough of Redbridge","http://opendatacommunities.org/doc/london-borough-council/redbridge","6BADULTSOCIA","Adult Social Care","6COLDINCMENT","Older People (65 or over) incl. Older Mentally Ill","REV","Revenue","R4385","OP Nursing","05-THIRD","Third Party Payments","05H","Private contractors","6909","Nursing Homes","90959545","201902",18/05/2018 00:00:00,2067.36,"64710","Residential Care Homes","REDACTED DATA","SPRINGFIELD (BONDCARE LONDON LIMITED)","10649160","http://opencorporates.com/companies/gb/10649160",""
"London Borough of Redbridge","http://opendatacommunities.org/doc/london-borough-council/redbridge","6BADULTSOCIA","Adult Social Care","6COLDINCMENT","Older People (65 or over) incl. Older Mentally Ill","REV","Revenue","R4385","OP Nursing","05-THIRD","Third Party Payments","05H","Private contractors","6909","Nursing Homes","90959544","201902",18/05/2018 00:00:00,2067.4,"64710","Residential Care Homes","REDACTED DATA","SPRINGFIELD (BONDCARE LONDON LIMITED)","10649160","http://opencorporates.com/companies/gb/10649160",""
"London Borough of Redbridge","http://opendatacommunities.org/doc/london-borough-council/redbridge","6BADULTSOCIA","Adult Social Care","6COLDINCMENT","Older People (65 or over) incl. Older Mentally Ill","REV","Revenue","R4385","OP Nursing","09-INCOME","Income","09C","Customer and Client Receipts","8557","Nursing Home Charges","90959544","201902",18/05/2018 00:00:00,-690.92,"64710","Residential Care Homes","REDACTED DATA","SPRINGFIELD (BONDCARE LONDON LIMITED)","10649160","http://opencorporates.com/companies/gb/10649160",""
"London Borough of Redbridge","http://opendatacommunities.org/doc/london-borough-council/redbridge","6BADULTSOCIA","Adult Social Care","6COLDINCMENT","Older People (65 or over) incl. Older Mentally Ill","REV","Revenue","R4385","OP Nursing","05-THIRD","Third Party Payments","05H","Private contractors","6909","Nursing Homes","90959543","201902",18/05/2018 00:00:00,2067.4,"64710","Residential Care Homes","REDACTED DATA","SPRINGFIELD (BONDCARE LONDON LIMITED)","10649160","http://opencorporates.com/companies/gb/10649160",""
"London Borough of Redbridge","http://opendatacommunities.org/doc/london-borough-council/redbridge","6BADULTSOCIA","Adult Social Care","6COLDINCMENT","Older People (65 or over) incl. Older Mentally Ill","REV","Revenue","R4385","OP Nursing","09-INCOME","Income","09C","Customer and Client Receipts","8557","Nursing Home Charges","90959543","201902",18/05/2018 00:00:00,-552.4,"64710","Residential Care Homes","REDACTED DATA","SPRINGFIELD (BONDCARE LONDON LIMITED)","10649160","http://opencorporates.com/companies/gb/10649160",""
"London Borough of Redbridge","http://opendatacommunities.org/doc/london-borough-council/redbridge","6BADULTSOCIA","Adult Social Care","6COLDINCMENT","Older People (65 or over) incl. Older Mentally Ill","REV","Revenue","R4385","OP Nursing","05-THIRD","Third Party Payments","05H","Private contractors","6909","Nursing Homes","90959542","201902",18/05/2018 00:00:00,2067.36,"64710","Residential Care Homes","REDACTED DATA","SPRINGFIELD (BONDCARE LONDON LIMITED)","10649160","http://opencorporates.com/companies/gb/10649160",""
"London Borough of Redbridge","http://opendatacommunities.org/doc/london-borough-council/redbridge","6BADULTSOCIA","Adult Social Care","6COLDINCMENT","Older People (65 or over) incl. Older Mentally Ill","REV","Revenue","R4385","OP Nursing","05-THIRD","Third Party Payments","05H","Private contractors","6909","Nursing Homes","90959541","201902",18/05/2018 00:00:00,2067.4,"64710","Residential Care Homes","REDACTED DATA","SPRINGFIELD (BONDCARE LONDON LIMITED)","10649160","http://opencorporates.com/companies/gb/10649160",""
"London Borough of Redbridge","http://opendatacommunities.org/doc/london-borough-council/redbridge","6BADULTSOCIA","Adult Social Care","6COLDINCMENT","Older People (65 or over) incl. Older Mentally Ill","REV","Revenue","R4385","OP Nursing","09-INCOME","Income","09C","Customer and Client Receipts","8557","Nursing Home Charges","90959541","201902",18/05/2018 00:00:00,-558.04,"64710","Residential Care Homes","REDACTED DATA","SPRINGFIELD (BONDCARE LONDON LIMITED)","10649160","http://opencorporates.com/companies/gb/10649160",""
"London Borough of Redbridge","http://opendatacommunities.org/doc/london-borough-council/redbridge","6BADULTSOCIA","Adult Social Care","6COLDINCMENT","Older People (65 or over) incl. Older Mentally Ill","REV","Revenue","R4385","OP Nursing","05-THIRD","Third Party Payments","05H","Private contractors","6909","Nursing Homes","90959540","201902",18/05/2018 00:00:00,2067.36,"64710","Residential Care Homes","REDACTED DATA","SPRINGFIELD (BONDCARE LONDON LIMITED)","10649160","http://opencorporates.com/companies/gb/10649160",""
"London Borough of Redbridge","http://opendatacommunities.org/doc/london-borough-council/redbridge","6BADULTSOCIA","Adult Social Care","6COLDINCMENT","Older People (65 or over) incl. Older Mentally Ill","REV","Revenue","R4385","OP Nursing","05-THIRD","Third Party Payments","05H","Private contractors","6909","Nursing Homes","90959538","201902",18/05/2018 00:00:00,2067.4,"64710","Residential Care Homes","REDACTED DATA","SPRINGFIELD (BONDCARE LONDON LIMITED)","10649160","http://opencorporates.com/companies/gb/10649160",""
"London Borough of Redbridge","http://opendatacommunities.org/doc/london-borough-council/redbridge","6BADULTSOCIA","Adult Social Care","6COLDINCMENT","Older People (65 or over) incl. Older Mentally Ill","REV","Revenue","R4385","OP Nursing","09-INCOME","Income","09C","Customer and Client Receipts","8557","Nursing Home Charges","90959538","201902",18/05/2018 00:00:00,-881.72,"64710","Residential Care Homes","REDACTED DATA","SPRINGFIELD (BONDCARE LONDON LIMITED)","10649160","http://opencorporates.com/companies/gb/10649160",""
"London Borough of Redbridge","http://opendatacommunities.org/doc/london-borough-council/redbridge","6BADULTSOCIA","Adult Social Care","6COLDINCMENT","Older People (65 or over) incl. Older Mentally Ill","REV","Revenue","R4385","OP Nursing","05-THIRD","Third Party Payments","05H","Private contractors","6909","Nursing Homes","90959537","201902",18/05/2018 00:00:00,2067.36,"64710","Residential Care Homes","REDACTED DATA","SPRINGFIELD (BONDCARE LONDON LIMITED)","10649160","http://opencorporates.com/companies/gb/10649160",""
"London Borough of Redbridge","http://opendatacommunities.org/doc/london-borough-council/redbridge","6BADULTSOCIA","Adult Social Care","6COLDINCMENT","Older People (65 or over) incl. Older Mentally Ill","REV","Revenue","R4385","OP Nursing","09-INCOME","Income","09C","Customer and Client Receipts","8557","Nursing Home Charges","90959537","201902",18/05/2018 00:00:00,-847.6,"64710","Residential Care Homes","REDACTED DATA","SPRINGFIELD (BONDCARE LONDON LIMITED)","10649160","http://opencorporates.com/companies/gb/10649160",""
"London Borough of Redbridge","http://opendatacommunities.org/doc/london-borough-council/redbridge","6BADULTSOCIA","Adult Social Care","6CADMENHLTH","Adults Under 65 with Mental Health Needs","REV","Revenue","R4386","MH Nursing","05-THIRD","Third Party Payments","05H","Private contractors","6909","Nursing Homes","90959536","201902",18/05/2018 00:00:00,4356.31,"64710","Residential Care Homes","REDACTED DATA","SPRINGFIELD (BONDCARE LONDON LIMITED)","10649160","http://opencorporates.com/companies/gb/10649160",""
"London Borough of Redbridge","http://opendatacommunities.org/doc/london-borough-council/redbridge","6BADULTSOCIA","Adult Social Care","6COLDINCMENT","Older People (65 or over) incl. Older Mentally Ill","REV","Revenue","R4385","OP Nursing","05-THIRD","Third Party Payments","05H","Private contractors","6909","Nursing Homes","90959535","201902",18/05/2018 00:00:00,1737.29,"64710","Residential Care Homes","REDACTED DATA","SPRINGFIELD (BONDCARE LONDON LIMITED)","10649160","http://opencorporates.com/companies/gb/10649160",""
"London Borough of Redbridge","http://opendatacommunities.org/doc/london-borough-council/redbridge","6BADULTSOCIA","Adult Social Care","6COLDINCMENT","Older People (65 or over) incl. Older Mentally Ill","REV","Revenue","R4385","OP Nursing","05-THIRD","Third Party Payments","05H","Private contractors","6909","Nursing Homes","90959535","201902",18/05/2018 00:00:00,289.55,"64710","Residential Care Homes","REDACTED DATA","SPRINGFIELD (BONDCARE LONDON LIMITED)","10649160","http://opencorporates.com/companies/gb/10649160",""
"London Borough of Redbridge","http://opendatacommunities.org/doc/london-borough-council/redbridge","6BADULTSOCIA","Adult Social Care","6COLDINCMENT","Older People (65 or over) incl. Older Mentally Ill","REV","Revenue","R4385","OP Nursing","09-INCOME","Income","09C","Customer and Client Receipts","8557","Nursing Home Charges","90959535","201902",18/05/2018 00:00:00,-379.23,"64710","Residential Care Homes","REDACTED DATA","SPRINGFIELD (BONDCARE LONDON LIMITED)","10649160","http://opencorporates.com/companies/gb/10649160",""
"London Borough of Redbridge","http://opendatacommunities.org/doc/london-borough-council/redbridge","6BADULTSOCIA","Adult Social Care","6COLDINCMENT","Older People (65 or over) incl. Older Mentally Ill","REV","Revenue","R4378","OP Residential","05-THIRD","Third Party Payments","05F","Voluntary associations","6802","Residential Homes","90959534","201902",18/05/2018 00:00:00,2210.2,"64710","Residential Care Homes","REDACTED DATA","SPRINGFIELD (BONDCARE LONDON LIMITED)","10649160","http://opencorporates.com/companies/gb/10649160",""
"London Borough of Redbridge","http://opendatacommunities.org/doc/london-borough-council/redbridge","6BADULTSOCIA","Adult Social Care","6COLDINCMENT","Older People (65 or over) incl. Older Mentally Ill","REV","Revenue","R4378","OP Residential","09-INCOME","Income","09C","Customer and Client Receipts","8555","Accommodation Charges","90959534","201902",18/05/2018 00:00:00,-552.4,"64710","Residential Care Homes","REDACTED DATA","SPRINGFIELD (BONDCARE LONDON LIMITED)","10649160","http://opencorporates.com/companies/gb/10649160",""
"London Borough of Redbridge","http://opendatacommunities.org/doc/london-borough-council/redbridge","6BADULTSOCIA","Adult Social Care","6COLDINCMENT","Older People (65 or over) incl. Older Mentally Ill","REV","Revenue","R4385","OP Nursing","05-THIRD","Third Party Payments","05H","Private contractors","6909","Nursing Homes","90959533","201902",18/05/2018 00:00:00,2067.36,"64710","Residential Care Homes","REDACTED DATA","SPRINGFIELD (BONDCARE LONDON LIMITED)","10649160","http://opencorporates.com/companies/gb/10649160",""
"London Borough of Redbridge","http://opendatacommunities.org/doc/london-borough-council/redbridge","6BADULTSOCIA","Adult Social Care","6COLDINCMENT","Older People (65 or over) incl. Older Mentally Ill","REV","Revenue","R4385","OP Nursing","05-THIRD","Third Party Payments","05H","Private contractors","6909","Nursing Homes","90959532","201902",18/05/2018 00:00:00,2264.68,"64710","Residential Care Homes","REDACTED DATA","SPRINGFIELD (BONDCARE LONDON LIMITED)","10649160","http://opencorporates.com/companies/gb/10649160",""
"London Borough of Redbridge","http://opendatacommunities.org/doc/london-borough-council/redbridge","6BADULTSOCIA","Adult Social Care","6COLDINCMENT","Older People (65 or over) incl. Older Mentally Ill","REV","Revenue","R4385","OP Nursing","09-INCOME","Income","09C","Customer and Client Receipts","8557","Nursing Home Charges","90959532","201902",18/05/2018 00:00:00,-851.24,"64710","Residential Care Homes","REDACTED DATA","SPRINGFIELD (BONDCARE LONDON LIMITED)","10649160","http://opencorporates.com/companies/gb/10649160",""
"London Borough of Redbridge","http://opendatacommunities.org/doc/london-borough-council/redbridge","6BADULTSOCIA","Adult Social Care","6CADPHYSDIS","Adults Under 65 with Phys Disab or Sensory Impair","REV","Revenue","R4387","PD Nursing","05-THIRD","Third Party Payments","05H","Private contractors","6909","Nursing Homes","90959531","201902",18/05/2018 00:00:00,2713.92,"64710","Residential Care Homes","REDACTED DATA","SPRINGFIELD (BONDCARE LONDON LIMITED)","10649160","http://opencorporates.com/companies/gb/10649160",""
"London Borough of Redbridge","http://opendatacommunities.org/doc/london-borough-council/redbridge","6BADULTSOCIA","Adult Social Care","6CADPHYSDIS","Adults Under 65 with Phys Disab or Sensory Impair","REV","Revenue","R4387","PD Nursing","09-INCOME","Income","09C","Customer and Client Receipts","8557","Nursing Home Charges","90959531","201902",18/05/2018 00:00:00,-409,"64710","Residential Care Homes","REDACTED DATA","SPRINGFIELD (BONDCARE LONDON LIMITED)","10649160","http://opencorporates.com/companies/gb/10649160",""
"London Borough of Redbridge","http://opendatacommunities.org/doc/london-borough-council/redbridge","6BADULTSOCIA","Adult Social Care","6COLDINCMENT","Older People (65 or over) incl. Older Mentally Ill","REV","Revenue","R4385","OP Nursing","05-THIRD","Third Party Payments","05H","Private contractors","6909","Nursing Homes","90959530","201902",18/05/2018 00:00:00,2067.4,"64710","Residential Care Homes","REDACTED DATA","SPRINGFIELD (BONDCARE LONDON LIMITED)","10649160","http://opencorporates.com/companies/gb/10649160",""
"London Borough of Redbridge","http://opendatacommunities.org/doc/london-borough-council/redbridge","6BADULTSOCIA","Adult Social Care","6COLDINCMENT","Older People (65 or over) incl. Older Mentally Ill","REV","Revenue","R4385","OP Nursing","09-INCOME","Income","09C","Customer and Client Receipts","8557","Nursing Home Charges","90959530","201902",18/05/2018 00:00:00,-606.68,"64710","Residential Care Homes","REDACTED DATA","SPRINGFIELD (BONDCARE LONDON LIMITED)","10649160","http://opencorporates.com/companies/gb/10649160",""
"London Borough of Redbridge","http://opendatacommunities.org/doc/london-borough-council/redbridge","6BADULTSOCIA","Adult Social Care","6COLDINCMENT","Older People (65 or over) incl. Older Mentally Ill","REV","Revenue","R4385","OP Nursing","05-THIRD","Third Party Payments","05H","Private contractors","6909","Nursing Homes","90959529","201902",18/05/2018 00:00:00,2067.4,"64710","Residential Care Homes","REDACTED DATA","SPRINGFIELD (BONDCARE LONDON LIMITED)","10649160","http://opencorporates.com/companies/gb/10649160",""
"London Borough of Redbridge","http://opendatacommunities.org/doc/london-borough-council/redbridge","6BADULTSOCIA","Adult Social Care","6CADLEARNDIS","Adults Under 65 with Learning Disabilities","REV","Revenue","R4188","LD - Residential Care","05-THIRD","Third Party Payments","05F","Voluntary associations","6802","Residential Homes","90959528","201902",18/05/2018 00:00:00,5873.6,"25820","Disability and Special Needs - Services","REDACTED DATA","SEEABILITY - THE ROYAL SCHOOL FO THE BLIND","CHARITY  255913","http://opencorporates.com/companies/gb/CHARITY  255913","235566158"
"London Borough of Redbridge","http://opendatacommunities.org/doc/london-borough-council/redbridge","6BADULTSOCIA","Adult Social Care","6CADLEARNDIS","Adults Under 65 with Learning Disabilities","REV","Revenue","R4188","LD - Residential Care","09-INCOME","Income","09C","Customer and Client Receipts","8555","Accommodation Charges","90959528","201902",18/05/2018 00:00:00,-518.48,"25820","Disability and Special Needs - Services","REDACTED DATA","SEEABILITY - THE ROYAL SCHOOL FO THE BLIND","CHARITY  255913","http://opencorporates.com/companies/gb/CHARITY  255913","235566158"
"London Borough of Redbridge","http://opendatacommunities.org/doc/london-borough-council/redbridge","6BADULTSOCIA","Adult Social Care","6CADMENHLTH","Adults Under 65 with Mental Health Needs","REV","Revenue","R4386","MH Nursing","05-THIRD","Third Party Payments","05H","Private contractors","6909","Nursing Homes","90959527","201902",18/05/2018 00:00:00,1266.31,"64710","Residential Care Homes","REDACTED DATA","RUNWOOD HOMES (EVELYN MAY)","731250","http://opencorporates.com/companies/gb/731250",""
"London Borough of Redbridge","http://opendatacommunities.org/doc/london-borough-council/redbridge","6BADULTSOCIA","Adult Social Care","6CADMENHLTH","Adults Under 65 with Mental Health Needs","REV","Revenue","R4386","MH Nursing","05-THIRD","Third Party Payments","05H","Private contractors","6909","Nursing Homes","90959527","201902",18/05/2018 00:00:00,1063.68,"64710","Residential Care Homes","REDACTED DATA","RUNWOOD HOMES (EVELYN MAY)","731250","http://opencorporates.com/companies/gb/731250",""
"London Borough of Redbridge","http://opendatacommunities.org/doc/london-borough-council/redbridge","6BADULTSOCIA","Adult Social Care","6COLDINCMENT","Older People (65 or over) incl. Older Mentally Ill","REV","Revenue","R4378","OP Residential","05-THIRD","Third Party Payments","05F","Voluntary associations","6802","Residential Homes","90959523","201902",18/05/2018 00:00:00,2269.96,"53350","Nursing Homes","REDACTED DATA","FOUR SEASONS (NO 11) LTD- SPRINGBANK CARE HOME","5165301","http://opencorporates.com/companies/gb/5165301",""
"London Borough of Redbridge","http://opendatacommunities.org/doc/london-borough-council/redbridge","6BADULTSOCIA","Adult Social Care","6COLDINCMENT","Older People (65 or over) incl. Older Mentally Ill","REV","Revenue","R4378","OP Residential","09-INCOME","Income","09C","Customer and Client Receipts","8555","Accommodation Charges","90959523","201902",18/05/2018 00:00:00,-672.08,"53350","Nursing Homes","REDACTED DATA","FOUR SEASONS (NO 11) LTD- SPRINGBANK CARE HOME","5165301","http://opencorporates.com/companies/gb/5165301",""
"London Borough of Redbridge","http://opendatacommunities.org/doc/london-borough-council/redbridge","6BADULTSOCIA","Adult Social Care","6COLDINCMENT","Older People (65 or over) incl. Older Mentally Ill","REV","Revenue","R4385","OP Nursing","05-THIRD","Third Party Payments","05H","Private contractors","6909","Nursing Homes","90959522","201902",18/05/2018 00:00:00,2200.04,"53350","Nursing Homes","REDACTED DATA","FOUR SEASONS (NO 11) LTD- SPRINGBANK CARE HOME","5165301","http://opencorporates.com/companies/gb/5165301",""
"London Borough of Redbridge","http://opendatacommunities.org/doc/london-borough-council/redbridge","6BADULTSOCIA","Adult Social Care","6CADLEARNDIS","Adults Under 65 with Learning Disabilities","REV","Revenue","R4188","LD - Residential Care","05-THIRD","Third Party Payments","05F","Voluntary associations","6802","Residential Homes","90959521","201902",18/05/2018 00:00:00,4300,"64710","Residential Care Homes","REDACTED DATA","NORTHBROOK HOMES LTD - (NORTHBROOK CARE  HOME)","5526108","http://opencorporates.com/companies/gb/5526108",""
"London Borough of Redbridge","http://opendatacommunities.org/doc/london-borough-council/redbridge","6BADULTSOCIA","Adult Social Care","6COLDINCMENT","Older People (65 or over) incl. Older Mentally Ill","REV","Revenue","R4385","OP Nursing","05-THIRD","Third Party Payments","05H","Private contractors","6909","Nursing Homes","90959520","201902",18/05/2018 00:00:00,2554.52,"64710","Residential Care Homes","REDACTED DATA","NIGHTINGALE HOUSE","",,""
"London Borough of Redbridge","http://opendatacommunities.org/doc/london-borough-council/redbridge","6BADULTSOCIA","Adult Social Care","6COLDINCMENT","Older People (65 or over) incl. Older Mentally Ill","REV","Revenue","R4385","OP Nursing","09-INCOME","Income","09C","Customer and Client Receipts","8557","Nursing Home Charges","90959520","201902",18/05/2018 00:00:00,-624.88,"64710","Residential Care Homes","REDACTED DATA","NIGHTINGALE HOUSE","",,""
"London Borough of Redbridge","http://opendatacommunities.org/doc/london-borough-council/redbridge","6BADULTSOCIA","Adult Social Care","6COLDINCMENT","Older People (65 or over) incl. Older Mentally Ill","REV","Revenue","R4378","OP Residential","05-THIRD","Third Party Payments","05F","Voluntary associations","6802","Residential Homes","90959517","201902",18/05/2018 00:00:00,2737.52,"64710","Residential Care Homes","REDACTED DATA","TEALK SERVICES LTD (THE BEECHES- ILFORD)","4203171","http://opencorporates.com/companies/gb/4203171",""
"London Borough of Redbridge","http://opendatacommunities.org/doc/london-borough-council/redbridge","6BADULTSOCIA","Adult Social Care","6COLDINCMENT","Older People (65 or over) incl. Older Mentally Ill","REV","Revenue","R4378","OP Residential","05-THIRD","Third Party Payments","05F","Voluntary associations","6802","Residential Homes","90959516","201902",18/05/2018 00:00:00,2737.52,"64710","Residential Care Homes","REDACTED DATA","TEALK SERVICES LTD (THE BEECHES- ILFORD)","4203171","http://opencorporates.com/companies/gb/4203171",""
"London Borough of Redbridge","http://opendatacommunities.org/doc/london-borough-council/redbridge","6BADULTSOCIA","Adult Social Care","6COLDINCMENT","Older People (65 or over) incl. Older Mentally Ill","REV","Revenue","R4378","OP Residential","09-INCOME","Income","09C","Customer and Client Receipts","8555","Accommodation Charges","90959516","201902",18/05/2018 00:00:00,-690.64,"64710","Residential Care Homes","REDACTED DATA","TEALK SERVICES LTD (THE BEECHES- ILFORD)","4203171","http://opencorporates.com/companies/gb/4203171",""
"London Borough of Redbridge","http://opendatacommunities.org/doc/london-borough-council/redbridge","6BADULTSOCIA","Adult Social Care","6COLDINCMENT","Older People (65 or over) incl. Older Mentally Ill","REV","Revenue","R4378","OP Residential","05-THIRD","Third Party Payments","05F","Voluntary associations","6802","Residential Homes","90959515","201902",18/05/2018 00:00:00,2000.16,"64710","Residential Care Homes","REDACTED DATA","VEECARE LTD T/AS LOUGHTON HALL","5751389","http://opencorporates.com/companies/gb/5751389",""
"London Borough of Redbridge","http://opendatacommunities.org/doc/london-borough-council/redbridge","6BADULTSOCIA","Adult Social Care","6COLDINCMENT","Older People (65 or over) incl. Older Mentally Ill","REV","Revenue","R4378","OP Residential","09-INCOME","Income","09C","Customer and Client Receipts","8555","Accommodation Charges","90959515","201902",18/05/2018 00:00:00,-924.04,"64710","Residential Care Homes","REDACTED DATA","VEECARE LTD T/AS LOUGHTON HALL","5751389","http://opencorporates.com/companies/gb/5751389",""
"London Borough of Redbridge","http://opendatacommunities.org/doc/london-borough-council/redbridge","6BADULTSOCIA","Adult Social Care","6CADLEARNDIS","Adults Under 65 with Learning Disabilities","REV","Revenue","R4188","LD - Residential Care","05-THIRD","Third Party Payments","05F","Voluntary associations","6802","Residential Homes","90959514","201902",18/05/2018 00:00:00,5896.16,"64710","Residential Care Homes","REDACTED DATA","LINKAGE COMMUNITY TRUST","",,""
"London Borough of Redbridge","http://opendatacommunities.org/doc/london-borough-council/redbridge","6BADULTSOCIA","Adult Social Care","6CADLEARNDIS","Adults Under 65 with Learning Disabilities","REV","Revenue","R4188","LD - Residential Care","09-INCOME","Income","09C","Customer and Client Receipts","8555","Accommodation Charges","90959514","201902",18/05/2018 00:00:00,-409,"64710","Residential Care Homes","REDACTED DATA","LINKAGE COMMUNITY TRUST","",,""
"London Borough of Redbridge","http://opendatacommunities.org/doc/london-borough-council/redbridge","6BADULTSOCIA","Adult Social Care","6CADLEARNDIS","Adults Under 65 with Learning Disabilities","REV","Revenue","R4188","LD - Residential Care","09-INCOME","Income","09C","Customer and Client Receipts","8555","Accommodation Charges","90959514","201902",18/05/2018 00:00:00,-9.6,"64710","Residential Care Homes","REDACTED DATA","LINKAGE COMMUNITY TRUST","",,""
"London Borough of Redbridge","http://opendatacommunities.org/doc/london-borough-council/redbridge","6BADULTSOCIA","Adult Social Care","6CADPHYSDIS","Adults Under 65 with Phys Disab or Sensory Impair","REV","Revenue","R4186","PD Residential","05-THIRD","Third Party Payments","05F","Voluntary associations","6802","Residential Homes","90959513","201902",18/05/2018 00:00:00,117.52,"25820","Disability and Special Needs - Services","REDACTED DATA","LEONARD CHESHIRE FOUNDATION","552847","http://opencorporates.com/companies/gb/552847","646140453"
"London Borough of Redbridge","http://opendatacommunities.org/doc/london-borough-council/redbridge","6BADULTSOCIA","Adult Social Care","6CADPHYSDIS","Adults Under 65 with Phys Disab or Sensory Impair","REV","Revenue","R4186","PD Residential","05-THIRD","Third Party Payments","05F","Voluntary associations","6802","Residential Homes","90959513","201902",18/05/2018 00:00:00,4111.96,"25820","Disability and Special Needs - Services","REDACTED DATA","LEONARD CHESHIRE FOUNDATION","552847","http://opencorporates.com/companies/gb/552847","646140453"
"London Borough of Redbridge","http://opendatacommunities.org/doc/london-borough-council/redbridge","6BADULTSOCIA","Adult Social Care","6CADPHYSDIS","Adults Under 65 with Phys Disab or Sensory Impair","REV","Revenue","R4186","PD Residential","09-INCOME","Income","09C","Customer and Client Receipts","8555","Accommodation Charges","90959513","201902",18/05/2018 00:00:00,-1379.92,"25820","Disability and Special Needs - Services","REDACTED DATA","LEONARD CHESHIRE FOUNDATION","552847","http://opencorporates.com/companies/gb/552847","646140453"
"London Borough of Redbridge","http://opendatacommunities.org/doc/london-borough-council/redbridge","6BADULTSOCIA","Adult Social Care","6CADPHYSDIS","Adults Under 65 with Phys Disab or Sensory Impair","REV","Revenue","R4186","PD Residential","09-INCOME","Income","09C","Customer and Client Receipts","8555","Accommodation Charges","90959513","201902",18/05/2018 00:00:00,-117.52,"25820","Disability and Special Needs - Services","REDACTED DATA","LEONARD CHESHIRE FOUNDATION","552847","http://opencorporates.com/companies/gb/552847","646140453"
"London Borough of Redbridge","http://opendatacommunities.org/doc/london-borough-council/redbridge","6BADULTSOCIA","Adult Social Care","6CADLEARNDIS","Adults Under 65 with Learning Disabilities","REV","Revenue","R4241","CCG � LD Continuing Care","05-THIRD","Third Party Payments","05F","Voluntary associations","6802","Residential Homes","90959512","201902",18/05/2018 00:00:00,14980,"43860","Hospitals","REDACTED DATA","JEESAL AKMAN CARE CORPORATION LTD","7200632","http://opencorporates.com/companies/gb/7200632",""
"London Borough of Redbridge","http://opendatacommunities.org/doc/london-borough-council/redbridge","6BADULTSOCIA","Adult Social Care","6COLDINCMENT","Older People (65 or over) incl. Older Mentally Ill","REV","Revenue","R4378","OP Residential","05-THIRD","Third Party Payments","05F","Voluntary associations","6802","Residential Homes","90959511","201902",18/05/2018 00:00:00,2458.72,"53350","Nursing Homes","REDACTED DATA","JEWISH CARE (MERIT  HOUSE)","2447900","http://opencorporates.com/companies/gb/2447900","587033133"
"London Borough of Redbridge","http://opendatacommunities.org/doc/london-borough-council/redbridge","6BADULTSOCIA","Adult Social Care","6COLDINCMENT","Older People (65 or over) incl. Older Mentally Ill","REV","Revenue","R4378","OP Residential","09-INCOME","Income","09C","Customer and Client Receipts","8555","Accommodation Charges","90959511","201902",18/05/2018 00:00:00,-543.96,"53350","Nursing Homes","REDACTED DATA","JEWISH CARE (MERIT  HOUSE)","2447900","http://opencorporates.com/companies/gb/2447900","587033133"
"London Borough of Redbridge","http://opendatacommunities.org/doc/london-borough-council/redbridge","6BADULTSOCIA","Adult Social Care","6COLDINCMENT","Older People (65 or over) incl. Older Mentally Ill","REV","Revenue","R4378","OP Residential","05-THIRD","Third Party Payments","05F","Voluntary associations","6802","Residential Homes","90959510","201902",18/05/2018 00:00:00,2414.52,"53350","Nursing Homes","REDACTED DATA","JEWISH CARE (MERIT  HOUSE)","2447900","http://opencorporates.com/companies/gb/2447900","587033133"
"London Borough of Redbridge","http://opendatacommunities.org/doc/london-borough-council/redbridge","6BADULTSOCIA","Adult Social Care","6COLDINCMENT","Older People (65 or over) incl. Older Mentally Ill","REV","Revenue","R4378","OP Residential","09-INCOME","Income","09C","Customer and Client Receipts","8555","Accommodation Charges","90959510","201902",18/05/2018 00:00:00,-601.4,"53350","Nursing Homes","REDACTED DATA","JEWISH CARE (MERIT  HOUSE)","2447900","http://opencorporates.com/companies/gb/2447900","587033133"
"London Borough of Redbridge","http://opendatacommunities.org/doc/london-borough-council/redbridge","6BADULTSOCIA","Adult Social Care","6COLDINCMENT","Older People (65 or over) incl. Older Mentally Ill","REV","Revenue","R4378","OP Residential","05-THIRD","Third Party Payments","05F","Voluntary associations","6802","Residential Homes","90959509","201902",18/05/2018 00:00:00,2356.16,"53350","Nursing Homes","REDACTED DATA","JEWISH CARE (MERIT  HOUSE)","2447900","http://opencorporates.com/companies/gb/2447900","587033133"
"London Borough of Redbridge","http://opendatacommunities.org/doc/london-borough-council/redbridge","6BADULTSOCIA","Adult Social Care","6COLDINCMENT","Older People (65 or over) incl. Older Mentally Ill","REV","Revenue","R4378","OP Residential","09-INCOME","Income","09C","Customer and Client Receipts","8555","Accommodation Charges","90959509","201902",18/05/2018 00:00:00,-510.88,"53350","Nursing Homes","REDACTED DATA","JEWISH CARE (MERIT  HOUSE)","2447900","http://opencorporates.com/companies/gb/2447900","587033133"
"London Borough of Redbridge","http://opendatacommunities.org/doc/london-borough-council/redbridge","6BADULTSOCIA","Adult Social Care","6COLDINCMENT","Older People (65 or over) incl. Older Mentally Ill","REV","Revenue","R4378","OP Residential","05-THIRD","Third Party Payments","05F","Voluntary associations","6802","Residential Homes","90959508","201902",18/05/2018 00:00:00,2213.2,"53350","Nursing Homes","REDACTED DATA","JEWISH CARE (MERIT  HOUSE)","2447900","http://opencorporates.com/companies/gb/2447900","587033133"
"London Borough of Redbridge","http://opendatacommunities.org/doc/london-borough-council/redbridge","6BADULTSOCIA","Adult Social Care","6COLDINCMENT","Older People (65 or over) incl. Older Mentally Ill","REV","Revenue","R4378","OP Residential","09-INCOME","Income","09C","Customer and Client Receipts","8555","Accommodation Charges","90959508","201902",18/05/2018 00:00:00,-976.12,"53350","Nursing Homes","REDACTED DATA","JEWISH CARE (MERIT  HOUSE)","2447900","http://opencorporates.com/companies/gb/2447900","587033133"
"London Borough of Redbridge","http://opendatacommunities.org/doc/london-borough-council/redbridge","6BADULTSOCIA","Adult Social Care","6COLDINCMENT","Older People (65 or over) incl. Older Mentally Ill","REV","Revenue","R4385","OP Nursing","05-THIRD","Third Party Payments","05H","Private contractors","6909","Nursing Homes","90959506","201902",18/05/2018 00:00:00,2376.8,"53350","Nursing Homes","REDACTED DATA","JEWISH CARE (MERIT  HOUSE)","2447900","http://opencorporates.com/companies/gb/2447900","587033133"
"London Borough of Redbridge","http://opendatacommunities.org/doc/london-borough-council/redbridge","6BADULTSOCIA","Adult Social Care","6COLDINCMENT","Older People (65 or over) incl. Older Mentally Ill","REV","Revenue","R4385","OP Nursing","09-INCOME","Income","09C","Customer and Client Receipts","8557","Nursing Home Charges","90959506","201902",18/05/2018 00:00:00,-552.4,"53350","Nursing Homes","REDACTED DATA","JEWISH CARE (MERIT  HOUSE)","2447900","http://opencorporates.com/companies/gb/2447900","587033133"
"London Borough of Redbridge","http://opendatacommunities.org/doc/london-borough-council/redbridge","6BADULTSOCIA","Adult Social Care","6COLDINCMENT","Older People (65 or over) incl. Older Mentally Ill","REV","Revenue","R4378","OP Residential","05-THIRD","Third Party Payments","05F","Voluntary associations","6802","Residential Homes","90959505","201902",18/05/2018 00:00:00,480,"64710","Residential Care Homes","REDACTED DATA","HOMESDALE (WOODFORD BAPTIST HOMES) LTD (KENISTON)","",,""
"London Borough of Redbridge","http://opendatacommunities.org/doc/london-borough-council/redbridge","6BADULTSOCIA","Adult Social Care","6COLDINCMENT","Older People (65 or over) incl. Older Mentally Ill","REV","Revenue","R4378","OP Residential","05-THIRD","Third Party Payments","05F","Voluntary associations","6802","Residential Homes","90959505","201902",18/05/2018 00:00:00,1999.2,"64710","Residential Care Homes","REDACTED DATA","HOMESDALE (WOODFORD BAPTIST HOMES) LTD (KENISTON)","",,""
"London Borough of Redbridge","http://opendatacommunities.org/doc/london-borough-council/redbridge","6BADULTSOCIA","Adult Social Care","6COLDINCMENT","Older People (65 or over) incl. Older Mentally Ill","REV","Revenue","R4378","OP Residential","09-INCOME","Income","09C","Customer and Client Receipts","8555","Accommodation Charges","90959505","201902",18/05/2018 00:00:00,-480,"64710","Residential Care Homes","REDACTED DATA","HOMESDALE (WOODFORD BAPTIST HOMES) LTD (KENISTON)","",,""
"London Borough of Redbridge","http://opendatacommunities.org/doc/london-borough-council/redbridge","6BADULTSOCIA","Adult Social Care","6COLDINCMENT","Older People (65 or over) incl. Older Mentally Ill","REV","Revenue","R4378","OP Residential","09-INCOME","Income","09C","Customer and Client Receipts","8555","Accommodation Charges","90959505","201902",18/05/2018 00:00:00,-943.32,"64710","Residential Care Homes","REDACTED DATA","HOMESDALE (WOODFORD BAPTIST HOMES) LTD (KENISTON)","",,""
"London Borough of Redbridge","http://opendatacommunities.org/doc/london-borough-council/redbridge","6BADULTSOCIA","Adult Social Care","6COLDINCMENT","Older People (65 or over) incl. Older Mentally Ill","REV","Revenue","R4378","OP Residential","05-THIRD","Third Party Payments","05F","Voluntary associations","6802","Residential Homes","90959504","201902",18/05/2018 00:00:00,2335.8,"64710","Residential Care Homes","REDACTED DATA","HOMESDALE (WOODFORD BAPTIST HOMES) LTD (KENISTON)","",,""
"London Borough of Redbridge","http://opendatacommunities.org/doc/london-borough-council/redbridge","6BADULTSOCIA","Adult Social Care","6COLDINCMENT","Older People (65 or over) incl. Older Mentally Ill","REV","Revenue","R4378","OP Residential","09-INCOME","Income","09C","Customer and Client Receipts","8555","Accommodation Charges","90959504","201902",18/05/2018 00:00:00,-552.4,"64710","Residential Care Homes","REDACTED DATA","HOMESDALE (WOODFORD BAPTIST HOMES) LTD (KENISTON)","",,""
"London Borough of Redbridge","http://opendatacommunities.org/doc/london-borough-council/redbridge","6BADULTSOCIA","Adult Social Care","6CADPHYSDIS","Adults Under 65 with Phys Disab or Sensory Impair","REV","Revenue","R4186","PD Residential","05-THIRD","Third Party Payments","05H","Private contractors","6902","Respite Care","90959503","201902",18/05/2018 00:00:00,12507.14,"64710","Residential Care Homes","REDACTED DATA","HILLSVIEW CARE SERVICES LTD (EASTWOOD HOUSE)","9548188","http://opencorporates.com/companies/gb/9548188",""
"London Borough of Redbridge","http://opendatacommunities.org/doc/london-borough-council/redbridge","6BADULTSOCIA","Adult Social Care","6CADPHYSDIS","Adults Under 65 with Phys Disab or Sensory Impair","REV","Revenue","R4186","PD Residential","05-THIRD","Third Party Payments","05H","Private contractors","6902","Respite Care","90959503","201902",18/05/2018 00:00:00,121.43,"64710","Residential Care Homes","REDACTED DATA","HILLSVIEW CARE SERVICES LTD (EASTWOOD HOUSE)","9548188","http://opencorporates.com/companies/gb/9548188",""
"London Borough of Redbridge","http://opendatacommunities.org/doc/london-borough-council/redbridge","6BADULTSOCIA","Adult Social Care","6CADMENHLTH","Adults Under 65 with Mental Health Needs","REV","Revenue","R4190","MH - Residential Care","05-THIRD","Third Party Payments","05F","Voluntary associations","6802","Residential Homes","90959502","201902",18/05/2018 00:00:00,3348.16,"64710","Residential Care Homes","REDACTED DATA","HART CARE ESSEX LTD","4253091","http://opencorporates.com/companies/gb/4253091",""
"London Borough of Redbridge","http://opendatacommunities.org/doc/london-borough-council/redbridge","6BADULTSOCIA","Adult Social Care","6CADMENHLTH","Adults Under 65 with Mental Health Needs","REV","Revenue","R4190","MH - Residential Care","09-INCOME","Income","09C","Customer and Client Receipts","8555","Accommodation Charges","90959502","201902",18/05/2018 00:00:00,-409,"64710","Residential Care Homes","REDACTED DATA","HART CARE ESSEX LTD","4253091","http://opencorporates.com/companies/gb/4253091",""
"London Borough of Redbridge","http://opendatacommunities.org/doc/london-borough-council/redbridge","6BADULTSOCIA","Adult Social Care","6CADMENHLTH","Adults Under 65 with Mental Health Needs","REV","Revenue","R4190","MH - Residential Care","05-THIRD","Third Party Payments","05F","Voluntary associations","6802","Residential Homes","90959501","201902",18/05/2018 00:00:00,3769.32,"64710","Residential Care Homes","REDACTED DATA","HART CARE ESSEX LTD","4253091","http://opencorporates.com/companies/gb/4253091",""
"London Borough of Redbridge","http://opendatacommunities.org/doc/london-borough-council/redbridge","6BADULTSOCIA","Adult Social Care","6COLDINCMENT","Older People (65 or over) incl. Older Mentally Ill","REV","Revenue","R4378","OP Residential","05-THIRD","Third Party Payments","05F","Voluntary associations","6802","Residential Homes","90959499","201902",22/05/2018 00:00:00,2254.4,"64710","Residential Care Homes","REDACTED DATA","GREENMANTLE CARE HOME","",,""
"London Borough of Redbridge","http://opendatacommunities.org/doc/london-borough-council/redbridge","6BADULTSOCIA","Adult Social Care","6COLDINCMENT","Older People (65 or over) incl. Older Mentally Ill","REV","Revenue","R4378","OP Residential","05-THIRD","Third Party Payments","05F","Voluntary associations","6802","Residential Homes","90959499","201902",22/05/2018 00:00:00,433.12,"64710","Residential Care Homes","REDACTED DATA","GREENMANTLE CARE HOME","",,""
"London Borough of Redbridge","http://opendatacommunities.org/doc/london-borough-council/redbridge","6BADULTSOCIA","Adult Social Care","6COLDINCMENT","Older People (65 or over) incl. Older Mentally Ill","REV","Revenue","R4378","OP Residential","09-INCOME","Income","09C","Customer and Client Receipts","8555","Accommodation Charges","90959499","201902",22/05/2018 00:00:00,-433.12,"64710","Residential Care Homes","REDACTED DATA","GREENMANTLE CARE HOME","",,""
"London Borough of Redbridge","http://opendatacommunities.org/doc/london-borough-council/redbridge","6BADULTSOCIA","Adult Social Care","6COLDINCMENT","Older People (65 or over) incl. Older Mentally Ill","REV","Revenue","R4378","OP Residential","09-INCOME","Income","09C","Customer and Client Receipts","8555","Accommodation Charges","90959499","201902",22/05/2018 00:00:00,-853.44,"64710","Residential Care Homes","REDACTED DATA","GREENMANTLE CARE HOME","",,""
"London Borough of Redbridge","http://opendatacommunities.org/doc/london-borough-council/redbridge","6BADULTSOCIA","Adult Social Care","6COLDINCMENT","Older People (65 or over) incl. Older Mentally Ill","REV","Revenue","R4378","OP Residential","05-THIRD","Third Party Payments","05F","Voluntary associations","6802","Residential Homes","90959498","201902",22/05/2018 00:00:00,-1932.35,"64710","Residential Care Homes","REDACTED DATA","GREENMANTLE CARE HOME","",,""
"London Borough of Redbridge","http://opendatacommunities.org/doc/london-borough-council/redbridge","6BADULTSOCIA","Adult Social Care","6COLDINCMENT","Older People (65 or over) incl. Older Mentally Ill","REV","Revenue","R4378","OP Residential","05-THIRD","Third Party Payments","05F","Voluntary associations","6802","Residential Homes","90959498","201902",22/05/2018 00:00:00,3349.4,"64710","Residential Care Homes","REDACTED DATA","GREENMANTLE CARE HOME","",,""
"London Borough of Redbridge","http://opendatacommunities.org/doc/london-borough-council/redbridge","6BADULTSOCIA","Adult Social Care","6COLDINCMENT","Older People (65 or over) incl. Older Mentally Ill","REV","Revenue","R4378","OP Residential","09-INCOME","Income","09C","Customer and Client Receipts","8555","Accommodation Charges","90959498","201902",22/05/2018 00:00:00,-1443.97,"64710","Residential Care Homes","REDACTED DATA","GREENMANTLE CARE HOME","",,""
"London Borough of Redbridge","http://opendatacommunities.org/doc/london-borough-council/redbridge","6BADULTSOCIA","Adult Social Care","6COLDINCMENT","Older People (65 or over) incl. Older Mentally Ill","REV","Revenue","R4378","OP Residential","09-INCOME","Income","09C","Customer and Client Receipts","8555","Accommodation Charges","90959498","201902",22/05/2018 00:00:00,666.45,"64710","Residential Care Homes","REDACTED DATA","GREENMANTLE CARE HOME","",,""
"London Borough of Redbridge","http://opendatacommunities.org/doc/london-borough-council/redbridge","6BADULTSOCIA","Adult Social Care","6COLDINCMENT","Older People (65 or over) incl. Older Mentally Ill","REV","Revenue","R4378","OP Residential","05-THIRD","Third Party Payments","05F","Voluntary associations","6802","Residential Homes","90959497","201902",22/05/2018 00:00:00,2254.4,"64710","Residential Care Homes","REDACTED DATA","GREENMANTLE CARE HOME","",,""
"London Borough of Redbridge","http://opendatacommunities.org/doc/london-borough-council/redbridge","6BADULTSOCIA","Adult Social Care","6COLDINCMENT","Older People (65 or over) incl. Older Mentally Ill","REV","Revenue","R4378","OP Residential","09-INCOME","Income","09C","Customer and Client Receipts","8555","Accommodation Charges","90959497","201902",22/05/2018 00:00:00,-921.76,"64710","Residential Care Homes","REDACTED DATA","GREENMANTLE CARE HOME","",,""
"London Borough of Redbridge","http://opendatacommunities.org/doc/london-borough-council/redbridge","6BADULTSOCIA","Adult Social Care","6COLDINCMENT","Older People (65 or over) incl. Older Mentally Ill","REV","Revenue","R4378","OP Residential","05-THIRD","Third Party Payments","05F","Voluntary associations","6802","Residential Homes","90959496","201902",22/05/2018 00:00:00,5960,"64710","Residential Care Homes","REDACTED DATA","GREENMANTLE CARE HOME","",,""
"London Borough of Redbridge","http://opendatacommunities.org/doc/london-borough-council/redbridge","6BADULTSOCIA","Adult Social Care","6COLDINCMENT","Older People (65 or over) incl. Older Mentally Ill","REV","Revenue","R4378","OP Residential","09-INCOME","Income","09C","Customer and Client Receipts","8555","Accommodation Charges","90959496","201902",22/05/2018 00:00:00,-653.76,"64710","Residential Care Homes","REDACTED DATA","GREENMANTLE CARE HOME","",,""
"London Borough of Redbridge","http://opendatacommunities.org/doc/london-borough-council/redbridge","6BADULTSOCIA","Adult Social Care","6COLDINCMENT","Older People (65 or over) incl. Older Mentally Ill","REV","Revenue","R4385","OP Nursing","05-THIRD","Third Party Payments","05H","Private contractors","6909","Nursing Homes","90959494","201902",18/05/2018 00:00:00,2067.4,"53350","Nursing Homes","REDACTED DATA","CHURCHFIELDS NURSING HOME (YEW TREE CARE)","",,""
"London Borough of Redbridge","http://opendatacommunities.org/doc/london-borough-council/redbridge","6BADULTSOCIA","Adult Social Care","6COLDINCMENT","Older People (65 or over) incl. Older Mentally Ill","REV","Revenue","R4385","OP Nursing","09-INCOME","Income","09C","Customer and Client Receipts","8557","Nursing Home Charges","90959494","201902",18/05/2018 00:00:00,-498.44,"53350","Nursing Homes","REDACTED DATA","CHURCHFIELDS NURSING HOME (YEW TREE CARE)","",,""
"London Borough of Redbridge","http://opendatacommunities.org/doc/london-borough-council/redbridge","6BADULTSOCIA","Adult Social Care","6COLDINCMENT","Older People (65 or over) incl. Older Mentally Ill","REV","Revenue","R4385","OP Nursing","05-THIRD","Third Party Payments","05H","Private contractors","6909","Nursing Homes","90959493","201902",18/05/2018 00:00:00,2067.4,"53350","Nursing Homes","REDACTED DATA","CHURCHFIELDS NURSING HOME (YEW TREE CARE)","",,""
"London Borough of Redbridge","http://opendatacommunities.org/doc/london-borough-council/redbridge","6BADULTSOCIA","Adult Social Care","6COLDINCMENT","Older People (65 or over) incl. Older Mentally Ill","REV","Revenue","R4385","OP Nursing","09-INCOME","Income","09C","Customer and Client Receipts","8557","Nursing Home Charges","90959493","201902",18/05/2018 00:00:00,-682.6,"53350","Nursing Homes","REDACTED DATA","CHURCHFIELDS NURSING HOME (YEW TREE CARE)","",,""
"London Borough of Redbridge","http://opendatacommunities.org/doc/london-borough-council/redbridge","6BADULTSOCIA","Adult Social Care","6COLDINCMENT","Older People (65 or over) incl. Older Mentally Ill","REV","Revenue","R4385","OP Nursing","05-THIRD","Third Party Payments","05H","Private contractors","6909","Nursing Homes","90959492","201902",18/05/2018 00:00:00,2067.4,"53350","Nursing Homes","REDACTED DATA","CHURCHFIELDS NURSING HOME (YEW TREE CARE)","",,""
"London Borough of Redbridge","http://opendatacommunities.org/doc/london-borough-council/redbridge","6BADULTSOCIA","Adult Social Care","6COLDINCMENT","Older People (65 or over) incl. Older Mentally Ill","REV","Revenue","R4385","OP Nursing","09-INCOME","Income","09C","Customer and Client Receipts","8557","Nursing Home Charges","90959492","201902",18/05/2018 00:00:00,-552.4,"53350","Nursing Homes","REDACTED DATA","CHURCHFIELDS NURSING HOME (YEW TREE CARE)","",,""
"London Borough of Redbridge","http://opendatacommunities.org/doc/london-borough-council/redbridge","6BADULTSOCIA","Adult Social Care","6COLDINCMENT","Older People (65 or over) incl. Older Mentally Ill","REV","Revenue","R4385","OP Nursing","05-THIRD","Third Party Payments","05H","Private contractors","6909","Nursing Homes","90959491","201902",18/05/2018 00:00:00,2067.4,"53350","Nursing Homes","REDACTED DATA","CHURCHFIELDS NURSING HOME (YEW TREE CARE)","",,""
"London Borough of Redbridge","http://opendatacommunities.org/doc/london-borough-council/redbridge","6BADULTSOCIA","Adult Social Care","6COLDINCMENT","Older People (65 or over) incl. Older Mentally Ill","REV","Revenue","R4385","OP Nursing","05-THIRD","Third Party Payments","05H","Private contractors","6909","Nursing Homes","90959489","201902",18/05/2018 00:00:00,2067.36,"53350","Nursing Homes","REDACTED DATA","CHURCHFIELDS NURSING HOME (YEW TREE CARE)","",,""
"London Borough of Redbridge","http://opendatacommunities.org/doc/london-borough-council/redbridge","6BADULTSOCIA","Adult Social Care","6COLDINCMENT","Older People (65 or over) incl. Older Mentally Ill","REV","Revenue","R4385","OP Nursing","05-THIRD","Third Party Payments","05H","Private contractors","6909","Nursing Homes","90959489","201902",18/05/2018 00:00:00,200,"53350","Nursing Homes","REDACTED DATA","CHURCHFIELDS NURSING HOME (YEW TREE CARE)","",,""
"London Borough of Redbridge","http://opendatacommunities.org/doc/london-borough-council/redbridge","6BADULTSOCIA","Adult Social Care","6COLDINCMENT","Older People (65 or over) incl. Older Mentally Ill","REV","Revenue","R4385","OP Nursing","09-INCOME","Income","09C","Customer and Client Receipts","8557","Nursing Home Charges","90959489","201902",18/05/2018 00:00:00,-448.6,"53350","Nursing Homes","REDACTED DATA","CHURCHFIELDS NURSING HOME (YEW TREE CARE)","",,""
"London Borough of Redbridge","http://opendatacommunities.org/doc/london-borough-council/redbridge","6BADULTSOCIA","Adult Social Care","6COLDINCMENT","Older People (65 or over) incl. Older Mentally Ill","REV","Revenue","R4385","OP Nursing","09-INCOME","Income","09C","Customer and Client Receipts","8557","Nursing Home Charges","90959489","201902",18/05/2018 00:00:00,-200,"53350","Nursing Homes","REDACTED DATA","CHURCHFIELDS NURSING HOME (YEW TREE CARE)","",,""
"London Borough of Redbridge","http://opendatacommunities.org/doc/london-borough-council/redbridge","6BADULTSOCIA","Adult Social Care","6COLDINCMENT","Older People (65 or over) incl. Older Mentally Ill","REV","Revenue","R4385","OP Nursing","05-THIRD","Third Party Payments","05H","Private contractors","6909","Nursing Homes","90959487","201902",18/05/2018 00:00:00,2067.36,"53350","Nursing Homes","REDACTED DATA","CHURCHFIELDS NURSING HOME (YEW TREE CARE)","",,""
"London Borough of Redbridge","http://opendatacommunities.org/doc/london-borough-council/redbridge","6BADULTSOCIA","Adult Social Care","6CADLEARNDIS","Adults Under 65 with Learning Disabilities","REV","Revenue","R4185","LD - Supported Living","06-TRANSFER","Transfer Payments","06B","Social Services Clients","7066","Supportive Lodgings (Transfer Payments)","90959483","201902",18/05/2018 00:00:00,3631.2,"64710","Residential Care Homes","REDACTED DATA","CARETECH COMMUNITY SERVICES LTD","2804415","http://opencorporates.com/companies/gb/2804415",""
"London Borough of Redbridge","http://opendatacommunities.org/doc/london-borough-council/redbridge","6BADULTSOCIA","Adult Social Care","6CADLEARNDIS","Adults Under 65 with Learning Disabilities","REV","Revenue","R4185","LD - Supported Living","09-INCOME","Income","09C","Customer and Client Receipts","8553","Care Package Charges","90959483","201902",18/05/2018 00:00:00,-35.56,"64710","Residential Care Homes","REDACTED DATA","CARETECH COMMUNITY SERVICES LTD","2804415","http://opencorporates.com/companies/gb/2804415",""
"London Borough of Redbridge","http://opendatacommunities.org/doc/london-borough-council/redbridge","6BADULTSOCIA","Adult Social Care","6CADMENHLTH","Adults Under 65 with Mental Health Needs","REV","Revenue","R4219","MH - Supported Living","06-TRANSFER","Transfer Payments","06B","Social Services Clients","7066","Supportive Lodgings (Transfer Payments)","90959482","201902",18/05/2018 00:00:00,3330.08,"64710","Residential Care Homes","REDACTED DATA","CARETECH COMMUNITY SERVICES LTD","2804415","http://opencorporates.com/companies/gb/2804415",""
"London Borough of Redbridge","http://opendatacommunities.org/doc/london-borough-council/redbridge","6BADULTSOCIA","Adult Social Care","6CADMENHLTH","Adults Under 65 with Mental Health Needs","REV","Revenue","R4219","MH - Supported Living","06-TRANSFER","Transfer Payments","06B","Social Services Clients","7066","Supportive Lodgings (Transfer Payments)","90959481","201902",18/05/2018 00:00:00,3330.08,"64710","Residential Care Homes","REDACTED DATA","CARETECH COMMUNITY SERVICES LTD","2804415","http://opencorporates.com/companies/gb/2804415",""
"London Borough of Redbridge","http://opendatacommunities.org/doc/london-borough-council/redbridge","6BADULTSOCIA","Adult Social Care","6CADMENHLTH","Adults Under 65 with Mental Health Needs","REV","Revenue","R4219","MH - Supported Living","06-TRANSFER","Transfer Payments","06B","Social Services Clients","7066","Supportive Lodgings (Transfer Payments)","90959480","201902",18/05/2018 00:00:00,3330.08,"64710","Residential Care Homes","REDACTED DATA","CARETECH COMMUNITY SERVICES LTD","2804415","http://opencorporates.com/companies/gb/2804415",""
"London Borough of Redbridge","http://opendatacommunities.org/doc/london-borough-council/redbridge","6BADULTSOCIA","Adult Social Care","6CADMENHLTH","Adults Under 65 with Mental Health Needs","REV","Revenue","R4219","MH - Supported Living","06-TRANSFER","Transfer Payments","06B","Social Services Clients","7066","Supportive Lodgings (Transfer Payments)","90959479","201902",18/05/2018 00:00:00,3330.08,"64710","Residential Care Homes","REDACTED DATA","CARETECH COMMUNITY SERVICES LTD","2804415","http://opencorporates.com/companies/gb/2804415",""
"London Borough of Redbridge","http://opendatacommunities.org/doc/london-borough-council/redbridge","6BADULTSOCIA","Adult Social Care","6CADLEARNDIS","Adults Under 65 with Learning Disabilities","REV","Revenue","R4185","LD - Supported Living","06-TRANSFER","Transfer Payments","06B","Social Services Clients","7066","Supportive Lodgings (Transfer Payments)","90959478","201902",18/05/2018 00:00:00,5712,"64710","Residential Care Homes","REDACTED DATA","CARETECH COMMUNITY SERVICES LTD","2804415","http://opencorporates.com/companies/gb/2804415",""
"London Borough of Redbridge","http://opendatacommunities.org/doc/london-borough-council/redbridge","6BADULTSOCIA","Adult Social Care","6CADPHYSDIS","Adults Under 65 with Phys Disab or Sensory Impair","REV","Revenue","R4387","PD Nursing","05-THIRD","Third Party Payments","05H","Private contractors","6909","Nursing Homes","90959477","201902",18/05/2018 00:00:00,3082.6,"53350","Nursing Homes","REDACTED DATA","CAMBRIDGE NURSING HOME","",,""
"London Borough of Redbridge","http://opendatacommunities.org/doc/london-borough-council/redbridge","6BADULTSOCIA","Adult Social Care","6CADPHYSDIS","Adults Under 65 with Phys Disab or Sensory Impair","REV","Revenue","R4387","PD Nursing","09-INCOME","Income","09C","Customer and Client Receipts","8557","Nursing Home Charges","90959477","201902",18/05/2018 00:00:00,-552.4,"53350","Nursing Homes","REDACTED DATA","CAMBRIDGE NURSING HOME","",,""
"London Borough of Redbridge","http://opendatacommunities.org/doc/london-borough-council/redbridge","6BADULTSOCIA","Adult Social Care","6CADPHYSDIS","Adults Under 65 with Phys Disab or Sensory Impair","REV","Revenue","R4387","PD Nursing","05-THIRD","Third Party Payments","05H","Private contractors","6909","Nursing Homes","90959475","201902",18/05/2018 00:00:00,2383.12,"53350","Nursing Homes","REDACTED DATA","CAMBRIDGE NURSING HOME","",,""
"London Borough of Redbridge","http://opendatacommunities.org/doc/london-borough-council/redbridge","6BADULTSOCIA","Adult Social Care","6CADPHYSDIS","Adults Under 65 with Phys Disab or Sensory Impair","REV","Revenue","R4387","PD Nursing","09-INCOME","Income","09C","Customer and Client Receipts","8557","Nursing Home Charges","90959475","201902",18/05/2018 00:00:00,-552.4,"53350","Nursing Homes","REDACTED DATA","CAMBRIDGE NURSING HOME","",,""
"London Borough of Redbridge","http://opendatacommunities.org/doc/london-borough-council/redbridge","6BADULTSOCIA","Adult Social Care","6COLDINCMENT","Older People (65 or over) incl. Older Mentally Ill","REV","Revenue","R4378","OP Residential","05-THIRD","Third Party Payments","05F","Voluntary associations","6802","Residential Homes","90959474","201902",18/05/2018 00:00:00,1999.24,"53350","Nursing Homes","REDACTED DATA","CAMBRIDGE NURSING HOME","",,""
"London Borough of Redbridge","http://opendatacommunities.org/doc/london-borough-council/redbridge","6BADULTSOCIA","Adult Social Care","6COLDINCMENT","Older People (65 or over) incl. Older Mentally Ill","REV","Revenue","R4378","OP Residential","09-INCOME","Income","09C","Customer and Client Receipts","8555","Accommodation Charges","90959474","201902",18/05/2018 00:00:00,-522.8,"53350","Nursing Homes","REDACTED DATA","CAMBRIDGE NURSING HOME","",,""
"London Borough of Redbridge","http://opendatacommunities.org/doc/london-borough-council/redbridge","6BADULTSOCIA","Adult Social Care","6COLDINCMENT","Older People (65 or over) incl. Older Mentally Ill","REV","Revenue","R4378","OP Residential","05-THIRD","Third Party Payments","05F","Voluntary associations","6802","Residential Homes","90959473","201902",18/05/2018 00:00:00,2276.96,"53350","Nursing Homes","REDACTED DATA","CAMBRIDGE NURSING HOME","",,""
"London Borough of Redbridge","http://opendatacommunities.org/doc/london-borough-council/redbridge","6BADULTSOCIA","Adult Social Care","6COLDINCMENT","Older People (65 or over) incl. Older Mentally Ill","REV","Revenue","R4378","OP Residential","05-THIRD","Third Party Payments","05F","Voluntary associations","6802","Residential Homes","90959472","201902",18/05/2018 00:00:00,2319.2,"64710","Residential Care Homes","REDACTED DATA","BENNETTS CASTLE LTD","3723811","http://opencorporates.com/companies/gb/3723811",""
"London Borough of Redbridge","http://opendatacommunities.org/doc/london-borough-council/redbridge","6BADULTSOCIA","Adult Social Care","6CADLEARNDIS","Adults Under 65 with Learning Disabilities","REV","Revenue","R4188","LD - Residential Care","05-THIRD","Third Party Payments","05F","Voluntary associations","6802","Residential Homes","90959470","201902",18/05/2018 00:00:00,5130.88,"64710","Residential Care Homes","REDACTED DATA","ALPAM HOMES","",,""
"London Borough of Redbridge","http://opendatacommunities.org/doc/london-borough-council/redbridge","6BADULTSOCIA","Adult Social Care","6CADLEARNDIS","Adults Under 65 with Learning Disabilities","REV","Revenue","R4188","LD - Residential Care","09-INCOME","Income","09C","Customer and Client Receipts","8555","Accommodation Charges","90959470","201902",18/05/2018 00:00:00,-402.6,"64710","Residential Care Homes","REDACTED DATA","ALPAM HOMES","",,""
"London Borough of Redbridge","http://opendatacommunities.org/doc/london-borough-council/redbridge","6BADULTSOCIA","Adult Social Care","6CADLEARNDIS","Adults Under 65 with Learning Disabilities","REV","Revenue","R4188","LD - Residential Care","05-THIRD","Third Party Payments","05F","Voluntary associations","6802","Residential Homes","90959469","201902",18/05/2018 00:00:00,6508.16,"64710","Residential Care Homes","REDACTED DATA","ALPAM HOMES","",,""
"London Borough of Redbridge","http://opendatacommunities.org/doc/london-borough-council/redbridge","6BADULTSOCIA","Adult Social Care","6CADLEARNDIS","Adults Under 65 with Learning Disabilities","REV","Revenue","R4188","LD - Residential Care","09-INCOME","Income","09C","Customer and Client Receipts","8555","Accommodation Charges","90959469","201902",18/05/2018 00:00:00,-402.6,"64710","Residential Care Homes","REDACTED DATA","ALPAM HOMES","",,""
"London Borough of Redbridge","http://opendatacommunities.org/doc/london-borough-council/redbridge","6BADULTSOCIA","Adult Social Care","6CADLEARNDIS","Adults Under 65 with Learning Disabilities","REV","Revenue","R4188","LD - Residential Care","05-THIRD","Third Party Payments","05F","Voluntary associations","6802","Residential Homes","90959468","201902",18/05/2018 00:00:00,6704.76,"64710","Residential Care Homes","REDACTED DATA","ALPAM HOMES","",,""
"London Borough of Redbridge","http://opendatacommunities.org/doc/london-borough-council/redbridge","6BADULTSOCIA","Adult Social Care","6CADLEARNDIS","Adults Under 65 with Learning Disabilities","REV","Revenue","R4188","LD - Residential Care","09-INCOME","Income","09C","Customer and Client Receipts","8555","Accommodation Charges","90959468","201902",18/05/2018 00:00:00,-402.6,"64710","Residential Care Homes","REDACTED DATA","ALPAM HOMES","",,""
"London Borough of Redbridge","http://opendatacommunities.org/doc/london-borough-council/redbridge","6BADULTSOCIA","Adult Social Care","6COLDINCMENT","Older People (65 or over) incl. Older Mentally Ill","REV","Revenue","R4378","OP Residential","05-THIRD","Third Party Payments","05F","Voluntary associations","6802","Residential Homes","90959467","201902",18/05/2018 00:00:00,2305.2,"64710","Residential Care Homes","REDACTED DATA","ABBEY CARE HOME","",,""
"London Borough of Redbridge","http://opendatacommunities.org/doc/london-borough-council/redbridge","6BADULTSOCIA","Adult Social Care","6COLDINCMENT","Older People (65 or over) incl. Older Mentally Ill","REV","Revenue","R4378","OP Residential","09-INCOME","Income","09C","Customer and Client Receipts","8555","Accommodation Charges","90959467","201902",18/05/2018 00:00:00,-521.84,"64710","Residential Care Homes","REDACTED DATA","ABBEY CARE HOME","",,""
"London Borough of Redbridge","http://opendatacommunities.org/doc/london-borough-council/redbridge","6BADULTSOCIA","Adult Social Care","6COLDINCMENT","Older People (65 or over) incl. Older Mentally Ill","REV","Revenue","R4378","OP Residential","05-THIRD","Third Party Payments","05F","Voluntary associations","6802","Residential Homes","90959466","201902",18/05/2018 00:00:00,1949.96,"64710","Residential Care Homes","REDACTED DATA","ABBEY CARE HOME","",,""
"London Borough of Redbridge","http://opendatacommunities.org/doc/london-borough-council/redbridge","6BADULTSOCIA","Adult Social Care","6COLDINCMENT","Older People (65 or over) incl. Older Mentally Ill","REV","Revenue","R4378","OP Residential","09-INCOME","Income","09C","Customer and Client Receipts","8555","Accommodation Charges","90959466","201902",18/05/2018 00:00:00,-460.16,"64710","Residential Care Homes","REDACTED DATA","ABBEY CARE HOME","",,""
"London Borough of Redbridge","http://opendatacommunities.org/doc/london-borough-council/redbridge","6BADULTSOCIA","Adult Social Care","6COLDINCMENT","Older People (65 or over) incl. Older Mentally Ill","REV","Revenue","R4385","OP Nursing","05-THIRD","Third Party Payments","05H","Private contractors","6909","Nursing Homes","90959465","201902",18/05/2018 00:00:00,2199.12,"64710","Residential Care Homes","REDACTED DATA","HAVERING CARE HOMES LTD - T/A ABBCROSS NURSING HOME","3687354","http://opencorporates.com/companies/gb/3687354",""
"London Borough of Redbridge","http://opendatacommunities.org/doc/london-borough-council/redbridge","6BADULTSOCIA","Adult Social Care","6COLDINCMENT","Older People (65 or over) incl. Older Mentally Ill","REV","Revenue","R4385","OP Nursing","09-INCOME","Income","09C","Customer and Client Receipts","8557","Nursing Home Charges","90959465","201902",18/05/2018 00:00:00,-990.76,"64710","Residential Care Homes","REDACTED DATA","HAVERING CARE HOMES LTD - T/A ABBCROSS NURSING HOME","3687354","http://opencorporates.com/companies/gb/3687354",""
"London Borough of Redbridge","http://opendatacommunities.org/doc/london-borough-council/redbridge","6BADULTSOCIA","Adult Social Care","6COLDINCMENT","Older People (65 or over) incl. Older Mentally Ill","REV","Revenue","R4385","OP Nursing","05-THIRD","Third Party Payments","05H","Private contractors","6909","Nursing Homes","90959464","201902",18/05/2018 00:00:00,2158.32,"64710","Residential Care Homes","REDACTED DATA","HAVERING CARE HOMES LTD - T/A ABBCROSS NURSING HOME","3687354","http://opencorporates.com/companies/gb/3687354",""
"London Borough of Redbridge","http://opendatacommunities.org/doc/london-borough-council/redbridge","6BADULTSOCIA","Adult Social Care","6COLDINCMENT","Older People (65 or over) incl. Older Mentally Ill","REV","Revenue","R4385","OP Nursing","09-INCOME","Income","09C","Customer and Client Receipts","8557","Nursing Home Charges","90959464","201902",18/05/2018 00:00:00,-630.2,"64710","Residential Care Homes","REDACTED DATA","HAVERING CARE HOMES LTD - T/A ABBCROSS NURSING HOME","3687354","http://opencorporates.com/companies/gb/3687354",""
"London Borough of Redbridge","http://opendatacommunities.org/doc/london-borough-council/redbridge","6BADULTSOCIA","Adult Social Care","6CADLEARNDIS","Adults Under 65 with Learning Disabilities","REV","Revenue","R4188","LD - Residential Care","05-THIRD","Third Party Payments","05F","Voluntary associations","6802","Residential Homes","90959463","201902",18/05/2018 00:00:00,4843.24,"64710","Residential Care Homes","REDACTED DATA","AITHRIE RESIDENTIAL HOME","",,""
"London Borough of Redbridge","http://opendatacommunities.org/doc/london-borough-council/redbridge","6BADULTSOCIA","Adult Social Care","6CADLEARNDIS","Adults Under 65 with Learning Disabilities","REV","Revenue","R4188","LD - Residential Care","09-INCOME","Income","09C","Customer and Client Receipts","8555","Accommodation Charges","90959463","201902",18/05/2018 00:00:00,-327,"64710","Residential Care Homes","REDACTED DATA","AITHRIE RESIDENTIAL HOME","",,""
"London Borough of Redbridge","http://opendatacommunities.org/doc/london-borough-council/redbridge","6BADULTSOCIA","Adult Social Care","6CADLEARNDIS","Adults Under 65 with Learning Disabilities","REV","Revenue","R4188","LD - Residential Care","05-THIRD","Third Party Payments","05F","Voluntary associations","6802","Residential Homes","90959462","201902",18/05/2018 00:00:00,3496.04,"64710","Residential Care Homes","REDACTED DATA","AITHRIE RESIDENTIAL HOME","",,""
"London Borough of Redbridge","http://opendatacommunities.org/doc/london-borough-council/redbridge","6BADULTSOCIA","Adult Social Care","6CADLEARNDIS","Adults Under 65 with Learning Disabilities","REV","Revenue","R4188","LD - Residential Care","09-INCOME","Income","09C","Customer and Client Receipts","8555","Accommodation Charges","90959462","201902",18/05/2018 00:00:00,-327,"64710","Residential Care Homes","REDACTED DATA","AITHRIE RESIDENTIAL HOME","",,""
"London Borough of Redbridge","http://opendatacommunities.org/doc/london-borough-council/redbridge","6BADULTSOCIA","Adult Social Care","6CADMENHLTH","Adults Under 65 with Mental Health Needs","REV","Revenue","R4190","MH - Residential Care","05-THIRD","Third Party Payments","05F","Voluntary associations","6802","Residential Homes","90959461","201902",18/05/2018 00:00:00,5954.76,"64710","Residential Care Homes","REDACTED DATA","AITHRIE RESIDENTIAL HOME","",,""
"London Borough of Redbridge","http://opendatacommunities.org/doc/london-borough-council/redbridge","6BADULTSOCIA","Adult Social Care","6CADMENHLTH","Adults Under 65 with Mental Health Needs","REV","Revenue","R4190","MH - Residential Care","05-THIRD","Third Party Payments","05F","Voluntary associations","6802","Residential Homes","90959460","201902",18/05/2018 00:00:00,3748.24,"17020","Charities and Voluntary Organisations","REDACTED DATA","VIBRANCE","7094318","http://opencorporates.com/companies/gb/7094318",""
"London Borough of Redbridge","http://opendatacommunities.org/doc/london-borough-council/redbridge","6BADULTSOCIA","Adult Social Care","6CADMENHLTH","Adults Under 65 with Mental Health Needs","REV","Revenue","R4190","MH - Residential Care","09-INCOME","Income","09C","Customer and Client Receipts","8555","Accommodation Charges","90959460","201902",18/05/2018 00:00:00,-9.6,"17020","Charities and Voluntary Organisations","REDACTED DATA","VIBRANCE","7094318","http://opencorporates.com/companies/gb/7094318",""
"London Borough of Redbridge","http://opendatacommunities.org/doc/london-borough-council/redbridge","6BADULTSOCIA","Adult Social Care","6CADMENHLTH","Adults Under 65 with Mental Health Needs","REV","Revenue","R4190","MH - Residential Care","09-INCOME","Income","09C","Customer and Client Receipts","8555","Accommodation Charges","90959460","201902",18/05/2018 00:00:00,-409,"17020","Charities and Voluntary Organisations","REDACTED DATA","VIBRANCE","7094318","http://opencorporates.com/companies/gb/7094318",""
"London Borough of Redbridge","http://opendatacommunities.org/doc/london-borough-council/redbridge","6BADULTSOCIA","Adult Social Care","6CADMENHLTH","Adults Under 65 with Mental Health Needs","REV","Revenue","R4190","MH - Residential Care","05-THIRD","Third Party Payments","05F","Voluntary associations","6802","Residential Homes","90959459","201902",18/05/2018 00:00:00,3831,"17020","Charities and Voluntary Organisations","REDACTED DATA","VIBRANCE","7094318","http://opencorporates.com/companies/gb/7094318",""
"London Borough of Redbridge","http://opendatacommunities.org/doc/london-borough-council/redbridge","6BADULTSOCIA","Adult Social Care","6CADLEARNDIS","Adults Under 65 with Learning Disabilities","REV","Revenue","R4188","LD - Residential Care","05-THIRD","Third Party Payments","05F","Voluntary associations","6802","Residential Homes","90959458","201902",18/05/2018 00:00:00,4293.88,"17020","Charities and Voluntary Organisations","REDACTED DATA","VIBRANCE","7094318","http://opencorporates.com/companies/gb/7094318",""
"London Borough of Redbridge","http://opendatacommunities.org/doc/london-borough-council/redbridge","6BADULTSOCIA","Adult Social Care","6CADLEARNDIS","Adults Under 65 with Learning Disabilities","REV","Revenue","R4188","LD - Residential Care","09-INCOME","Income","09C","Customer and Client Receipts","8555","Accommodation Charges","90959458","201902",18/05/2018 00:00:00,-402.6,"17020","Charities and Voluntary Organisations","REDACTED DATA","VIBRANCE","7094318","http://opencorporates.com/companies/gb/7094318",""
"London Borough of Redbridge","http://opendatacommunities.org/doc/london-borough-council/redbridge","6BADULTSOCIA","Adult Social Care","6CADLEARNDIS","Adults Under 65 with Learning Disabilities","REV","Revenue","R4188","LD - Residential Care","05-THIRD","Third Party Payments","05F","Voluntary associations","6802","Residential Homes","90959457","201902",18/05/2018 00:00:00,4293.88,"17020","Charities and Voluntary Organisations","REDACTED DATA","VIBRANCE","7094318","http://opencorporates.com/companies/gb/7094318",""
"London Borough of Redbridge","http://opendatacommunities.org/doc/london-borough-council/redbridge","6BADULTSOCIA","Adult Social Care","6CADLEARNDIS","Adults Under 65 with Learning Disabilities","REV","Revenue","R4188","LD - Residential Care","09-INCOME","Income","09C","Customer and Client Receipts","8555","Accommodation Charges","90959457","201902",18/05/2018 00:00:00,-9.6,"17020","Charities and Voluntary Organisations","REDACTED DATA","VIBRANCE","7094318","http://opencorporates.com/companies/gb/7094318",""
"London Borough of Redbridge","http://opendatacommunities.org/doc/london-borough-council/redbridge","6BADULTSOCIA","Adult Social Care","6CADLEARNDIS","Adults Under 65 with Learning Disabilities","REV","Revenue","R4188","LD - Residential Care","09-INCOME","Income","09C","Customer and Client Receipts","8555","Accommodation Charges","90959457","201902",18/05/2018 00:00:00,-409,"17020","Charities and Voluntary Organisations","REDACTED DATA","VIBRANCE","7094318","http://opencorporates.com/companies/gb/7094318",""
"London Borough of Redbridge","http://opendatacommunities.org/doc/london-borough-council/redbridge","6BADULTSOCIA","Adult Social Care","6CADLEARNDIS","Adults Under 65 with Learning Disabilities","REV","Revenue","R4188","LD - Residential Care","05-THIRD","Third Party Payments","05F","Voluntary associations","6802","Residential Homes","90959456","201902",18/05/2018 00:00:00,4293.88,"17020","Charities and Voluntary Organisations","REDACTED DATA","VIBRANCE","7094318","http://opencorporates.com/companies/gb/7094318",""
"London Borough of Redbridge","http://opendatacommunities.org/doc/london-borough-council/redbridge","6BADULTSOCIA","Adult Social Care","6CADLEARNDIS","Adults Under 65 with Learning Disabilities","REV","Revenue","R4188","LD - Residential Care","09-INCOME","Income","09C","Customer and Client Receipts","8555","Accommodation Charges","90959456","201902",18/05/2018 00:00:00,-409,"17020","Charities and Voluntary Organisations","REDACTED DATA","VIBRANCE","7094318","http://opencorporates.com/companies/gb/7094318",""
"London Borough of Redbridge","http://opendatacommunities.org/doc/london-borough-council/redbridge","6BADULTSOCIA","Adult Social Care","6CADLEARNDIS","Adults Under 65 with Learning Disabilities","REV","Revenue","R4188","LD - Residential Care","09-INCOME","Income","09C","Customer and Client Receipts","8555","Accommodation Charges","90959456","201902",18/05/2018 00:00:00,-9.6,"17020","Charities and Voluntary Organisations","REDACTED DATA","VIBRANCE","7094318","http://opencorporates.com/companies/gb/7094318",""
"London Borough of Redbridge","http://opendatacommunities.org/doc/london-borough-council/redbridge","6BADULTSOCIA","Adult Social Care","6CADLEARNDIS","Adults Under 65 with Learning Disabilities","REV","Revenue","R4188","LD - Residential Care","05-THIRD","Third Party Payments","05F","Voluntary associations","6802","Residential Homes","90959455","201902",18/05/2018 00:00:00,6728.96,"17020","Charities and Voluntary Organisations","REDACTED DATA","VIBRANCE","7094318","http://opencorporates.com/companies/gb/7094318",""
"London Borough of Redbridge","http://opendatacommunities.org/doc/london-borough-council/redbridge","6BADULTSOCIA","Adult Social Care","6CADLEARNDIS","Adults Under 65 with Learning Disabilities","REV","Revenue","R4188","LD - Residential Care","09-INCOME","Income","09C","Customer and Client Receipts","8555","Accommodation Charges","90959455","201902",18/05/2018 00:00:00,-9.6,"17020","Charities and Voluntary Organisations","REDACTED DATA","VIBRANCE","7094318","http://opencorporates.com/companies/gb/7094318",""
"London Borough of Redbridge","http://opendatacommunities.org/doc/london-borough-council/redbridge","6BADULTSOCIA","Adult Social Care","6CADLEARNDIS","Adults Under 65 with Learning Disabilities","REV","Revenue","R4188","LD - Residential Care","09-INCOME","Income","09C","Customer and Client Receipts","8555","Accommodation Charges","90959455","201902",18/05/2018 00:00:00,-409,"17020","Charities and Voluntary Organisations","REDACTED DATA","VIBRANCE","7094318","http://opencorporates.com/companies/gb/7094318",""
"London Borough of Redbridge","http://opendatacommunities.org/doc/london-borough-council/redbridge","6BADULTSOCIA","Adult Social Care","6CADLEARNDIS","Adults Under 65 with Learning Disabilities","REV","Revenue","R4188","LD - Residential Care","05-THIRD","Third Party Payments","05F","Voluntary associations","6802","Residential Homes","90959454","201902",18/05/2018 00:00:00,5943.92,"17020","Charities and Voluntary Organisations","REDACTED DATA","VIBRANCE","7094318","http://opencorporates.com/companies/gb/7094318",""
"London Borough of Redbridge","http://opendatacommunities.org/doc/london-borough-council/redbridge","6BADULTSOCIA","Adult Social Care","6CADLEARNDIS","Adults Under 65 with Learning Disabilities","REV","Revenue","R4188","LD - Residential Care","09-INCOME","Income","09C","Customer and Client Receipts","8555","Accommodation Charges","90959454","201902",18/05/2018 00:00:00,-327,"17020","Charities and Voluntary Organisations","REDACTED DATA","VIBRANCE","7094318","http://opencorporates.com/companies/gb/7094318",""
"London Borough of Redbridge","http://opendatacommunities.org/doc/london-borough-council/redbridge","6BADULTSOCIA","Adult Social Care","6CADLEARNDIS","Adults Under 65 with Learning Disabilities","REV","Revenue","R4188","LD - Residential Care","05-THIRD","Third Party Payments","05F","Voluntary associations","6802","Residential Homes","90959453","201902",18/05/2018 00:00:00,5943.92,"17020","Charities and Voluntary Organisations","REDACTED DATA","VIBRANCE","7094318","http://opencorporates.com/companies/gb/7094318",""
"London Borough of Redbridge","http://opendatacommunities.org/doc/london-borough-council/redbridge","6BADULTSOCIA","Adult Social Care","6CADLEARNDIS","Adults Under 65 with Learning Disabilities","REV","Revenue","R4188","LD - Residential Care","09-INCOME","Income","09C","Customer and Client Receipts","8555","Accommodation Charges","90959453","201902",18/05/2018 00:00:00,-608.6,"17020","Charities and Voluntary Organisations","REDACTED DATA","VIBRANCE","7094318","http://opencorporates.com/companies/gb/7094318",""
"London Borough of Redbridge","http://opendatacommunities.org/doc/london-borough-council/redbridge","6BADULTSOCIA","Adult Social Care","6CADLEARNDIS","Adults Under 65 with Learning Disabilities","REV","Revenue","R4188","LD - Residential Care","05-THIRD","Third Party Payments","05F","Voluntary associations","6802","Residential Homes","90959452","201902",18/05/2018 00:00:00,5943.92,"17020","Charities and Voluntary Organisations","REDACTED DATA","VIBRANCE","7094318","http://opencorporates.com/companies/gb/7094318",""
"London Borough of Redbridge","http://opendatacommunities.org/doc/london-borough-council/redbridge","6BADULTSOCIA","Adult Social Care","6CADLEARNDIS","Adults Under 65 with Learning Disabilities","REV","Revenue","R4188","LD - Residential Care","09-INCOME","Income","09C","Customer and Client Receipts","8555","Accommodation Charges","90959452","201902",18/05/2018 00:00:00,-9.6,"17020","Charities and Voluntary Organisations","REDACTED DATA","VIBRANCE","7094318","http://opencorporates.com/companies/gb/7094318",""
"London Borough of Redbridge","http://opendatacommunities.org/doc/london-borough-council/redbridge","6BADULTSOCIA","Adult Social Care","6CADLEARNDIS","Adults Under 65 with Learning Disabilities","REV","Revenue","R4188","LD - Residential Care","09-INCOME","Income","09C","Customer and Client Receipts","8555","Accommodation Charges","90959452","201902",18/05/2018 00:00:00,-409,"17020","Charities and Voluntary Organisations","REDACTED DATA","VIBRANCE","7094318","http://opencorporates.com/companies/gb/7094318",""
"London Borough of Redbridge","http://opendatacommunities.org/doc/london-borough-council/redbridge","6BADULTSOCIA","Adult Social Care","6CADLEARNDIS","Adults Under 65 with Learning Disabilities","REV","Revenue","R4188","LD - Residential Care","05-THIRD","Third Party Payments","05F","Voluntary associations","6802","Residential Homes","90959451","201902",18/05/2018 00:00:00,5943.92,"17020","Charities and Voluntary Organisations","REDACTED DATA","VIBRANCE","7094318","http://opencorporates.com/companies/gb/7094318",""
"London Borough of Redbridge","http://opendatacommunities.org/doc/london-borough-council/redbridge","6BADULTSOCIA","Adult Social Care","6CADLEARNDIS","Adults Under 65 with Learning Disabilities","REV","Revenue","R4188","LD - Residential Care","09-INCOME","Income","09C","Customer and Client Receipts","8555","Accommodation Charges","90959451","201902",18/05/2018 00:00:00,-253.8,"17020","Charities and Voluntary Organisations","REDACTED DATA","VIBRANCE","7094318","http://opencorporates.com/companies/gb/7094318",""
"London Borough of Redbridge","http://opendatacommunities.org/doc/london-borough-council/redbridge","6BADULTSOCIA","Adult Social Care","6CADLEARNDIS","Adults Under 65 with Learning Disabilities","REV","Revenue","R4388","LD Nursing","05-THIRD","Third Party Payments","05H","Private contractors","6909","Nursing Homes","90959450","201902",22/05/2018 00:00:00,5956.04,"17020","Charities and Voluntary Organisations","REDACTED DATA","VIBRANCE","7094318","http://opencorporates.com/companies/gb/7094318",""
"London Borough of Redbridge","http://opendatacommunities.org/doc/london-borough-council/redbridge","6BADULTSOCIA","Adult Social Care","6CADLEARNDIS","Adults Under 65 with Learning Disabilities","REV","Revenue","R4388","LD Nursing","09-INCOME","Income","09C","Customer and Client Receipts","8557","Nursing Home Charges","90959450","201902",22/05/2018 00:00:00,-9.6,"17020","Charities and Voluntary Organisations","REDACTED DATA","VIBRANCE","7094318","http://opencorporates.com/companies/gb/7094318",""
"London Borough of Redbridge","http://opendatacommunities.org/doc/london-borough-council/redbridge","6BADULTSOCIA","Adult Social Care","6CADLEARNDIS","Adults Under 65 with Learning Disabilities","REV","Revenue","R4388","LD Nursing","09-INCOME","Income","09C","Customer and Client Receipts","8557","Nursing Home Charges","90959450","201902",22/05/2018 00:00:00,-409,"17020","Charities and Voluntary Organisations","REDACTED DATA","VIBRANCE","7094318","http://opencorporates.com/companies/gb/7094318",""
"London Borough of Redbridge","http://opendatacommunities.org/doc/london-borough-council/redbridge","6BADULTSOCIA","Adult Social Care","6CADLEARNDIS","Adults Under 65 with Learning Disabilities","REV","Revenue","R4388","LD Nursing","05-THIRD","Third Party Payments","05H","Private contractors","6909","Nursing Homes","90959449","201902",22/05/2018 00:00:00,5956.04,"17020","Charities and Voluntary Organisations","REDACTED DATA","VIBRANCE","7094318","http://opencorporates.com/companies/gb/7094318",""
"London Borough of Redbridge","http://opendatacommunities.org/doc/london-borough-council/redbridge","6BADULTSOCIA","Adult Social Care","6CADLEARNDIS","Adults Under 65 with Learning Disabilities","REV","Revenue","R4388","LD Nursing","09-INCOME","Income","09C","Customer and Client Receipts","8557","Nursing Home Charges","90959449","201902",22/05/2018 00:00:00,-552.4,"17020","Charities and Voluntary Organisations","REDACTED DATA","VIBRANCE","7094318","http://opencorporates.com/companies/gb/7094318",""
"London Borough of Redbridge","http://opendatacommunities.org/doc/london-borough-council/redbridge","6BADULTSOCIA","Adult Social Care","6CADLEARNDIS","Adults Under 65 with Learning Disabilities","REV","Revenue","R4388","LD Nursing","05-THIRD","Third Party Payments","05H","Private contractors","6909","Nursing Homes","90959448","201902",22/05/2018 00:00:00,5956.04,"17020","Charities and Voluntary Organisations","REDACTED DATA","VIBRANCE","7094318","http://opencorporates.com/companies/gb/7094318",""
"London Borough of Redbridge","http://opendatacommunities.org/doc/london-borough-council/redbridge","6BADULTSOCIA","Adult Social Care","6CADLEARNDIS","Adults Under 65 with Learning Disabilities","REV","Revenue","R4388","LD Nursing","09-INCOME","Income","09C","Customer and Client Receipts","8557","Nursing Home Charges","90959448","201902",22/05/2018 00:00:00,-409,"17020","Charities and Voluntary Organisations","REDACTED DATA","VIBRANCE","7094318","http://opencorporates.com/companies/gb/7094318",""
"London Borough of Redbridge","http://opendatacommunities.org/doc/london-borough-council/redbridge","6BADULTSOCIA","Adult Social Care","6CADLEARNDIS","Adults Under 65 with Learning Disabilities","REV","Revenue","R4388","LD Nursing","09-INCOME","Income","09C","Customer and Client Receipts","8557","Nursing Home Charges","90959448","201902",22/05/2018 00:00:00,-9.6,"17020","Charities and Voluntary Organisations","REDACTED DATA","VIBRANCE","7094318","http://opencorporates.com/companies/gb/7094318",""
"London Borough of Redbridge","http://opendatacommunities.org/doc/london-borough-council/redbridge","6BADULTSOCIA","Adult Social Care","6CADLEARNDIS","Adults Under 65 with Learning Disabilities","REV","Revenue","R4388","LD Nursing","05-THIRD","Third Party Payments","05H","Private contractors","6909","Nursing Homes","90959447","201902",22/05/2018 00:00:00,5958.4,"17020","Charities and Voluntary Organisations","REDACTED DATA","VIBRANCE","7094318","http://opencorporates.com/companies/gb/7094318",""
"London Borough of Redbridge","http://opendatacommunities.org/doc/london-borough-council/redbridge","6BADULTSOCIA","Adult Social Care","6CADLEARNDIS","Adults Under 65 with Learning Disabilities","REV","Revenue","R4388","LD Nursing","09-INCOME","Income","09C","Customer and Client Receipts","8557","Nursing Home Charges","90959447","201902",22/05/2018 00:00:00,-115.03,"17020","Charities and Voluntary Organisations","REDACTED DATA","VIBRANCE","7094318","http://opencorporates.com/companies/gb/7094318",""
"London Borough of Redbridge","http://opendatacommunities.org/doc/london-borough-council/redbridge","6BADULTSOCIA","Adult Social Care","6CADLEARNDIS","Adults Under 65 with Learning Disabilities","REV","Revenue","R4388","LD Nursing","09-INCOME","Income","09C","Customer and Client Receipts","8557","Nursing Home Charges","90959447","201902",22/05/2018 00:00:00,-409,"17020","Charities and Voluntary Organisations","REDACTED DATA","VIBRANCE","7094318","http://opencorporates.com/companies/gb/7094318",""
"London Borough of Redbridge","http://opendatacommunities.org/doc/london-borough-council/redbridge","6BADULTSOCIA","Adult Social Care","6CADLEARNDIS","Adults Under 65 with Learning Disabilities","REV","Revenue","R4388","LD Nursing","09-INCOME","Income","09C","Customer and Client Receipts","8557","Nursing Home Charges","90959447","201902",22/05/2018 00:00:00,-613.5,"17020","Charities and Voluntary Organisations","REDACTED DATA","VIBRANCE","7094318","http://opencorporates.com/companies/gb/7094318",""
"London Borough of Redbridge","http://opendatacommunities.org/doc/london-borough-council/redbridge","6BADULTSOCIA","Adult Social Care","6CADLEARNDIS","Adults Under 65 with Learning Disabilities","REV","Revenue","R4388","LD Nursing","05-THIRD","Third Party Payments","05H","Private contractors","6909","Nursing Homes","90959446","201902",22/05/2018 00:00:00,5956.04,"17020","Charities and Voluntary Organisations","REDACTED DATA","VIBRANCE","7094318","http://opencorporates.com/companies/gb/7094318",""
"London Borough of Redbridge","http://opendatacommunities.org/doc/london-borough-council/redbridge","6BADULTSOCIA","Adult Social Care","6CADLEARNDIS","Adults Under 65 with Learning Disabilities","REV","Revenue","R4388","LD Nursing","09-INCOME","Income","09C","Customer and Client Receipts","8557","Nursing Home Charges","90959446","201902",22/05/2018 00:00:00,-9.6,"17020","Charities and Voluntary Organisations","REDACTED DATA","VIBRANCE","7094318","http://opencorporates.com/companies/gb/7094318",""
"London Borough of Redbridge","http://opendatacommunities.org/doc/london-borough-council/redbridge","6BADULTSOCIA","Adult Social Care","6CADLEARNDIS","Adults Under 65 with Learning Disabilities","REV","Revenue","R4388","LD Nursing","09-INCOME","Income","09C","Customer and Client Receipts","8557","Nursing Home Charges","90959446","201902",22/05/2018 00:00:00,-409,"17020","Charities and Voluntary Organisations","REDACTED DATA","VIBRANCE","7094318","http://opencorporates.com/companies/gb/7094318",""
"London Borough of Redbridge","http://opendatacommunities.org/doc/london-borough-council/redbridge","6BADULTSOCIA","Adult Social Care","6COLDINCMENT","Older People (65 or over) incl. Older Mentally Ill","REV","Revenue","R4385","OP Nursing","05-THIRD","Third Party Payments","05H","Private contractors","6909","Nursing Homes","90959445","201902",22/05/2018 00:00:00,1198.35,"17020","Charities and Voluntary Organisations","REDACTED DATA","VIBRANCE","7094318","http://opencorporates.com/companies/gb/7094318",""
"London Borough of Redbridge","http://opendatacommunities.org/doc/london-borough-council/redbridge","6BADULTSOCIA","Adult Social Care","6COLDINCMENT","Older People (65 or over) incl. Older Mentally Ill","REV","Revenue","R4385","OP Nursing","05-THIRD","Third Party Payments","05H","Private contractors","6909","Nursing Homes","90959445","201902",22/05/2018 00:00:00,-11683.95,"17020","Charities and Voluntary Organisations","REDACTED DATA","VIBRANCE","7094318","http://opencorporates.com/companies/gb/7094318",""
"London Borough of Redbridge","http://opendatacommunities.org/doc/london-borough-council/redbridge","6BADULTSOCIA","Adult Social Care","6COLDINCMENT","Older People (65 or over) incl. Older Mentally Ill","REV","Revenue","R4385","OP Nursing","09-INCOME","Income","09C","Customer and Client Receipts","8557","Nursing Home Charges","90959445","201902",22/05/2018 00:00:00,869.81,"17020","Charities and Voluntary Organisations","REDACTED DATA","VIBRANCE","7094318","http://opencorporates.com/companies/gb/7094318",""
"London Borough of Redbridge","http://opendatacommunities.org/doc/london-borough-council/redbridge","6BADULTSOCIA","Adult Social Care","6CADLEARNDIS","Adults Under 65 with Learning Disabilities","REV","Revenue","R4185","LD - Supported Living","06-TRANSFER","Transfer Payments","06B","Social Services Clients","7066","Supportive Lodgings (Transfer Payments)","90959444","201902",16/05/2018 00:00:00,124.56,"90038","Expenses","REDACTED DATA","THE ORPHEUS CENTRE TRUST","5089501","http://opencorporates.com/companies/gb/5089501",""
"London Borough of Redbridge","http://opendatacommunities.org/doc/london-borough-council/redbridge","6BADULTSOCIA","Adult Social Care","6CADLEARNDIS","Adults Under 65 with Learning Disabilities","REV","Revenue","R4185","LD - Supported Living","06-TRANSFER","Transfer Payments","06B","Social Services Clients","7066","Supportive Lodgings (Transfer Payments)","90959444","201902",16/05/2018 00:00:00,4234.28,"90038","Expenses","REDACTED DATA","THE ORPHEUS CENTRE TRUST","5089501","http://opencorporates.com/companies/gb/5089501",""
"London Borough of Redbridge","http://opendatacommunities.org/doc/london-borough-council/redbridge","6BADULTSOCIA","Adult Social Care","6COLDINCMENT","Older People (65 or over) incl. Older Mentally Ill","REV","Revenue","R4378","OP Residential","05-THIRD","Third Party Payments","05F","Voluntary associations","6802","Residential Homes","90959443","201902",18/05/2018 00:00:00,1782.36,"64710","Residential Care Homes","REDACTED DATA","THE OAKS RESIDENTIAL HOMES LTD  T/A THE OAKS","4790167","http://opencorporates.com/companies/gb/4790167",""
"London Borough of Redbridge","http://opendatacommunities.org/doc/london-borough-council/redbridge","6BADULTSOCIA","Adult Social Care","6COLDINCMENT","Older People (65 or over) incl. Older Mentally Ill","REV","Revenue","R4385","OP Nursing","05-THIRD","Third Party Payments","05H","Private contractors","6909","Nursing Homes","90959442","201902",18/05/2018 00:00:00,887.88,"53350","Nursing Homes","REDACTED DATA","BUPA - THE LAWNS NURSING HOME","2079932","http://opencorporates.com/companies/gb/2079932","239731641"
"London Borough of Redbridge","http://opendatacommunities.org/doc/london-borough-council/redbridge","6BADULTSOCIA","Adult Social Care","6COLDINCMENT","Older People (65 or over) incl. Older Mentally Ill","REV","Revenue","R4385","OP Nursing","05-THIRD","Third Party Payments","05H","Private contractors","6909","Nursing Homes","90959442","201902",18/05/2018 00:00:00,2067.4,"53350","Nursing Homes","REDACTED DATA","BUPA - THE LAWNS NURSING HOME","2079932","http://opencorporates.com/companies/gb/2079932","239731641"
"London Borough of Redbridge","http://opendatacommunities.org/doc/london-borough-council/redbridge","6BADULTSOCIA","Adult Social Care","6COLDINCMENT","Older People (65 or over) incl. Older Mentally Ill","REV","Revenue","R4385","OP Nursing","09-INCOME","Income","09C","Customer and Client Receipts","8557","Nursing Home Charges","90959442","201902",18/05/2018 00:00:00,-887.88,"53350","Nursing Homes","REDACTED DATA","BUPA - THE LAWNS NURSING HOME","2079932","http://opencorporates.com/companies/gb/2079932","239731641"
"London Borough of Redbridge","http://opendatacommunities.org/doc/london-borough-council/redbridge","6BADULTSOCIA","Adult Social Care","6COLDINCMENT","Older People (65 or over) incl. Older Mentally Ill","REV","Revenue","R4385","OP Nursing","09-INCOME","Income","09C","Customer and Client Receipts","8557","Nursing Home Charges","90959442","201902",18/05/2018 00:00:00,-876.64,"53350","Nursing Homes","REDACTED DATA","BUPA - THE LAWNS NURSING HOME","2079932","http://opencorporates.com/companies/gb/2079932","239731641"
"London Borough of Redbridge","http://opendatacommunities.org/doc/london-borough-council/redbridge","6BADULTSOCIA","Adult Social Care","6COLDINCMENT","Older People (65 or over) incl. Older Mentally Ill","REV","Revenue","R4378","OP Residential","05-THIRD","Third Party Payments","05F","Voluntary associations","6802","Residential Homes","90959441","201902",18/05/2018 00:00:00,100,"64710","Residential Care Homes","REDACTED DATA","CROFTWOOD CARE (CHESHIRE) LTD","",,""
"London Borough of Redbridge","http://opendatacommunities.org/doc/london-borough-council/redbridge","6BADULTSOCIA","Adult Social Care","6COLDINCMENT","Older People (65 or over) incl. Older Mentally Ill","REV","Revenue","R4378","OP Residential","05-THIRD","Third Party Payments","05F","Voluntary associations","6802","Residential Homes","90959441","201902",18/05/2018 00:00:00,2254.4,"64710","Residential Care Homes","REDACTED DATA","CROFTWOOD CARE (CHESHIRE) LTD","",,""
"London Borough of Redbridge","http://opendatacommunities.org/doc/london-borough-council/redbridge","6BADULTSOCIA","Adult Social Care","6COLDINCMENT","Older People (65 or over) incl. Older Mentally Ill","REV","Revenue","R4378","OP Residential","09-INCOME","Income","09C","Customer and Client Receipts","8555","Accommodation Charges","90959441","201902",18/05/2018 00:00:00,-552.4,"64710","Residential Care Homes","REDACTED DATA","CROFTWOOD CARE (CHESHIRE) LTD","",,""
"London Borough of Redbridge","http://opendatacommunities.org/doc/london-borough-council/redbridge","6BADULTSOCIA","Adult Social Care","6COLDINCMENT","Older People (65 or over) incl. Older Mentally Ill","REV","Revenue","R4378","OP Residential","09-INCOME","Income","09C","Customer and Client Receipts","8555","Accommodation Charges","90959441","201902",18/05/2018 00:00:00,-100,"64710","Residential Care Homes","REDACTED DATA","CROFTWOOD CARE (CHESHIRE) LTD","",,""
"London Borough of Redbridge","http://opendatacommunities.org/doc/london-borough-council/redbridge","6BADULTSOCIA","Adult Social Care","6CADLEARNDIS","Adults Under 65 with Learning Disabilities","REV","Revenue","R4218","LD Individual Budgets","05-THIRD","Third Party Payments","05H","Private contractors","6904","Day Centres","90959440","201902",18/05/2018 00:00:00,576,"64710","Residential Care Homes","REDACTED DATA","TEALK SERVICES LTD (THE BEECHES- ILFORD)","4203171","http://opencorporates.com/companies/gb/4203171",""
"London Borough of Redbridge","http://opendatacommunities.org/doc/london-borough-council/redbridge","6BADULTSOCIA","Adult Social Care","6CADLEARNDIS","Adults Under 65 with Learning Disabilities","REV","Revenue","R4218","LD Individual Budgets","05-THIRD","Third Party Payments","05H","Private contractors","6904","Day Centres","90959439","201902",18/05/2018 00:00:00,576,"64710","Residential Care Homes","REDACTED DATA","TEALK SERVICES LTD (THE BEECHES- ILFORD)","4203171","http://opencorporates.com/companies/gb/4203171",""
"London Borough of Redbridge","http://opendatacommunities.org/doc/london-borough-council/redbridge","6BADULTSOCIA","Adult Social Care","6COLDINCMENT","Older People (65 or over) incl. Older Mentally Ill","REV","Revenue","R4385","OP Nursing","05-THIRD","Third Party Payments","05H","Private contractors","6909","Nursing Homes","90959437","201902",18/05/2018 00:00:00,2345.8,"64710","Residential Care Homes","REDACTED DATA","ST GEORGES HEALTHCARE LTD T/A ST GEORGES COURT CARE HOME","4159738","http://opencorporates.com/companies/gb/4159738",""
"London Borough of Redbridge","http://opendatacommunities.org/doc/london-borough-council/redbridge","6BADULTSOCIA","Adult Social Care","6CADLEARNDIS","Adults Under 65 with Learning Disabilities","REV","Revenue","R4188","LD - Residential Care","05-THIRD","Third Party Payments","05F","Voluntary associations","6802","Residential Homes","90959436","201902",18/05/2018 00:00:00,3351.84,"64710","Residential Care Homes","REDACTED DATA","THE REGARD PARTNERSHIP LTD.","3153442","http://opencorporates.com/companies/gb/3153442",""
"London Borough of Redbridge","http://opendatacommunities.org/doc/london-borough-council/redbridge","6BADULTSOCIA","Adult Social Care","6CADLEARNDIS","Adults Under 65 with Learning Disabilities","REV","Revenue","R4188","LD - Residential Care","09-INCOME","Income","09C","Customer and Client Receipts","8555","Accommodation Charges","90959436","201902",18/05/2018 00:00:00,-402.6,"64710","Residential Care Homes","REDACTED DATA","THE REGARD PARTNERSHIP LTD.","3153442","http://opencorporates.com/companies/gb/3153442",""
"London Borough of Redbridge","http://opendatacommunities.org/doc/london-borough-council/redbridge","6BADULTSOCIA","Adult Social Care","6CADLEARNDIS","Adults Under 65 with Learning Disabilities","REV","Revenue","R4188","LD - Residential Care","05-THIRD","Third Party Payments","05F","Voluntary associations","6802","Residential Homes","90959434","201902",18/05/2018 00:00:00,2553.08,"53350","Nursing Homes","REDACTED DATA","GRANGEWOOD  HEALTHCARE LTD(SAXON COURT)","",,""
"London Borough of Redbridge","http://opendatacommunities.org/doc/london-borough-council/redbridge","6BADULTSOCIA","Adult Social Care","6CADLEARNDIS","Adults Under 65 with Learning Disabilities","REV","Revenue","R4188","LD - Residential Care","09-INCOME","Income","09C","Customer and Client Receipts","8555","Accommodation Charges","90959434","201902",18/05/2018 00:00:00,-351.8,"53350","Nursing Homes","REDACTED DATA","GRANGEWOOD  HEALTHCARE LTD(SAXON COURT)","",,""
"London Borough of Redbridge","http://opendatacommunities.org/doc/london-borough-council/redbridge","6BADULTSOCIA","Adult Social Care","6COLDINCMENT","Older People (65 or over) incl. Older Mentally Ill","REV","Revenue","R4378","OP Residential","05-THIRD","Third Party Payments","05F","Voluntary associations","6802","Residential Homes","90959433","201902",18/05/2018 00:00:00,2945.84,"53350","Nursing Homes","REDACTED DATA","GRANGEWOOD  HEALTHCARE LTD(SAXON COURT)","",,""
"London Borough of Redbridge","http://opendatacommunities.org/doc/london-borough-council/redbridge","6BADULTSOCIA","Adult Social Care","6COLDINCMENT","Older People (65 or over) incl. Older Mentally Ill","REV","Revenue","R4378","OP Residential","09-INCOME","Income","09C","Customer and Client Receipts","8555","Accommodation Charges","90959433","201902",18/05/2018 00:00:00,-552.4,"53350","Nursing Homes","REDACTED DATA","GRANGEWOOD  HEALTHCARE LTD(SAXON COURT)","",,""
"London Borough of Redbridge","http://opendatacommunities.org/doc/london-borough-council/redbridge","6BADULTSOCIA","Adult Social Care","6CADLEARNDIS","Adults Under 65 with Learning Disabilities","REV","Revenue","R4188","LD - Residential Care","05-THIRD","Third Party Payments","05F","Voluntary associations","6802","Residential Homes","90959432","201902",18/05/2018 00:00:00,4563.52,"64710","Residential Care Homes","REDACTED DATA","CAREONE LTD (RUSSELL LODGE)","4270516","http://opencorporates.com/companies/gb/4270516",""
"London Borough of Redbridge","http://opendatacommunities.org/doc/london-borough-council/redbridge","6BADULTSOCIA","Adult Social Care","6CADLEARNDIS","Adults Under 65 with Learning Disabilities","REV","Revenue","R4188","LD - Residential Care","09-INCOME","Income","09C","Customer and Client Receipts","8555","Accommodation Charges","90959432","201902",18/05/2018 00:00:00,-552.4,"64710","Residential Care Homes","REDACTED DATA","CAREONE LTD (RUSSELL LODGE)","4270516","http://opencorporates.com/companies/gb/4270516",""
"London Borough of Redbridge","http://opendatacommunities.org/doc/london-borough-council/redbridge","6BADULTSOCIA","Adult Social Care","6CADLEARNDIS","Adults Under 65 with Learning Disabilities","REV","Revenue","R4188","LD - Residential Care","05-THIRD","Third Party Payments","05F","Voluntary associations","6802","Residential Homes","90959431","201902",18/05/2018 00:00:00,4882.08,"64710","Residential Care Homes","REDACTED DATA","CAREONE LTD (RUSSELL LODGE)","4270516","http://opencorporates.com/companies/gb/4270516",""
"London Borough of Redbridge","http://opendatacommunities.org/doc/london-borough-council/redbridge","6BADULTSOCIA","Adult Social Care","6CADLEARNDIS","Adults Under 65 with Learning Disabilities","REV","Revenue","R4188","LD - Residential Care","09-INCOME","Income","09C","Customer and Client Receipts","8555","Accommodation Charges","90959431","201902",18/05/2018 00:00:00,-327,"64710","Residential Care Homes","REDACTED DATA","CAREONE LTD (RUSSELL LODGE)","4270516","http://opencorporates.com/companies/gb/4270516",""
"London Borough of Redbridge","http://opendatacommunities.org/doc/london-borough-council/redbridge","6BADULTSOCIA","Adult Social Care","6CADLEARNDIS","Adults Under 65 with Learning Disabilities","REV","Revenue","R4188","LD - Residential Care","05-THIRD","Third Party Payments","05F","Voluntary associations","6802","Residential Homes","90959430","201902",18/05/2018 00:00:00,5079.12,"64710","Residential Care Homes","REDACTED DATA","CAREONE LTD (RUSSELL LODGE)","4270516","http://opencorporates.com/companies/gb/4270516",""
"London Borough of Redbridge","http://opendatacommunities.org/doc/london-borough-council/redbridge","6BADULTSOCIA","Adult Social Care","6CADLEARNDIS","Adults Under 65 with Learning Disabilities","REV","Revenue","R4188","LD - Residential Care","09-INCOME","Income","09C","Customer and Client Receipts","8555","Accommodation Charges","90959430","201902",18/05/2018 00:00:00,-409,"64710","Residential Care Homes","REDACTED DATA","CAREONE LTD (RUSSELL LODGE)","4270516","http://opencorporates.com/companies/gb/4270516",""
"London Borough of Redbridge","http://opendatacommunities.org/doc/london-borough-council/redbridge","6BADULTSOCIA","Adult Social Care","6CADLEARNDIS","Adults Under 65 with Learning Disabilities","REV","Revenue","R4188","LD - Residential Care","09-INCOME","Income","09C","Customer and Client Receipts","8555","Accommodation Charges","90959430","201902",18/05/2018 00:00:00,-9.6,"64710","Residential Care Homes","REDACTED DATA","CAREONE LTD (RUSSELL LODGE)","4270516","http://opencorporates.com/companies/gb/4270516",""
"London Borough of Redbridge","http://opendatacommunities.org/doc/london-borough-council/redbridge","6BADULTSOCIA","Adult Social Care","6CADLEARNDIS","Adults Under 65 with Learning Disabilities","REV","Revenue","R4188","LD - Residential Care","05-THIRD","Third Party Payments","05F","Voluntary associations","6802","Residential Homes","90959429","201902",18/05/2018 00:00:00,4459.88,"64710","Residential Care Homes","REDACTED DATA","CAREONE LTD (RUSSELL LODGE)","4270516","http://opencorporates.com/companies/gb/4270516",""
"London Borough of Redbridge","http://opendatacommunities.org/doc/london-borough-council/redbridge","6BADULTSOCIA","Adult Social Care","6CADLEARNDIS","Adults Under 65 with Learning Disabilities","REV","Revenue","R4188","LD - Residential Care","09-INCOME","Income","09C","Customer and Client Receipts","8555","Accommodation Charges","90959429","201902",18/05/2018 00:00:00,-552.4,"64710","Residential Care Homes","REDACTED DATA","CAREONE LTD (RUSSELL LODGE)","4270516","http://opencorporates.com/companies/gb/4270516",""
"London Borough of Redbridge","http://opendatacommunities.org/doc/london-borough-council/redbridge","6BADULTSOCIA","Adult Social Care","6CADLEARNDIS","Adults Under 65 with Learning Disabilities","REV","Revenue","R4188","LD - Residential Care","05-THIRD","Third Party Payments","05F","Voluntary associations","6802","Residential Homes","90959428","201902",18/05/2018 00:00:00,4062,"64710","Residential Care Homes","REDACTED DATA","CAREONE LTD (RUSSELL LODGE)","4270516","http://opencorporates.com/companies/gb/4270516",""
"London Borough of Redbridge","http://opendatacommunities.org/doc/london-borough-council/redbridge","6BADULTSOCIA","Adult Social Care","6CADLEARNDIS","Adults Under 65 with Learning Disabilities","REV","Revenue","R4188","LD - Residential Care","09-INCOME","Income","09C","Customer and Client Receipts","8555","Accommodation Charges","90959428","201902",18/05/2018 00:00:00,-552.4,"64710","Residential Care Homes","REDACTED DATA","CAREONE LTD (RUSSELL LODGE)","4270516","http://opencorporates.com/companies/gb/4270516",""
"London Borough of Redbridge","http://opendatacommunities.org/doc/london-borough-council/redbridge","6BADULTSOCIA","Adult Social Care","6COLDINCMENT","Older People (65 or over) incl. Older Mentally Ill","REV","Revenue","R4385","OP Nursing","05-THIRD","Third Party Payments","05H","Private contractors","6909","Nursing Homes","90959427","201902",18/05/2018 00:00:00,2014.16,"64710","Residential Care Homes","REDACTED DATA","BUPA CARE SERVICES - PREMIER COURT RESIDENTIAL & NURSING HOME","2006738","http://opencorporates.com/companies/gb/2006738",""
"London Borough of Redbridge","http://opendatacommunities.org/doc/london-borough-council/redbridge","6BADULTSOCIA","Adult Social Care","6COLDINCMENT","Older People (65 or over) incl. Older Mentally Ill","REV","Revenue","R4385","OP Nursing","09-INCOME","Income","09C","Customer and Client Receipts","8557","Nursing Home Charges","90959427","201902",18/05/2018 00:00:00,-552.4,"64710","Residential Care Homes","REDACTED DATA","BUPA CARE SERVICES - PREMIER COURT RESIDENTIAL & NURSING HOME","2006738","http://opencorporates.com/companies/gb/2006738",""
"London Borough of Redbridge","http://opendatacommunities.org/doc/london-borough-council/redbridge","6BADULTSOCIA","Adult Social Care","6COLDINCMENT","Older People (65 or over) incl. Older Mentally Ill","REV","Revenue","R4378","OP Residential","05-THIRD","Third Party Payments","05F","Voluntary associations","6802","Residential Homes","90959425","201902",16/05/2018 00:00:00,1936.08,"64710","Residential Care Homes","REDACTED DATA","ESSEX COUNTY CARE LTD","4241958","http://opencorporates.com/companies/gb/4241958",""
"London Borough of Redbridge","http://opendatacommunities.org/doc/london-borough-council/redbridge","6BADULTSOCIA","Adult Social Care","6COLDINCMENT","Older People (65 or over) incl. Older Mentally Ill","REV","Revenue","R4378","OP Residential","09-INCOME","Income","09C","Customer and Client Receipts","8555","Accommodation Charges","90959425","201902",16/05/2018 00:00:00,-717.32,"64710","Residential Care Homes","REDACTED DATA","ESSEX COUNTY CARE LTD","4241958","http://opencorporates.com/companies/gb/4241958",""
"London Borough of Redbridge","http://opendatacommunities.org/doc/london-borough-council/redbridge","6BADULTSOCIA","Adult Social Care","6CADLEARNDIS","Adults Under 65 with Learning Disabilities","REV","Revenue","R4185","LD - Supported Living","06-TRANSFER","Transfer Payments","06B","Social Services Clients","7066","Supportive Lodgings (Transfer Payments)","90959424","201902",18/05/2018 00:00:00,145.14,"43419","Home Care Services","REDACTED DATA","AMAN SURA T/APATHWAY INDEPENDENT CARE & AUTISM SERVICES","",,""
"London Borough of Redbridge","http://opendatacommunities.org/doc/london-borough-council/redbridge","6BADULTSOCIA","Adult Social Care","6CADLEARNDIS","Adults Under 65 with Learning Disabilities","REV","Revenue","R4185","LD - Supported Living","06-TRANSFER","Transfer Payments","06B","Social Services Clients","7066","Supportive Lodgings (Transfer Payments)","90959424","201902",18/05/2018 00:00:00,4934.04,"43419","Home Care Services","REDACTED DATA","AMAN SURA T/APATHWAY INDEPENDENT CARE & AUTISM SERVICES","",,""
"London Borough of Redbridge","http://opendatacommunities.org/doc/london-borough-council/redbridge","6BADULTSOCIA","Adult Social Care","6CADLEARNDIS","Adults Under 65 with Learning Disabilities","REV","Revenue","R4185","LD - Supported Living","06-TRANSFER","Transfer Payments","06B","Social Services Clients","7066","Supportive Lodgings (Transfer Payments)","90959423","201902",18/05/2018 00:00:00,9078,"43419","Home Care Services","REDACTED DATA","AMAN SURA T/APATHWAY INDEPENDENT CARE & AUTISM SERVICES","",,""
"London Borough of Redbridge","http://opendatacommunities.org/doc/london-borough-council/redbridge","6BADULTSOCIA","Adult Social Care","6CADLEARNDIS","Adults Under 65 with Learning Disabilities","REV","Revenue","R4185","LD - Supported Living","06-TRANSFER","Transfer Payments","06B","Social Services Clients","7066","Supportive Lodgings (Transfer Payments)","90959423","201902",18/05/2018 00:00:00,267,"43419","Home Care Services","REDACTED DATA","AMAN SURA T/APATHWAY INDEPENDENT CARE & AUTISM SERVICES","",,""
"London Borough of Redbridge","http://opendatacommunities.org/doc/london-borough-council/redbridge","6BADULTSOCIA","Adult Social Care","6CADLEARNDIS","Adults Under 65 with Learning Disabilities","REV","Revenue","R4185","LD - Supported Living","06-TRANSFER","Transfer Payments","06B","Social Services Clients","7066","Supportive Lodgings (Transfer Payments)","90959422","201902",18/05/2018 00:00:00,270,"43419","Home Care Services","REDACTED DATA","AMAN SURA T/APATHWAY INDEPENDENT CARE & AUTISM SERVICES","",,""
"London Borough of Redbridge","http://opendatacommunities.org/doc/london-borough-council/redbridge","6BADULTSOCIA","Adult Social Care","6CADLEARNDIS","Adults Under 65 with Learning Disabilities","REV","Revenue","R4185","LD - Supported Living","06-TRANSFER","Transfer Payments","06B","Social Services Clients","7066","Supportive Lodgings (Transfer Payments)","90959422","201902",18/05/2018 00:00:00,9180,"43419","Home Care Services","REDACTED DATA","AMAN SURA T/APATHWAY INDEPENDENT CARE & AUTISM SERVICES","",,""
"London Borough of Redbridge","http://opendatacommunities.org/doc/london-borough-council/redbridge","6BADULTSOCIA","Adult Social Care","6CADLEARNDIS","Adults Under 65 with Learning Disabilities","REV","Revenue","R4185","LD - Supported Living","06-TRANSFER","Transfer Payments","06B","Social Services Clients","7066","Supportive Lodgings (Transfer Payments)","90959421","201902",18/05/2018 00:00:00,87,"43419","Home Care Services","REDACTED DATA","AMAN SURA T/APATHWAY INDEPENDENT CARE & AUTISM SERVICES","",,""
"London Borough of Redbridge","http://opendatacommunities.org/doc/london-borough-council/redbridge","6BADULTSOCIA","Adult Social Care","6CADLEARNDIS","Adults Under 65 with Learning Disabilities","REV","Revenue","R4185","LD - Supported Living","06-TRANSFER","Transfer Payments","06B","Social Services Clients","7066","Supportive Lodgings (Transfer Payments)","90959421","201902",18/05/2018 00:00:00,2958,"43419","Home Care Services","REDACTED DATA","AMAN SURA T/APATHWAY INDEPENDENT CARE & AUTISM SERVICES","",,""
"London Borough of Redbridge","http://opendatacommunities.org/doc/london-borough-council/redbridge","6BADULTSOCIA","Adult Social Care","6CADLEARNDIS","Adults Under 65 with Learning Disabilities","REV","Revenue","R4185","LD - Supported Living","06-TRANSFER","Transfer Payments","06B","Social Services Clients","7066","Supportive Lodgings (Transfer Payments)","90959420","201902",18/05/2018 00:00:00,105,"43419","Home Care Services","REDACTED DATA","AMAN SURA T/APATHWAY INDEPENDENT CARE & AUTISM SERVICES","",,""
"London Borough of Redbridge","http://opendatacommunities.org/doc/london-borough-council/redbridge","6BADULTSOCIA","Adult Social Care","6CADLEARNDIS","Adults Under 65 with Learning Disabilities","REV","Revenue","R4185","LD - Supported Living","06-TRANSFER","Transfer Payments","06B","Social Services Clients","7066","Supportive Lodgings (Transfer Payments)","90959420","201902",18/05/2018 00:00:00,3570,"43419","Home Care Services","REDACTED DATA","AMAN SURA T/APATHWAY INDEPENDENT CARE & AUTISM SERVICES","",,""
"London Borough of Redbridge","http://opendatacommunities.org/doc/london-borough-council/redbridge","6BADULTSOCIA","Adult Social Care","6CADLEARNDIS","Adults Under 65 with Learning Disabilities","REV","Revenue","R4185","LD - Supported Living","09-INCOME","Income","09C","Customer and Client Receipts","8553","Care Package Charges","90959420","201902",18/05/2018 00:00:00,-31.76,"43419","Home Care Services","REDACTED DATA","AMAN SURA T/APATHWAY INDEPENDENT CARE & AUTISM SERVICES","",,""
"London Borough of Redbridge","http://opendatacommunities.org/doc/london-borough-council/redbridge","6BADULTSOCIA","Adult Social Care","6CADPHYSDIS","Adults Under 65 with Phys Disab or Sensory Impair","REV","Revenue","R4387","PD Nursing","05-THIRD","Third Party Payments","05H","Private contractors","6909","Nursing Homes","90959419","201902",18/05/2018 00:00:00,3412.04,"53350","Nursing Homes","REDACTED DATA","WESTMINSTER PATERNOSTER HOUSE","",,"626524835"
"London Borough of Redbridge","http://opendatacommunities.org/doc/london-borough-council/redbridge","6BADULTSOCIA","Adult Social Care","6COLDINCMENT","Older People (65 or over) incl. Older Mentally Ill","REV","Revenue","R4378","OP Residential","05-THIRD","Third Party Payments","05F","Voluntary associations","6802","Residential Homes","90959418","201902",18/05/2018 00:00:00,5608.68,"17020","Charities and Voluntary Organisations","REDACTED DATA","OUTWARD","2151434","http://opencorporates.com/companies/gb/2151434",""
"London Borough of Redbridge","http://opendatacommunities.org/doc/london-borough-council/redbridge","6BADULTSOCIA","Adult Social Care","6COLDINCMENT","Older People (65 or over) incl. Older Mentally Ill","REV","Revenue","R4378","OP Residential","09-INCOME","Income","09C","Customer and Client Receipts","8555","Accommodation Charges","90959418","201902",18/05/2018 00:00:00,-552.4,"17020","Charities and Voluntary Organisations","REDACTED DATA","OUTWARD","2151434","http://opencorporates.com/companies/gb/2151434",""
"London Borough of Redbridge","http://opendatacommunities.org/doc/london-borough-council/redbridge","6BADULTSOCIA","Adult Social Care","6COLDINCMENT","Older People (65 or over) incl. Older Mentally Ill","REV","Revenue","R4378","OP Residential","05-THIRD","Third Party Payments","05F","Voluntary associations","6802","Residential Homes","90959417","201902",18/05/2018 00:00:00,5410.08,"64710","Residential Care Homes","REDACTED DATA","OAKWOOD LODGE","6798990","http://opencorporates.com/companies/gb/6798990",""
"London Borough of Redbridge","http://opendatacommunities.org/doc/london-borough-council/redbridge","6BADULTSOCIA","Adult Social Care","6COLDINCMENT","Older People (65 or over) incl. Older Mentally Ill","REV","Revenue","R4378","OP Residential","05-THIRD","Third Party Payments","05F","Voluntary associations","6802","Residential Homes","90959416","201902",18/05/2018 00:00:00,4317.68,"64710","Residential Care Homes","REDACTED DATA","OAKWOOD LODGE","6798990","http://opencorporates.com/companies/gb/6798990",""
"London Borough of Redbridge","http://opendatacommunities.org/doc/london-borough-council/redbridge","6BADULTSOCIA","Adult Social Care","6CADLEARNDIS","Adults Under 65 with Learning Disabilities","REV","Revenue","R4188","LD - Residential Care","05-THIRD","Third Party Payments","05F","Voluntary associations","6802","Residential Homes","90959415","201902",18/05/2018 00:00:00,3689.92,"64710","Residential Care Homes","REDACTED DATA","OAKFIELD (EASTON MAUDIT) LTD","",,""
"London Borough of Redbridge","http://opendatacommunities.org/doc/london-borough-council/redbridge","6BADULTSOCIA","Adult Social Care","6CADLEARNDIS","Adults Under 65 with Learning Disabilities","REV","Revenue","R4188","LD - Residential Care","09-INCOME","Income","09C","Customer and Client Receipts","8555","Accommodation Charges","90959415","201902",18/05/2018 00:00:00,-327,"64710","Residential Care Homes","REDACTED DATA","OAKFIELD (EASTON MAUDIT) LTD","",,""
"London Borough of Redbridge","http://opendatacommunities.org/doc/london-borough-council/redbridge","6BADULTSOCIA","Adult Social Care","6CADLEARNDIS","Adults Under 65 with Learning Disabilities","REV","Revenue","R4188","LD - Residential Care","05-THIRD","Third Party Payments","05F","Voluntary associations","6802","Residential Homes","90959414","201902",18/05/2018 00:00:00,7762.6,"17020","Charities and Voluntary Organisations","REDACTED DATA","NORWOOD SCHOOLS LTD","516901","http://opencorporates.com/companies/gb/516901","629720917"
"London Borough of Redbridge","http://opendatacommunities.org/doc/london-borough-council/redbridge","6BADULTSOCIA","Adult Social Care","6CADLEARNDIS","Adults Under 65 with Learning Disabilities","REV","Revenue","R4188","LD - Residential Care","09-INCOME","Income","09C","Customer and Client Receipts","8555","Accommodation Charges","90959414","201902",18/05/2018 00:00:00,-390.6,"17020","Charities and Voluntary Organisations","REDACTED DATA","NORWOOD SCHOOLS LTD","516901","http://opencorporates.com/companies/gb/516901","629720917"
"London Borough of Redbridge","http://opendatacommunities.org/doc/london-borough-council/redbridge","6BADULTSOCIA","Adult Social Care","6CADLEARNDIS","Adults Under 65 with Learning Disabilities","REV","Revenue","R4188","LD - Residential Care","05-THIRD","Third Party Payments","05F","Voluntary associations","6802","Residential Homes","90959413","201902",18/05/2018 00:00:00,6433.56,"17020","Charities and Voluntary Organisations","REDACTED DATA","NORWOOD SCHOOLS LTD","516901","http://opencorporates.com/companies/gb/516901","629720917"
"London Borough of Redbridge","http://opendatacommunities.org/doc/london-borough-council/redbridge","6BADULTSOCIA","Adult Social Care","6CADLEARNDIS","Adults Under 65 with Learning Disabilities","REV","Revenue","R4188","LD - Residential Care","05-THIRD","Third Party Payments","05F","Voluntary associations","6802","Residential Homes","90959412","201902",18/05/2018 00:00:00,7051.52,"17020","Charities and Voluntary Organisations","REDACTED DATA","NORWOOD SCHOOLS LTD","516901","http://opencorporates.com/companies/gb/516901","629720917"
"London Borough of Redbridge","http://opendatacommunities.org/doc/london-borough-council/redbridge","6BADULTSOCIA","Adult Social Care","6CADLEARNDIS","Adults Under 65 with Learning Disabilities","REV","Revenue","R4188","LD - Residential Care","09-INCOME","Income","09C","Customer and Client Receipts","8555","Accommodation Charges","90959412","201902",18/05/2018 00:00:00,-552.4,"17020","Charities and Voluntary Organisations","REDACTED DATA","NORWOOD SCHOOLS LTD","516901","http://opencorporates.com/companies/gb/516901","629720917"
"London Borough of Redbridge","http://opendatacommunities.org/doc/london-borough-council/redbridge","6BADULTSOCIA","Adult Social Care","6CADLEARNDIS","Adults Under 65 with Learning Disabilities","REV","Revenue","R4188","LD - Residential Care","05-THIRD","Third Party Payments","05F","Voluntary associations","6802","Residential Homes","90959411","201902",18/05/2018 00:00:00,10082.04,"17020","Charities and Voluntary Organisations","REDACTED DATA","NORWOOD SCHOOLS LTD","516901","http://opencorporates.com/companies/gb/516901","629720917"
"London Borough of Redbridge","http://opendatacommunities.org/doc/london-borough-council/redbridge","6BADULTSOCIA","Adult Social Care","6CADLEARNDIS","Adults Under 65 with Learning Disabilities","REV","Revenue","R4188","LD - Residential Care","09-INCOME","Income","09C","Customer and Client Receipts","8555","Accommodation Charges","90959411","201902",18/05/2018 00:00:00,-409,"17020","Charities and Voluntary Organisations","REDACTED DATA","NORWOOD SCHOOLS LTD","516901","http://opencorporates.com/companies/gb/516901","629720917"
"London Borough of Redbridge","http://opendatacommunities.org/doc/london-borough-council/redbridge","6BADULTSOCIA","Adult Social Care","6CADLEARNDIS","Adults Under 65 with Learning Disabilities","REV","Revenue","R4188","LD - Residential Care","09-INCOME","Income","09C","Customer and Client Receipts","8555","Accommodation Charges","90959411","201902",18/05/2018 00:00:00,-9.6,"17020","Charities and Voluntary Organisations","REDACTED DATA","NORWOOD SCHOOLS LTD","516901","http://opencorporates.com/companies/gb/516901","629720917"
"London Borough of Redbridge","http://opendatacommunities.org/doc/london-borough-council/redbridge","6BADULTSOCIA","Adult Social Care","6CADLEARNDIS","Adults Under 65 with Learning Disabilities","REV","Revenue","R4188","LD - Residential Care","05-THIRD","Third Party Payments","05F","Voluntary associations","6802","Residential Homes","90959410","201902",18/05/2018 00:00:00,5739.36,"17020","Charities and Voluntary Organisations","REDACTED DATA","NORWOOD SCHOOLS LTD","516901","http://opencorporates.com/companies/gb/516901","629720917"
"London Borough of Redbridge","http://opendatacommunities.org/doc/london-borough-council/redbridge","6BADULTSOCIA","Adult Social Care","6CADLEARNDIS","Adults Under 65 with Learning Disabilities","REV","Revenue","R4188","LD - Residential Care","09-INCOME","Income","09C","Customer and Client Receipts","8555","Accommodation Charges","90959410","201902",18/05/2018 00:00:00,-9.6,"17020","Charities and Voluntary Organisations","REDACTED DATA","NORWOOD SCHOOLS LTD","516901","http://opencorporates.com/companies/gb/516901","629720917"
"London Borough of Redbridge","http://opendatacommunities.org/doc/london-borough-council/redbridge","6BADULTSOCIA","Adult Social Care","6CADLEARNDIS","Adults Under 65 with Learning Disabilities","REV","Revenue","R4188","LD - Residential Care","09-INCOME","Income","09C","Customer and Client Receipts","8555","Accommodation Charges","90959410","201902",18/05/2018 00:00:00,-409,"17020","Charities and Voluntary Organisations","REDACTED DATA","NORWOOD SCHOOLS LTD","516901","http://opencorporates.com/companies/gb/516901","629720917"
"London Borough of Redbridge","http://opendatacommunities.org/doc/london-borough-council/redbridge","6BADULTSOCIA","Adult Social Care","6CADLEARNDIS","Adults Under 65 with Learning Disabilities","REV","Revenue","R4188","LD - Residential Care","05-THIRD","Third Party Payments","05F","Voluntary associations","6802","Residential Homes","90959409","201902",18/05/2018 00:00:00,5794.44,"17020","Charities and Voluntary Organisations","REDACTED DATA","NORWOOD SCHOOLS LTD","516901","http://opencorporates.com/companies/gb/516901","629720917"
"London Borough of Redbridge","http://opendatacommunities.org/doc/london-borough-council/redbridge","6BADULTSOCIA","Adult Social Care","6CADLEARNDIS","Adults Under 65 with Learning Disabilities","REV","Revenue","R4188","LD - Residential Care","09-INCOME","Income","09C","Customer and Client Receipts","8555","Accommodation Charges","90959409","201902",18/05/2018 00:00:00,-552.4,"17020","Charities and Voluntary Organisations","REDACTED DATA","NORWOOD SCHOOLS LTD","516901","http://opencorporates.com/companies/gb/516901","629720917"
"London Borough of Redbridge","http://opendatacommunities.org/doc/london-borough-council/redbridge","6BADULTSOCIA","Adult Social Care","6CADLEARNDIS","Adults Under 65 with Learning Disabilities","REV","Revenue","R4188","LD - Residential Care","05-THIRD","Third Party Payments","05F","Voluntary associations","6802","Residential Homes","90959408","201902",18/05/2018 00:00:00,146.16,"17020","Charities and Voluntary Organisations","REDACTED DATA","NORWOOD SCHOOLS LTD","516901","http://opencorporates.com/companies/gb/516901","629720917"
"London Borough of Redbridge","http://opendatacommunities.org/doc/london-borough-council/redbridge","6BADULTSOCIA","Adult Social Care","6CADLEARNDIS","Adults Under 65 with Learning Disabilities","REV","Revenue","R4188","LD - Residential Care","05-THIRD","Third Party Payments","05F","Voluntary associations","6802","Residential Homes","90959408","201902",18/05/2018 00:00:00,4969.44,"17020","Charities and Voluntary Organisations","REDACTED DATA","NORWOOD SCHOOLS LTD","516901","http://opencorporates.com/companies/gb/516901","629720917"
"London Borough of Redbridge","http://opendatacommunities.org/doc/london-borough-council/redbridge","6BADULTSOCIA","Adult Social Care","6CADLEARNDIS","Adults Under 65 with Learning Disabilities","REV","Revenue","R4188","LD - Residential Care","09-INCOME","Income","09C","Customer and Client Receipts","8555","Accommodation Charges","90959408","201902",18/05/2018 00:00:00,-552.4,"17020","Charities and Voluntary Organisations","REDACTED DATA","NORWOOD SCHOOLS LTD","516901","http://opencorporates.com/companies/gb/516901","629720917"
"London Borough of Redbridge","http://opendatacommunities.org/doc/london-borough-council/redbridge","6BADULTSOCIA","Adult Social Care","6CADLEARNDIS","Adults Under 65 with Learning Disabilities","REV","Revenue","R4188","LD - Residential Care","05-THIRD","Third Party Payments","05F","Voluntary associations","6802","Residential Homes","90959407","201902",18/05/2018 00:00:00,5849.44,"17020","Charities and Voluntary Organisations","REDACTED DATA","NORWOOD SCHOOLS LTD","516901","http://opencorporates.com/companies/gb/516901","629720917"
"London Borough of Redbridge","http://opendatacommunities.org/doc/london-borough-council/redbridge","6BADULTSOCIA","Adult Social Care","6CADLEARNDIS","Adults Under 65 with Learning Disabilities","REV","Revenue","R4188","LD - Residential Care","09-INCOME","Income","09C","Customer and Client Receipts","8555","Accommodation Charges","90959407","201902",18/05/2018 00:00:00,-552.4,"17020","Charities and Voluntary Organisations","REDACTED DATA","NORWOOD SCHOOLS LTD","516901","http://opencorporates.com/companies/gb/516901","629720917"
"London Borough of Redbridge","http://opendatacommunities.org/doc/london-borough-council/redbridge","6BADULTSOCIA","Adult Social Care","6CADLEARNDIS","Adults Under 65 with Learning Disabilities","REV","Revenue","R4188","LD - Residential Care","05-THIRD","Third Party Payments","05F","Voluntary associations","6802","Residential Homes","90959406","201902",18/05/2018 00:00:00,7330.88,"17020","Charities and Voluntary Organisations","REDACTED DATA","NORWOOD SCHOOLS LTD","516901","http://opencorporates.com/companies/gb/516901","629720917"
"London Borough of Redbridge","http://opendatacommunities.org/doc/london-borough-council/redbridge","6BADULTSOCIA","Adult Social Care","6CADLEARNDIS","Adults Under 65 with Learning Disabilities","REV","Revenue","R4188","LD - Residential Care","09-INCOME","Income","09C","Customer and Client Receipts","8555","Accommodation Charges","90959406","201902",18/05/2018 00:00:00,-360.8,"17020","Charities and Voluntary Organisations","REDACTED DATA","NORWOOD SCHOOLS LTD","516901","http://opencorporates.com/companies/gb/516901","629720917"
"London Borough of Redbridge","http://opendatacommunities.org/doc/london-borough-council/redbridge","6BADULTSOCIA","Adult Social Care","6CADLEARNDIS","Adults Under 65 with Learning Disabilities","REV","Revenue","R4188","LD - Residential Care","05-THIRD","Third Party Payments","05F","Voluntary associations","6802","Residential Homes","90959405","201902",18/05/2018 00:00:00,7233.52,"17020","Charities and Voluntary Organisations","REDACTED DATA","NORWOOD SCHOOLS LTD","516901","http://opencorporates.com/companies/gb/516901","629720917"
"London Borough of Redbridge","http://opendatacommunities.org/doc/london-borough-council/redbridge","6BADULTSOCIA","Adult Social Care","6CADLEARNDIS","Adults Under 65 with Learning Disabilities","REV","Revenue","R4188","LD - Residential Care","09-INCOME","Income","09C","Customer and Client Receipts","8555","Accommodation Charges","90959405","201902",18/05/2018 00:00:00,-402.6,"17020","Charities and Voluntary Organisations","REDACTED DATA","NORWOOD SCHOOLS LTD","516901","http://opencorporates.com/companies/gb/516901","629720917"
"London Borough of Redbridge","http://opendatacommunities.org/doc/london-borough-council/redbridge","6BADULTSOCIA","Adult Social Care","6CADLEARNDIS","Adults Under 65 with Learning Disabilities","REV","Revenue","R4188","LD - Residential Care","05-THIRD","Third Party Payments","05F","Voluntary associations","6802","Residential Homes","90959404","201902",18/05/2018 00:00:00,8052.68,"64710","Residential Care Homes","REDACTED DATA","NORMANSHIRE CARE SERVICES LTD","8699759","http://opencorporates.com/companies/gb/8699759",""
"London Borough of Redbridge","http://opendatacommunities.org/doc/london-borough-council/redbridge","6BADULTSOCIA","Adult Social Care","6COLDINCMENT","Older People (65 or over) incl. Older Mentally Ill","REV","Revenue","R4385","OP Nursing","05-THIRD","Third Party Payments","05H","Private contractors","6909","Nursing Homes","90959403","201902",16/05/2018 00:00:00,918.8,"53350","Nursing Homes","REDACTED DATA","NEEM TREE CARE LTD","7357472","http://opencorporates.com/companies/gb/7357472",""
"London Borough of Redbridge","http://opendatacommunities.org/doc/london-borough-council/redbridge","6BSOCIALSERV","Social Services","6COTHC&FSERV","Other Children's & Families' Services","REV","Revenue","R2123","LAC Service","01-EMPLOYEES","Employees","01A","Direct employee expenses","4","Agency Staff - Pay","3512640","201902",30/05/2018 00:00:00,1508.15,"31230","Employment and Recruitment Agencies","REDACTED DATA","ADECCO UK LIMITED","593232","http://opencorporates.com/companies/gb/593232","232347975"
"London Borough of Redbridge","http://opendatacommunities.org/doc/london-borough-council/redbridge","6BSOCIALSERV","Social Services","6COTHC&FSERV","Other Children's & Families' Services","REV","Revenue","R2123","LAC Service","01-EMPLOYEES","Employees","01A","Direct employee expenses","4","Agency Staff - Pay","3512640","201902",30/05/2018 00:00:00,1508.15,"31230","Employment and Recruitment Agencies","REDACTED DATA","ADECCO UK LIMITED","593232","http://opencorporates.com/companies/gb/593232","232347975"
"London Borough of Redbridge","http://opendatacommunities.org/doc/london-borough-council/redbridge","6BSOCIALSERV","Social Services","6COTHC&FSERV","Other Children's & Families' Services","REV","Revenue","R2123","LAC Service","01-EMPLOYEES","Employees","01A","Direct employee expenses","4","Agency Staff - Pay","3512640","201902",30/05/2018 00:00:00,1508.15,"31230","Employment and Recruitment Agencies","REDACTED DATA","ADECCO UK LIMITED","593232","http://opencorporates.com/companies/gb/593232","232347975"
"London Borough of Redbridge","http://opendatacommunities.org/doc/london-borough-council/redbridge","6BSOCIALSERV","Social Services","6COTHC&FSERV","Other Children's & Families' Services","REV","Revenue","R2123","LAC Service","01-EMPLOYEES","Employees","01A","Direct employee expenses","4","Agency Staff - Pay","3512640","201902",30/05/2018 00:00:00,1508.15,"31230","Employment and Recruitment Agencies","REDACTED DATA","ADECCO UK LIMITED","593232","http://opencorporates.com/companies/gb/593232","232347975"
"London Borough of Redbridge","http://opendatacommunities.org/doc/london-borough-council/redbridge","6BSOCIALSERV","Social Services","6COTHC&FSERV","Other Children's & Families' Services","REV","Revenue","R2123","LAC Service","01-EMPLOYEES","Employees","01A","Direct employee expenses","4","Agency Staff - Pay","3512640","201902",30/05/2018 00:00:00,1508.15,"31230","Employment and Recruitment Agencies","REDACTED DATA","ADECCO UK LIMITED","593232","http://opencorporates.com/companies/gb/593232","232347975"
"London Borough of Redbridge","http://opendatacommunities.org/doc/london-borough-council/redbridge","6BSOCIALSERV","Social Services","6COTHC&FSERV","Other Children's & Families' Services","REV","Revenue","R2123","LAC Service","01-EMPLOYEES","Employees","01A","Direct employee expenses","4","Agency Staff - Pay","3512640","201902",30/05/2018 00:00:00,1508.15,"31230","Employment and Recruitment Agencies","REDACTED DATA","ADECCO UK LIMITED","593232","http://opencorporates.com/companies/gb/593232","232347975"
"London Borough of Redbridge","http://opendatacommunities.org/doc/london-borough-council/redbridge","6BSOCIALSERV","Social Services","6COTHC&FSERV","Other Children's & Families' Services","REV","Revenue","R2123","LAC Service","01-EMPLOYEES","Employees","01A","Direct employee expenses","4","Agency Staff - Pay","3512640","201902",30/05/2018 00:00:00,1508.15,"31230","Employment and Recruitment Agencies","REDACTED DATA","ADECCO UK LIMITED","593232","http://opencorporates.com/companies/gb/593232","232347975"
"London Borough of Redbridge","http://opendatacommunities.org/doc/london-borough-council/redbridge","6BSOCIALSERV","Social Services","6COTHC&FSERV","Other Children's & Families' Services","REV","Revenue","R2123","LAC Service","01-EMPLOYEES","Employees","01A","Direct employee expenses","4","Agency Staff - Pay","3512640","201902",30/05/2018 00:00:00,1333.15,"31230","Employment and Recruitment Agencies","REDACTED DATA","ADECCO UK LIMITED","593232","http://opencorporates.com/companies/gb/593232","232347975"
"London Borough of Redbridge","http://opendatacommunities.org/doc/london-borough-council/redbridge","6BSOCIALSERV","Social Services","6COTHC&FSERV","Other Children's & Families' Services","REV","Revenue","R2123","LAC Service","01-EMPLOYEES","Employees","01A","Direct employee expenses","4","Agency Staff - Pay","3512640","201902",30/05/2018 00:00:00,1208.9,"31230","Employment and Recruitment Agencies","REDACTED DATA","ADECCO UK LIMITED","593232","http://opencorporates.com/companies/gb/593232","232347975"
"London Borough of Redbridge","http://opendatacommunities.org/doc/london-borough-council/redbridge","6BSOCIALSERV","Social Services","6COTHC&FSERV","Other Children's & Families' Services","REV","Revenue","R2123","LAC Service","01-EMPLOYEES","Employees","01A","Direct employee expenses","4","Agency Staff - Pay","3512640","201902",30/05/2018 00:00:00,170.1,"31230","Employment and Recruitment Agencies","REDACTED DATA","ADECCO UK LIMITED","593232","http://opencorporates.com/companies/gb/593232","232347975"
"London Borough of Redbridge","http://opendatacommunities.org/doc/london-borough-council/redbridge","6BSOCIALSERV","Social Services","6COTHC&FSERV","Other Children's & Families' Services","REV","Revenue","R2123","LAC Service","01-EMPLOYEES","Employees","01A","Direct employee expenses","4","Agency Staff - Pay","3512640","201902",30/05/2018 00:00:00,20.2,"31230","Employment and Recruitment Agencies","REDACTED DATA","ADECCO UK LIMITED","593232","http://opencorporates.com/companies/gb/593232","232347975"
"London Borough of Redbridge","http://opendatacommunities.org/doc/london-borough-council/redbridge","7BCDC","Corporate & Democratic Core","7CCORPMGT","Corporate Management","REV","Revenue","R6900","Place Change Management","01-EMPLOYEES","Employees","01A","Direct employee expenses","4","Agency Staff - Pay","3512640","201902",30/05/2018 00:00:00,779.4,"31230","Employment and Recruitment Agencies","REDACTED DATA","ADECCO UK LIMITED","593232","http://opencorporates.com/companies/gb/593232","232347975"
